{"text_format":"1","workbook":"xlsx","n_sheets":29,"sheets":["identifikacija_obrazca","navodila","stranka","pooblasc","izjava o ne eVročanju","vrsta_vloge","Xnaprava","Xseznam_teh_enot","XODP_teh_enote","Strokovna_ocena","Lokacije_vnosa_v_tla","Kolicine_povrsine","Izvor","XODP_komp_digest","XODP_blato_cn","XODP_nenevarni_odpadki","XODP_nevarni odpadki","XODP_vnos_zemlj","XODP_vnos_zemlj_ocena","ODP_obvezne_priloge","ODP_druga_dok","Sifrant_KO","sifrant_obcin","XODP_sifrant_nenevarnih_odp","XODP_sifrant_nevarnih_odp","XODP_sifrant_razr_do_31_12_2017","XODP_sifrant razr_od_1_1_2018","ODP_sifrant_prilog","sifrant_ostalo"],"not_rendered":{"charts":0,"images":1,"macros":1,"external_links":2,"defined_names":75,"comments":7,"pivot_tables":0},"unopened":[],"bounds":{"document_bytes":16777216,"sheet_cells":100000,"rows_first":2000,"rows_last":500,"rows_between":2000,"halvings":0,"cell_chars":16384,"cell_head_chars":4096},"cells_cut":0,"cells_raw":0,"read":"whole","date_system":"1900"}

{"sheet":"identifikacija_obrazca","index":0,"n_rows":85,"n_cols":4,"rows_kept":85,"cut":false,"hidden":true,"merged":[[0,0,0,14],[5,1,5,14],[8,3,8,18],[7,3,7,18],[9,3,9,18],[27,3,27,18],[28,3,28,18],[29,3,29,18],[26,3,26,18],[25,3,25,18]]}
["Pozor: ti podatki so namenjeni identifikaciji obrazca. Vsaka oseba iz ARSO ali izvajalec za ARSO, ki spreminja elemente v tem obrazcu je dolžan uskladiti številko verzije, dopisati sprremembe in podake o avtorju sprememb in skoordinirati, da se ta verzija odloži na za to predvideno mesto. Prav tako je dolžan skoordinirati, da so o novi verziji obveščene ustrezne osebe."]
["Tip obrazca:","VLOGA_OVD",null,"Ta naziv za ta tip vloge ostane vedno isti"]
["Verzija:","1.10",null,"To verzijo je potrebno spremeniti, če se delajo spremembe obrazca (če samo spremembe label, se poviša le druga številka, če kakršnekoli strukturne spremembe ali kontrole, se poviša prva)"]
["Datum zadnje spremembe:","2017-08-30",null,"To je potrebno spremeniti ob spremembi"]
["Oseba, ki je izvedla zadnjo spremembo","Sašo Celarc"]
[]
[]
["Opis sprememb:","Sašo Celarc","2016-10-03","Podatke prosilca in pooblaščena ločil na dva zavihka (kot pri zbiralcu). \nOdstranjena kontrola na \"Največja proizvodna zmogljivost naprave (t/leto, t/dan, t/uro)\" in \"Dejanska zmogljivost naprave (t/leto, t/dan, t/uro)\" za numerično vrednost. To je sedaj tekstualna vrednost.\nDopolnil tehnične elemnte za spustne sezname, kontrole, …. \nZaenkrat še ni vključenega zaklepanja. \nTočno je potrebno definirati funkcionalnost prenašanja zaporednih številk tehnoloških enot"]
[null,"Sašo Celarc","2016-10-07","Na zavihkih ODP_nenevarni_odpadki, ODP_nevarni odpadki, kjer je Opis postopka obdelave (stolpec G), je odstranjena formula, ker je ta opis namenjen ročnemu vpisu\nPovsod, kjer je bil uporabljena funkcija  IFNA() (ponavadi skupaj z VLOOKUP) se sedaj to narejeno na drug način z uporabo funkcije ISNA(). V Excel 2002 namreč ne obstaja funkcija IFNA()\nNa ODP_teh_enote dodan gumb za prenos odpadkarskih tehnoloških enot iz seznam_teh_enot\nNa ODP_teh_enote dodana Data Validation, da se lahko vpiše le odpadkarske tehnološke enote iz seznam_teh_enot. Za ta namen je na ODP_teh_enote vsebovana formula v skritem stolpcu V\nRang TEH_ENOTE_ODPADKI_DETAIL razširejn, da vsebuje še skriti V\nRang TEH_ENOTE razširejn, da vsebuje še skriti  H\nUveden rang QUERY_ENOTE_ZA_ODP da se lahko v formuli v TEH_ENOTE_ODPADKI_DETAIL stolpec V ovrednoti true/false, ki se ga potem uporabi pri data validation z vpis odpadkarske tehnološke enote. Ne vem, zakaj v data validation pogoj ni šla direkta formula in je bilo potem potrebno to narediti v dveh korakih"]
[null,"Sašo Celarc","2016-10-13","Definiran named range VRSTA_NAPRAVE. Na listi naprava v celici C5 dodan izbor vrste naprave iz named range VRSTA_NAPRAVE.\nOdstranil named range v Name manager, ki so kazali na range v drugih excelih (to se lahko zgodi pri kopiranju iz enega na drugega)"]
[null,"Andreja Vihtelič","2016-10-13","Preimenovan zavihek prosulec v stranka"]
[null,null,"2016-10-13","Na zavihku ODP_lokacije_teh_enot v I4 dodano (izbira: spustni seznam)"]
[null,null,"2016-10-13","Na zavihkih  ODP_nenevarni_odpadki in ODP_nevarni odpadki dodano v C4  (izbira v stolpcu C: spustni seznam) in v F4  (izbira: spustni seznam)"]
[null,null,"2016-10-13","Na zavihku ODP_vnos_zemlj v celici B4: nadomestilo besedila  (izbrati eno od navedenih možnosti):  v(izbrati možnostiz spustnega seznama): "]
[null,null,"2016-10-13","Na zavihku ODP_prmicne v B12 dodano (izbrati da ali ne)"]
[null,null,"2016-10-13","Na zavihku ODP_izr_vozila B11 dodano: (izbrati iz spustnega seznama)"]
[null,null,"2016-10-13","Na zavihku ODP_izr_vozila_zahteve2 v B24 namesto Velikost utrjenih površin, ki imajo lovilnik olj (m2) besedilo Velikost vseh utrjenih površin obrata, iz katerih se odvaja odpadna voda preko lovilnika olj (m2)"]
[null,null,"2016-10-13","Na zavihku ODP_izr_vozila_zahteve2  ponekje v stolpcu B dodano:(izberite da ali ne)"]
[null,null,"2016-10-13","Na zavihku ODP_oeeo v B4 dodano  (izbrati iz spustnega seznama)"]
[null,null,"2016-10-13","Na zvihku ODP_sosezig_sezig v C4 in D4 dodano:  (izbrati iz spustnega seznama)"]
[null,null,"2016-10-13","Na zavihku upravna_taksa v H21 vnesena kontrola za datum"]
[null,null,"2016-10-13","Dodana barva zavihka \"pooblasc\""]
[null,null,"2016-10-13","zavihek \"naprava\" leva poravnava od C4 do C 14"]
[null,null,"2016-10-13","zavihek ODP_izr_vozila_zahteve1 dodano od B4 do B18 (da/ne)"]
[null,null,"13.13.2016","na zavihkih o prilogah popravljeno oblikovanje nazivov tabel in stolpcev"]
[null,"Marjana Ulrich-S","2016-10-13","na zavihku \"up_taksa\" v celici B6 se bo številka 35472016 spremijala s koledarskim letom (npr. v 2017 v 35472017) - kako to rešiti"]
[null,"Sašo Celarc","2016-10-13","Uredil data validation za DŠ in MŠO na zavihkih \"stranka\" in \"pooblasc\". Za celici za DŠ in MŠO postavil format na Text, da se ob uvozu ne pretvarja v format z decmalnimi ločili."]
[null,"Sašo Celarc","2016-10-13","ODP_izr_vozila v celici C9 je dodana možnost izbire da/ne"]
[null,"Sašo Celarc","2016-10-13","V stolpc D5 na zavihku ODP_sosezig_sezig je dodati kot možnost izbire tudi \"sežigalnica\" (dopolnjen named range SEZIG_VRSTA)"]
[null,"Sašo Celarc","2016-10-13","Odstranil komentarje"]
[null,"Andreja Vihtelič","2016-10-20","Izbrisana vsebina in oblika v stolpcu B na zavihku ODP_obvezne_priloge in ustrezno oblikovan naslov prestavljen v celico C2. V območju C5 do C69 ni bilo sprememb."]
[null,"Marjana Ulrich-S","2016-10-25","Zamenjen vrstni red listov obvezne priloge in druga dokazila"]
[null,"Marjana Ulrich-S","2016-10-25","na zavihku upravna taksa popravljen kritej v celici H21"]
[null,"Marjana Ulrich-S","2016-10-25","Na zavihku ODP_obvezne _priloge zmanjšano št. vrstic na 30 vnosov"]
[null,"Sašo Celarc","2016-10-25","Zavihek ODP_teh_enote odstranjen tekst v celicah R1 in R2 in odstranjen komentar v celici U4"]
[null,"Sašo Celarc","2016-10-25","na zavihkih ODP_nenevarni_odpadki in ODP_nevarni_odpadki urejeno tiskanje, da se na vsaki ponovijo vresice iz headerja tabele. Orientacija strani postavljena na ležeče."]
[null,"Sašo Celarc","2016-10-25","Uvedena zaščita na vseh zavihkih. Le na ODP_nenevarni_odpadki in ODP_nevarni_odpadki je možno tudi dodajanje vrstic"]
[null,"Sašo Celarc","2016-10-25","Skriti zavihki s šifranti in zvaihe identifikacija_obrazca"]
[null,"Sašo Celarc","2016-11-03","Poštiman macro za prenos tehnoloških neot na ODP_teh_enote (dopolnjen PrenesiTehnEnoteOdp(), da uporabi geslo, macro je prenesen na ThisWorkbook)"]
[null,"Sašo Celarc","2016-11-03","Na zavihku ODP_lokacije_teh_enot dodana validacija ob vpisu zaporedne števlke. V stolpcu L dodana za ta namen pomožna formula. Stolpec L je hidden"]
[null,"Sašo Celarc","2016-11-03","Na zavihku ODP_nenevarni_odpadki dodana validacija ob vpisu zaporedne števlke. V stolpcu K dodana za ta namen pomožna formula. Stolpec K je hidden"]
[null,"Sašo Celarc","2016-11-03","Na zavihku ODP_nevarni_odpadki dodana validacija ob vpisu zaporedne števlke. V stolpcu O dodana za ta namen pomožna formula. Stolpec O je hidden"]
[null,"Sašo Celarc","2016-11-03","Dodan macro za dodajanje vrstic na koncu tabel in dodani gumbi za dodajanje pod tabelami"]
[null,"Andreja Vihtelič","2016-11-03","Spremembe oblike na nekaterih zavihkih."]
[null,"Andreja Vihtelič","2016-11-03","Prilagoditev listov za tiskanje na A4 (pokončno/ležeče)"]
[null,"Sašo Celarc","2016-11-03","Na ODP_sosezig_sezig uredil validacijo za zaporedno številko tehnološke naprave (ob pomoči hidden stolpca M) in dodal gumb za dodajanje vrstic"]
[null,"Sašo Celarc","2016-11-03","Na ODP_druga_dok uredil validacijo za zaporedno številko tehnološke naprave (ob pomoči hidden stolpca D) in dodal gumb za dodajanje vrstic"]
[null,"Andreja Vihtelič","2016-11-03","zavihek \"stranka\" v celici B10 izbrisala besedo SPREMEMBO (bila 2x navedena) in brissala presledke pred in za znakom /"]
[null,"Andreja Vihtelič","2016-11-03","zavihek \"pooblasc\" v celici B3 spremenila vlagatelj in vlagatelja v stranko in v stranke"]
[null,"Andreja Vihtelič","2016-11-03","zavihek \"naprava\" : razdružene celice v bloku c4:d14 , oblikovanje celic v bloku c4:c14 s samodejno prilagodi višino. V istem bloku celic razen c7 je uporabljeno tudi oblikovanje Prelomi besedilo"]
[null,"Andreja Vihtelič","2016-11-03","v zavihku \"ODP_teh_enote\" združene celice v vrstici 3 od stolpca B do U, rdeče obarvan tekst iz komentarja spremenjen in prenesen v celico B13, brisan tekst v 29, celice C6 do C 27 dodan prelom besedila in Samodejno prilagodi višino"]
[null,"Andreja Vihtelič","2016-11-03","v zavihku\"ODP_nenevarni_odpadki\" v stolpcu D in H dodan prelom in Samodejno prilagodi višino"]
[null,"Andreja Vihtelič","2016-11-03","v zavihku\"ODP_nevarni_odpadki\" v stolpcu D in H dodan prelom in Samodejno prilagodi višino"]
[null,"Andreja Vihtelič","2016-11-03","v zavihku \"ODP_komp_digest\" dodana vrstica"]
[null,"Andreja Vihtelič","2016-11-03","v zavihku \"ODP_blato_cn\" dodana vrstica"]
[null,"Andreja Vihtelič","2016-11-03","zavihek \"ODP_sosezig_sezig\" povečana širina stolpec D "]
[null,"Andreja Vihtelič","2016-11-03","zavihek \"ODP_druga_dok\" v celice stolpca C dodan  prelom in Samodejno prilagodi višino"]
[null,"Sašo Celarc","2016-11-07","za zavihke ODP_teh_enote, ODP_nenevarni_odpadki in ODP_nevarni_odpadki pri izvedbi zaščite v macrojih spremenil, da je možno oblikoviati vrstice"]
[null,"Andreja Vihtelič","2016-11-09","V zavihkih vrsta_vloge, ODP_nenevarni_odpadki, ODP_oeeo in ODP_druga_dok je popravljeno oblikovanje besedila in starni za tsikanje"]
[null,"Andreja Vihtelič","2016-11-09","popravljen šifrant nenevarnih oodpadkov in ustrezen popravek območij SIFRE_NENEVARNIH_ODPADKOV in SIFRANT_NENEVARNIH_ODPADKOV"]
[null,"Sašo Celarc","2016-11-09","V macroju PrenesiTehnEnoteOdp() dopolnil, da se po izvedbi izvede zaklepanje tako, da je mogoče formatiranje vrstice (zaradi širjenja višine)"]
[null,"Sašo Celarc","2016-11-09","Vse macroje postavil na Private, da se ne vidijo na seznamu, če gre uporabnik na Developer/Macros"]
["ZA KOMPOST…","Marjana Ulrich-S","2017-08-16","dodana 2-x kopiji zavihka ODP_lokaciji_teh_enot"]
[null,"Marjana Ulrich-S","2017-08-16","zavihek ODP_lokacije_teh_enot preimenovan v Lokac_komp_dig_1_KZ ,sktriti st. G, H, L , sprememba teksta v B2, dodan stolpec C"]
[null,"Marjana Ulrich-S","2017-08-17","zavihek ODP_lokacije_teh_enot (2) preimenovan v Lokac_komp_dig_1_NKZ , skriti st. G, H, K, sprememba teksta v B2"]
[null,"Marjana Ulrich-S","2017-08-17","zavihek ODP_lokacije_teh_enot (2) preimenovan v Lokac_komp_dig_1_NKZ , skriti st. G, H, K, sprememba teksta v B2"]
[null,"Marjana Ulrich-S","2017-08-16","zavihek ODP_lokacije_teh_enot (3) preimenovan v Lokac_blatoCN_KZ , skriti st. G, H, L, sprememba teksta v B2"]
[null,"Marjana Ulrich-S","2017-08-16","dodana kopija zavihka ODP_kom_digestat in preimenovan v Izvor_kolicine"]
[null,"Marjana Ulrich-S",null,"dodani zavihki:"]
[null,"Marjana Ulrich-S","2017-08-18","skriti zavihki ODP_komp_digest in ODP_blato_cn in ODP_nenevarni_odpadki"]
[null,"Andreja Vihtelič","2017-08-22","dodani šifranti in combo boxi "]
[null,"Andreja Vihtelič","2017-08-24","dodani šifranti in combo boxi "]
[null,"Andreja Vihtelič","2017-08-29","popravki v šifrantu prilog - dodano specifikacija komposta /digestat (tudi v IS-odpadki)"]
[null,"Sašo Celarc","2017-08-30","Listom, ki pomojem niso potrebni in samo obremenjujejo ta excel, sem dal predpono X in bi jih bilo dobro zbrisati"]
[null,"Sašo Celarc","2017-08-30","Na listu Kolicine_povrsine uredil seštevanje v zgornjo tabelico po tipih komposta/digestata (funkcija SUMIF)"]
[null,"Sašo Celarc","2017-08-30","Na listu Kolicine_povrsine dodal gumb in macro za dodajanje nove vrstice"]
[null,"Sašo Celarc","2017-08-30","Na listu sifrant_ostalo dodan šifrant rabe kmetijskih zemljišč, vnedar ga nisem nikjer vključil"]
[null,"Sašo Celarc","2017-08-30","Lokacije_vnosa_v_tla - ovrednotenje naziva KO na podlagi številke KO, preveril dodajanje vrstic"]
[null,"Sašo Celarc","2017-08-30","Uredil macroje za grupno ščitenje/odščitenje, prikazovanje/skrivanje zavihkov"]
[null,"Sašo Celarc","2017-08-30","Skril stolpce (Hide) v katerih so vlookup formule za ovrednotenje IDjev Lokacije_vnosa_v_tla - stolpec N"]
[null,"Andreja Vihtelič","2017-09-01","Na zavihku Izvor dodane vrstice za možnost vnosa diodatnih zapisov"]
[null,"Andreja Vihtelič","2017-09-01","Zaradi problemov pri izpisu smo skrili zavihek Sifrant_KO"]
[null,"Andreja Vihtelič","2017-09-01","Dodana opomba v stolpcu D na zavihku Lokacije_vnosa_v_tla"]
[null,"Andreja Vihtelič","2017-09-01","Izbrisan zavihek Upravna taksa"]
[null,"Andreja Vihtelič","2017-09-01","Dodani komentarji in popravki v nazzivih tabel na različnih zavihkih"]

{"sheet":"navodila","index":1,"n_rows":68,"n_cols":2,"rows_kept":68,"cut":false,"hidden":true,"merged":[[1,0,1,1]]}
[]
["Navodila  za izpolnjevanje obrazca VLOGA ZA IZDAJO/SPREMEMBO SPREMEMBO OKOLJEVARSTVENEGA DOVOLJENJA ZA PREDELAVO/ODSTRANJEVANJE ODPADKOV"]
["OPOMBA Marjana: navodila popravljena po uskladitvi ostalih zavihkov"]
["Zakonodajna osnova"]
[null,"38. člen Uredbe o odpadkih (UL RS, št. 37/15 in 69/15) določa, da izvajalec obdelave lahko obdeluje odpadke, če ima okoljevarstveno dovoljenje za predelavo ali odstranjevanje odpadkov v skladu z zakonom, ki ureja varstvo okolja. Vloga za pridobitev okoljevarstvenega dovoljenja se vloži na podlagi 83. člena Zakona o varstvu okolja  (Uradni list RS, št. 39/06 – uradno prečiščeno besedilo, 49/06 – ZMetD, 66/06 – odl. US, 33/07 – ZPNačrt, 57/08 – ZFO-1A, 70/08, 108/09, 108/09 – ZPNačrt-A, 48/12, 57/12, 92/13, 56/15, 102/15 in 30/16, v nadaljevanju ZVO) in 39. člena Uredbe o odpadkih (Uradni list RS, št. 37/15 in 69/15). Ministrstvo izvajalca obdelave, ki mu izda okoljevarstveno dovoljenje iz prvega odstavka 38. člena navedenega predpisa, po uradni dolžnosti vpiše v evidenco izvajalcev obdelave, ki jo vodi v okviru evidence oseb, ki imajo okoljevarstveno dovoljenje, v skladu z zakonom, ki ureja varstvo okolja. "]
["Namen"]
[null,"Obrazec je namenjen pripravi vloge za pridobitev/spremembo okoljevarstvenega dovoljenja za predelavo ali odstranjevanje odpadkov, v skladu z ZVO."]
["Definicije pojmov, uporabljenih v obrazcu"]
[null,"Vsebina obrazca je usklajena s tistimi določili 38. in 39. člena Uredbe o odpadkih (UL RS, št. 37/15 in 69/15), ki določajo vsebino vloge za pridobitev okoljevarstvenega dovoljenja za predelavo/odstranjevanje odpadkov ter v skladu z ZVO glede spremembe okoljevarstvenega dovoljenja."]
["Splošna navodila za izpolnjevanje obrazca"]
[null,"Obrazec, ki je dostopen na spletni strani Agencije RS za okolje (http://www.arso.gov.si/varstvo%20okolja/odpadki/obrazci/) pod rubriko \"Ravnanje z odpadki - splošno\" shranite na svoj računalnik. "]
[null,"Ko obrazec odprete kliknite na gumb \"Omogoči vsebino\" pri varnostnem opozorilu in potrdite, da želite spremeniti to datoteko v zaupanja vreden dokument."]
[null,"Navedeni podatki v obrazcu vloge naj izkazujejo stanje glede vrste vloge, glede vrste in lokacije naprave, glede seznama in lokacij tehnoloških enot, glede števila in vrste odpadkov, ki se bodo obdelovali v skladu z določbami predpisa o ravnanju z odpadki ter v skladu s predpisi, ki urejajo ravnanje s posamezno vrsto odpadkov ali urejajo posamezen postopek obdelave odpadkov."]
[null,"Vnos podatkov je mogoč le v celice, ki nimajo senčenega ozadja."]
[null,"Obvezno je potrebno izpolniti podatke na zavihkih od \"stranka\" do vključno \"ODP_lokacije_teh_enot\", razen na zavihku \"pooblasc\", če vas ne zastopa pooblaščenec. Obvezno je potrebno izpolniti tudi podatke na zavihku \"ODP_obvezne_priloge\" in na zavihku \"upravna_taksa\". Zavihke od \"ODP_nenevarni_odpadki\" do vključno z zavihkom \"ODP_druga_dok\" je potrebno izpolniti glede na vrsto vložene vloge."]
[null,"Ko vnesete podatke v obrazec, ga shranite kot datoteko xlsx pod nazivom Vloga_OVD_maticna-vasega podjetja.xlsx (npr.: vloga_OVD_1234567000.xlsx). V primeru prejšnjih verzij Excela do 2003 je končnica v imenu datoteke xls."]
[null,"Natisnite tiste zavihke izpolnjenega obrazca, v katere ste vnesli podatke. S strani zakonitega zastopnika ali pooblaščenca podpisano papirno obliko vloge, vključno z obveznimi prilogami (v skladu z določili Uredbe o odpadkih, objavljene v UL RS, št. 37/15 in 69/15 ter v s skladu z drugimi predpisi s področja odpadkov) pošljite na naslov: ARSO, Vojkova 1b, 1000 Ljubljana s pripisom: vloga za pridobitev okoljevarstvenega dovoljenja.  Datoteko v Excelu pa pošljite na e-naslov: gp.arso@gov.si."]
[null,"Pri vnosu podatkov v zavihkih, kjer je potrebno vnestii zap. št. teh. enote po vnosu številke v celico, pritisnite Enter."]
["Navodila za izpolnjevanje posameznega zavihka obrazca"]
["Vnesite podatke v zavihke obrazca glede na vrsto vloge. Za nakatere celice v posameznih zavihkih so spodaj navedena podrobnejša navodila."]
["Zavihek \"stranka\""]
[null,"Izberite občino iz spustnega seznama (ob kliku na celico E16, se pojavi na desnem robu celice puščica, kliknite nanjo in izberite ustrezno občino)."]
[null,"Vnesite 8 mestno davčno številko."]
[null,"Vnesite 10 mestno matično številko (s tremi ničlami na koncu)."]
[null,"Vnesite podatek za registracijo dejavnosti - navedite šifro kategorije po Standarni klasifikaciji dejavnosti."]
["Zavihek \"pooblasc\"- vnesite le, če vas zastopa pooblaščenec"]
[null,"Vnesite 8 mestno davčno številko."]
[null,"Vnesite 10 mestno matično številko (s tremi ničlami na koncu)."]
[null,"Če je pooplaščenec fizična oseba, davčne in matične številke ni potrebno vnesti."]
["Zavihek \"vrsta_vloge\""]
[null,"Izberite vrsto vloge iz spustnega seznama (ob kliku na celico C4, se pojavi na desnem robu celice puščica, kliknite nanjo in izberite ustrezno)."]
[null,"V primeru izbire \"sprememba OVD\" v celici C4 vnesite podatke v celice C5, C6 in ev. v C7."]
["Zavihek \"naprava\""]
[null,"Naziv naprave opredelite z njenim imenom."]
[null,"Izberite vrsto naprave iz spustnega seznama (ob kliku na celico C5, se pojavi na desnem robu celice puščica, kliknite nanjo in izberite ustrezno)."]
[null,"Vnesite naslov naprave, če je le ta različen od vašega naslova. Izberite občino iz spustnega seznama (ob kliku na celico C7, se pojavi na desnem robu celice puščica, kliknite nanjo in izberite ustrezno občino)."]
[null,"Vnesite podatke o zmogljivosti naprave (celici C13 in C14), pri čemer je dejanska zmogljivost naprave zmogljivost, za katero vlagate vlogo. Vnesite podatke o lokaciji naprave (naziv katasterske občine, številka katasterske občine ter številka parcele).  Pred vnosom v obrazec obvezno preverite podatke v zemljiškem katastru, saj se podatki lahko spreminjajo."]
["Zavihek \"seznam_teh_enot\""]
[null,"Vnesite zaporedno številko in naziv posamezne tehnološke enote. Za vsako navedeno tehnološko v stolpcih  D, E in F izberite iz spustnega seznama da ali ne (ob kliku na posamezno celico v navedih stolpcih, se pojavi na desnem robu celice puščica, kliknite nanjo in izberite ustrezno)."]
["Zavihek \"ODP_teh_enote\""]
[null,"S klikom na gumb \"Prenesi enote za odpadke\" se bodo prenesli podatki o zaporednih številkah in nazivih tistih tehnoloških enot, pri katerih ste v zavihku \"seznem_teh_enot\" v stolpcu F za posamezno enoto izbrali \"da\"."]
[null,"Za posamezno tehnološko enoto vnesite ostale podatke. Ob kliku na posamezno celico v izbirnih stolpcih E in U se pojavi na desnem robu celice puščica, kliknite nanjo in izberite ustrezno iz seznama). Po potrebi prilagodite višino vrstice."]
["Zavihek \"ODP_lokacije_teh_enot\""]
[null,"V B stolpcu vnesite zaporedne ševilke tehnoloških enot ter vnesite ostale podatke glede na vrsto vloge. Zaporedna številka tehnološke enote se vstolpcu B ponovi tolikokrat, kolikor je parcelnih številk za posamezno tehnološko enoto."]
[null,"Ob kliku na posamezno celico v stolpcu I se pojavi na desnem robu celice puščica, kliknite nanjo in izberite ustrezno iz seznama."]
["Zavihek \"nenevarni_odpadki\""]
[null,"V B stolpcu vnesite zaporedne ševilke tehnoloških enot ter vnesite ostale podatke glede na vrsto vloge. Zaporedna številka tehnološke enote se vstolpcu B ponovi tolikokrat, kolikor je odpadkov, ki se bodo obdelovali v posamezni tehnološki enoti."]
[null,"Za vsako tehnološko enoto vnesite nenevarne odpadke tako, da so številke odpadkov urejene (najmanjša naj bo zgoraj). Odpadek izberete s klikom na celico v stolpcu C, na desnem robu celice se pojavi puščica, kliknete nanjo in iz spustnega seznama izberite ustrezni odpadek (podatki v stolpcih C in D se zapolnijo sami, glede na izbiro številke odpadka)."]
[null,"Postopek obdelave  izberete s klikom na celico v stolpcu F, na desnem robu celice se pojavi puščica, kliknete nanjo in iz spustnega seznama izberite ustrezni  postopek. "]
[null,"Kot izvor odpadka opredelite sledeče: povzročitelj ali zbiralec ali obdelovalec ali tujina ali kombinacija navedenega (ločiti z vejico in presledkom)"]
[null,"Če imate več tehnoloških enot in enake odpadke v njih, lahko vnesete odpadke najprej za  prvo tehnološko enoto, nato pa te kopirate. Pri kopiranju v zavihkih ODP_nenevarni_odpadki in ODP_nevarni_odpadki označite le podatke v stolpcu C in jih kopirajte v prazne celice spodaj. Vsebino v praznih celicah v stolpcu B  vnesite tako, da označite blok celic, kjer boste vnesli novo zap.št. tehnološke enote, sledi vnos številke tehnološke enote in potrditev vnosa s CTRL+Enter.  Če imate vrstic z zap. št. tehnoloških enot in odpadki več kot je na voljo vrstic v tabeli posameznega zavihka, je potrebno pred kopiranjem najprej s kliki na gumb Dodaj vrstico dodati toliko vrstic, kot jih potrebujete za vnos podatkov."]
[null,"Po potrebi prilagodite višine vrstic."]
["Zavihek \"nevarni_odpadki\""]
[null,"V B stolpcu vnesite zaporedne ševilke tehnoloških enot ter vnesite ostale podatke glede na vrsto vloge. Zaporedna številka tehnološke enote se vstolpcu B ponovi tolikokrat, kolikor je odpadkov, ki se bodo obdelovali v posamezni tehnološki enoti."]
[null,"Za vsako tehnološko enoto  vnesite nevarne odpadke tako, da so številke odpadkov urejene (najmanjša naj bo zgoraj). Odpadek izberete s klikom na celico v stolpcu C, na desnem robu celice se pojavi puščica, kliknete nanjo in iz spustnega seznama izberite ustrezni odpadek (podatki v stolpcih C in D se zapolnijo sami, glede na izbiro številke odpadka)."]
[null,"Postopek obdelave  izberete s klikom na celico v stolpcu F, na desnem robu celice se pojavi puščica, kliknete nanjo in iz spustnega seznama izberite ustrezni  postopek. "]
[null,"Kot izvor odpadka opredelite sledeče: povzročitelj ali zbiralec ali obdelovalec ali tujina ali kombinacija navedenega (ločiti z vejico in presledkom)"]
[null,"Če imate več tehnoloških enot in enake odpadke v njih, lahko vnesete odpadke najprej za  prvo tehnološko enoto, nato pa te kopirate. Pri kopiranju v zavihkih ODP_nenevarni_odpadki in ODP_nevarni_odpadki označite le podatke v stolpcu C in jih kopirajte v prazne celice spodaj. Vsebino v praznih celicah v stolpcu B  vnesite tako, da označite blok celic, kjer boste vnesli novo zap.št. tehnološke enote, sledi vnos številke tehnološke enote in potrditev vnosa s CTRL+Enter.  Če imate vrstic z zap. št. tehnoloških enot in odpadki več kot je na voljo vrstic v tabeli posameznega zavihka, je potrebno pred kopiranjem najprej s kliki na gumb Dodaj vrstico dodati toliko vrstic, kot jih potrebujete za vnos podatkov."]
[null,"Po potrebi prilagodite višine vrstic."]
["Ostali Zavihki \"ODP_...\""]
[null,"Glede na vrsto vloge za obdelavo odpadkov izpolnite tudi ostale zavihke, pri katerih je naziv zavihka opredeljen z \"ODP_...\"."]
["Zavihek \"obvezne_priloge\""]
[null,"V stolpcu C kliknite v celico, na desni se pojavi puščica, kliknite nanjo in izberite ustrezno prilogo."]
["Zavihek \"5_druga_dokazila\""]
[null,"V primeru, da boste k vlogi priložili še druga dokazila, ki niso navedena v zavihku \"obvezne_priloge\", jih navedite tu za vsako tehnološko enoto posebej."]
[null,"V stolpec B vnesite številke od 1 naprej, odvisno od števila tehnoloških enot. Zaporedna številka tehnološke enote naj se ponovi tolikokrat, kolikor različnih dokazil boste predložili za posamezno tehnološko enoto."]
["Zavihek \"up_taksa\""]
[null,"Vnesite podatke v celice B12, J15, C21 in H21.  V celico H21 vnesite datum po 1.1.2016. Zakoniti zastopnik ali pooblaščenec se podpiše na tiskano obliko obrazca vloge."]

{"sheet":"stranka","index":2,"n_rows":63,"n_cols":13,"rows_kept":63,"cut":false,"hidden":false,"merged":[[24,1,24,3],[23,1,23,9],[23,10,23,13],[21,4,21,13],[22,1,22,3],[50,1,50,4],[51,9,51,12],[53,9,53,12],[40,1,40,13],[42,1,42,13],[44,1,44,13],[48,1,48,4],[49,2,49,4],[46,1,46,13],[9,1,9,13],[10,1,10,13],[11,1,11,13],[13,1,13,3],[13,4,13,13],[12,1,12,13],[16,2,16,3],[16,4,16,13],[18,2,18,3],[18,4,18,13],[17,2,17,3],[17,4,17,13],[59,2,59,5],[59,7,59,8],[15,4,15,13],[14,1,14,13],[19,2,19,3],[19,4,19,13],[27,2,27,3],[22,4,22,13],[25,4,25,13],[26,4,26,13],[27,4,27,13],[20,10,20,13],[24,4,24,13],[25,1,25,3],[26,2,26,3],[21,1,21,3],[29,1,29,13],[30,1,30,3],[30,4,30,8],[30,9,30,13],[31,1,31,3],[31,4,31,13],[36,1,36,13],[37,1,37,13],[38,1,38,13],[32,1,32,3],[32,4,32,13],[33,1,33,3],[33,4,33,13],[35,1,35,13]]}
[]
[]
[]
[]
[]
[]
[]
[]
[]
[null,"VLOGA ZA IZDAJO/SPREMEMBO OKOLJEVARSTVENEGA DOVOLJENJA ZA UPORABO KOMPOSTA ALI DIGESTATA TER OBDELANEGA BLATA"]
[null,"na podlagi na podlagi 127. člena Zakona o varstvu okolja (Uradni list RS, št. 44/22, 18/23 – ZDU-1O, 78/23 – ZUNPEOVE, 23/24 in 21/25 – ZOPVOOV), 21. člena Uredbe o predelavi biološko razgradljivih odpadkov in uporabi komposta ali digestata (Uradni list RS, št. 99/13, 56/15, 56/18 in 44/22 - ZVO-2) in 7. člena Uredbe o uporabi blata iz komunalnih čistilnih naprav v kmetijstvu (Uradni list RS, št. 62/08 in 44/22 - ZVO-2)"]
[null,"Podatki o stranki                                                                                                                                                                                                                                                    (PRED VNOSOM PODATKOV KLIKNITE NA GUMB \"Omogoči vsebino\" POLEG VARNOSTNEGA OPOZORILA POD MENIJSKO VRSTICO, DA OMOGOČITE IZVAJANJE MAKROJEV, ČE TO NI OMOGOČENO. POTRDITE, DA ŽELITE SPREMENITI TO DATOTEKO V ZAUPANJA VREDEN DOKUMENT.)"]
[]
[null," NAZIV stranke (1):"]
[null," Naslov stranke"]
[null,null,"občina:"]
[null,null,"naselje:"]
[null,null,"ulica:"]
[null,null,"hišna številka:"]
[null,null,"ime pošte:"]
[null,null,"poštna številka:",null," "," "," "," "]
[null,"Davčna številka:"]
[null,"Matična številka:"]
[null,"Registracija za izvajanje dejavnosti (SKD):"]
[null,"Zakoniti zastopnik:"]
[null,"Kontaktna oseba:"]
[null,null,"telefon:"]
[null,null,"e-naslov:"]
[]
[null,"Elektronsko vročanje"]
[null,"Želim elektronsko vročanje (1) ",null,null,"DA(2) ",null,null,null,null,"NE(3) "]
[null,"Naslov elektronskega predala:"]
[null,"Naslov navadnega elektronskega predala:"]
[null,"Mobilna številka (4) "]
[]
[null,"[1] Na podlagi drugega odstavka 86. člena ZUP se lahko  dokumenti vročajo v elektronski obliki. V kolikor elektronski naslov, naveden v prejšnji tabeli, ni enak naslovu za elektronsko vročanje, je treba navesti elektronski naslov za elektronsko vročanje. V primeru, da elektronskega naslova za elektronsko vročanje ne navedete, vam bodo dokumenti vročeni elektronsko na elektronski naslov, iz katerega je bila posredovana vloga. V kolikor imate varen elektronski predla, se navede elektronski naslov varnega e-predala."]
[null,"[2] V kolikor želite elektronsko vročanje, izpolnite ustrezno rubriko. "]
[null,"[3] V kolikor ne želite elektronskega vročanja, predložite izrecno izjavo, da želite vročanje po fizični poti."]
[null,"[4] Mobilna številka se bo uporabila izključno samo za namen elektronskega vročanja."]
[]
[null,"Upravna taksa:"]
[]
[null,"Za vlogo je potrebno v skladu s tar.št. 1 in št. 3 taksne tarife Zakona o upravnih taksah (Uradni list RS, št. 106/10 - uradno prečiščeno besedilo, 14/15 - ZUUJFO, 84/15 - ZZelP-J, 32/16, 30/18 - ZKZaš in 189/20 - ZFRO) plačati upravno takso v višini 22,60 EUR. Upravno takso se plača v gotovini ali z drugim veljavnim plačilnim instrumentom in o plačilu predloži ustrezno potrdilo."]
[]
[null,"Upravna taksa se plača na podračun Ministrstva za okolje, podnebje in energijo, na račun št. 0110-0100-0315-637, referenca 11 25704-7111002-35447025."]
[]
[null,"TAKSE NE PLAČUJEJO:\n  - država in državni organi,\n  - občine in njihovi organi,\n  - javni skladi, javne agencije ter druge osebe javnega prava itd.\nDruge osebe javnega prava so npr. javna podjetja za opravljanje komunalnih dejavnosti v občinah, javni zavodi (npr. osnovne in srednje šole, bolnišnice, NLZOH), itd."]
[]
[null,"vlogo pripravil-a:"]
[]
[]
[null,null,null,null,null,null,null,null,null,"podpis zakonitega zastopnika ali pooblaščenca"]
[]
[]
[]
[]
[]
[]
[]
[null,"V/Na",null,null,null,null," , dne"]
[]
[]
[null,"2025-06-09",null,null,null,null,null,null,null,null,null,null,35447]

{"sheet":"pooblasc","index":3,"n_rows":27,"n_cols":10,"rows_kept":27,"cut":false,"hidden":false,"merged":[[15,2,15,3],[15,4,15,13],[12,1,12,3],[12,4,12,13],[13,1,13,3],[13,4,13,13],[14,2,14,3],[14,4,14,13],[11,1,11,3],[11,4,11,13],[5,2,5,3],[5,4,5,13],[6,2,6,3],[6,4,6,13],[7,2,7,3],[7,4,7,13],[8,2,8,3],[8,4,8,13],[9,10,9,13],[10,1,10,3],[10,4,10,13],[1,1,1,13],[2,1,2,13],[3,1,3,3],[3,4,3,13],[4,1,4,3],[4,4,4,13],[17,1,17,13],[18,1,18,3],[18,4,18,8],[18,9,18,13],[19,1,19,3],[19,4,19,13],[24,1,24,13],[25,1,25,13],[26,1,26,13],[20,1,20,3],[20,4,20,13],[21,1,21,3],[21,4,21,13],[23,1,23,13]]}
[]
[null,"Podatki o pooblaščencu, ki zastopa stranko (2)"]
[null,"Opomba:  (2) - rubrika se izpolni le v primeru, če stranko zastopa pooblaščenec; k vlogi mora biti priloženo pooblastilo stranke"]
[null," Ime oz. naziv pooblaščenca:"]
[null," Naslov oziroma sedež:"]
[null,null,"naselje:"]
[null,null,"ulica:"]
[null,null,"hišna številka:"]
[null,null,"pošta:"]
[null,null,"poštna številka:",null,null," "," "," "]
[null,"Davčna številka:"]
[null,"Matična številka:"]
[null,"Zakoniti zastopnik:"]
[null,"Kontaktna oseba:"]
[null,null,"telefon:"]
[null,null,"e-naslov:"]
[]
[null,"Elektronsko vročanje"]
[null,"Želim elektronsko vročanje (1) ",null,null,"DA(2) ",null,null,null,null,"NE(3) "]
[null,"Naslov elektronskega predala:"]
[null,"Naslov navadnega elektronskega predala:"]
[null,"Mobilna številka (4) "]
[]
[null,"[1] Na podlagi drugega odstavka 86. člena ZUP se lahko  dokumenti vročajo v elektronski obliki. V kolikor elektronski naslov, naveden v prejšnji tabeli, ni enak naslovu za elektronsko vročanje, je treba navesti elektronski naslov za elektronsko vročanje. V primeru, da elektronskega naslova za elektronsko vročanje ne navedete, vam bodo dokumenti vročeni elektronsko na elektronski naslov, iz katerega je bila posredovana vloga. V kolikor imate varen elektronski predla, se navede elektronski naslov varnega e-predala."]
[null,"[2] V kolikor želite elektronsko vročanje, izpolnite ustrezno rubriko. "]
[null,"[3] V kolikor ne želite elektronskega vročanja, predložite izrecno izjavo, da želite vročanje po fizični poti."]
[null,"[4] Mobilna številka se bo uporabila izključno samo za namen elektronskega vročanja."]

{"sheet":"izjava o ne eVročanju","index":4,"n_rows":11,"n_cols":9,"rows_kept":11,"cut":false,"hidden":false,"merged":[[10,1,10,3],[0,0,0,14],[2,0,2,14],[6,8,6,13],[7,5,7,6],[7,8,7,13],[9,1,9,3]]}
["I Z J A V A"]
[]
["Stranka _____________________________, ki jo zastopa ________________________, na podlagi četrtega odstavka 86. člena Zakona o splošnem upravnem postopku (Uradni list RS, št. 24/06 – uradno prečiščeno besedilo, 105/06 – ZUS-1, 126/07, 65/08, 8/10, 82/13, 175/20 – ZIUOPDVE in 3/22 – ZDeb) podaja izjavo, da v zadevi, za katero vlaga predmetno vlogo, želi fizično vročitev vseh dokumentov."]
[]
[]
[]
[]
[null,null,null,null,null,"žig",null,null,"(Ime in priimek zakonitega zastopnika, njegov podpis)"]
[]
["Kraj:"]
["Datum:"]

{"sheet":"vrsta_vloge","index":5,"n_rows":8,"n_cols":2,"rows_kept":8,"cut":false,"hidden":false,"merged":[[1,1,1,2]]}
[]
[null,"Vrsta vloge"]
[]
[null,"Vrsta vloge - ustrezno izbrati:"]
[null,"Številka prvega OVD"]
[null,"Datum izdaje prvega OVD:"]
[null,"Št. in datumi izdaje odločb o spremembi:"]
[null,"Opis spremembe:"]

{"sheet":"Xnaprava","index":6,"n_rows":18,"n_cols":4,"rows_kept":18,"cut":false,"hidden":true,"merged":[[2,1,2,2],[15,1,15,3],[1,1,1,2]]}
[]
[null,"Podatki o napravi"]
[]
[null,"Naziv naprave:"]
[null,"Vrsta naprave - ustrezno izbrati:"]
[null,"Naslov naprave (le če je različen od naslova stranke):"]
[null,"občina:"]
[null,"naselje:"]
[null,"ulica:"]
[null,"hišna številka:"]
[null,"ime pošte:"]
[null,"poštna številka:"]
[null,"Največja proizvodna zmogljivost naprave (t/leto, t/dan, t/uro):"]
[null,"Dejanska zmogljivost naprave (t/leto, t/dan, t/uro):"]
[]
[null,"Podatki o lokaciji naprave"]
[]
[null,"naziv KO","številka KO","številka parcele"]

{"sheet":"Xseznam_teh_enot","index":7,"n_rows":81,"n_cols":8,"rows_kept":81,"cut":false,"hidden":true,"merged":[[1,1,1,5]]}
[]
[null,"Seznam tehnoloških enot ali delov tehnoloških enot"]
[]
[null,"Zap.št. tehn. enote","Naziv tehnološke enote ali dela tehnološke enote","Izpust (zrak)","Iztok (vode)","Obdelava odpadkov (da/ne)"]
[null,null,null,null,null,null,null,{"$f":"B5&F5","v":""}]
[null,null,null,null,null,null,null,{"$f":"B6&F6","v":""}]
[null,null,null,null,null,null,null,""]
[null,null,null,null,null,null,null,""]
[null,null,null,null,null,null,null,""]
[null,null,null,null,null,null,null,""]
[null,null,null,null,null,null,null,""]
[null,null,null,null,null,null,null,""]
[null,null,null,null,null,null,null,""]
[null,null,null,null,null,null,null,""]
[null,null,null,null,null,null,null,{"$f":"B15&F15","v":""}]
[null,null,null,null,null,null,null,""]
[null,null,null,null,null,null,null,""]
[null,null,null,null,null,null,null,""]
[null,null,null,null,null,null,null,""]
[null,null,null,null,null,null,null,""]
[null,null,null,null,null,null,null,""]
[null,null,null,null,null,null,null,""]
[null,null,null,null,null,null,null,""]
[null,null,null,null,null,null,null,""]
[null,null,null,null,null,null,null,""]
[null,null,null,null,null,null,null,""]
[null,null,null,null,null,null,null,""]
[null,null,null,null,null,null,null,""]
[]
[]
[]
[]
[]
[]
[]
[]
[]
[]
[]
[]
[]
[]
[]
[]
[]
[]
[]
[]
[]
[]
[]
[]
[]
[]
[]
[]
[]
[]
[]
[]
[]
[]
[]
[]
[]
[]
[]
[]
[]
[]
[]
[]
[]
[]
[]
[]
[]
[]
[]
[]
[null,null,null,2]

{"sheet":"XODP_teh_enote","index":8,"n_rows":26,"n_cols":22,"rows_kept":26,"cut":false,"hidden":true,"merged":[[3,20,4,20],[1,1,1,11],[0,17,0,18],[1,17,1,18],[3,14,3,19],[3,5,3,7],[3,8,3,10],[3,11,3,13],[3,1,3,4],[2,1,2,20]]}
[]
[null,"1. Podatki o tehnološki enoti oz. napravi (če ni tehnoloških enot) za obdelavo odpadkov"]
[null,"V primeru, da imate veliko število tehnoloških enot za odpadke, morate najprej dodati ustezno število vrstic in nato kliknite na gumb Prenesi enote za odpadke. Ob ponovnem kliku na ta gumb se bodo vpisane številke tehnoloških enot v stolcu B izbrisale."]
[null,"Tehnološka enota",null,null,null,"Največja proizvodna zmogljivost ",null,null,"Dejanska zmogljivost",null,null,"Čas obratovanja",null,null,"Skupne količine odpadkov",null,null,null,null,null,"Postopek obdelave (izbrati eno od možnosti)"]
[null,"Zap. št. tehn. enote","Naziv","Datum začetka obratovanja","Vrsta (ustrezno izbrati)","t / leto","t / dan","t / uro","t / leto","t / dan","t / uro","ure/ dan","dni / teden","dni / leto","obdelana letna količina (t)"," obdelana letna količina nevarnih (t)"," hkrati skladiščenih vseh odpadkov (t)","hkrati skladiščenih vseh odpadkov (z vpisom enote)","hkrati skladiščenih nevarnih odpadkov (t)","hkrati skladiščenih nevarnih odpadkov (z vpisom enote)"]
[null,null,{"$f":"IF(ISNA(VLOOKUP(B6,SEZNAM_TEHN_ENOT,2,FALSE)),\"\",VLOOKUP(B6,SEZNAM_TEHN_ENOT,2,FALSE))","v":""},null,null,null,null,null,null,null,null,null,null,null,null,null,null,null,null,null,null,{"$f":"NOT(ISNA(VLOOKUP(B6&\"da\",QUERY_ENOTE_ZA_ODP,1,FALSE)))","v":false}]
[null,null,"",null,null,null,null,null,null,null,null,null,null,null,null,null,null,null,null,null,null,false]
[null,null,"",null,null,null,null,null,null,null,null,null,null,null,null,null,null,null,null,null,null,false]
[null,null,"",null,null,null,null,null,null,null,null,null,null,null,null,null,null,null,null,null,null,false]
[null,null,"",null,null,null,null,null,null,null,null,null,null,null,null,null,null,null,null,null,null,false]
[null,null,"",null,null,null,null,null,null,null,null,null,null,null,null,null,null,null,null,null,null,false]
[null,null,{"$f":"IF(ISNA(VLOOKUP(B12,SEZNAM_TEHN_ENOT,2,FALSE)),\"\",VLOOKUP(B12,SEZNAM_TEHN_ENOT,2,FALSE))","v":""},null,null,null,null,null,null,null,null,null,null,null,null,null,null,null,null,null,null,false]
[null,null,{"$f":"IF(ISNA(VLOOKUP(B13,SEZNAM_TEHN_ENOT,2,FALSE)),\"\",VLOOKUP(B13,SEZNAM_TEHN_ENOT,2,FALSE))","v":""},null,null,null,null,null,null,null,null,null,null,null,null,null,null,null,null,null,null,false]
[null,null,{"$f":"IF(ISNA(VLOOKUP(B14,SEZNAM_TEHN_ENOT,2,FALSE)),\"\",VLOOKUP(B14,SEZNAM_TEHN_ENOT,2,FALSE))","v":""},null,null,null,null,null,null,null,null,null,null,null,null,null,null,null,null,null,null,false]
[null,null,"",null,null,null,null,null,null,null,null,null,null,null,null,null,null,null,null,null,null,{"$f":"NOT(ISNA(VLOOKUP(B15&\"da\",QUERY_ENOTE_ZA_ODP,1,FALSE)))","v":false}]
[null,null,"",null,null,null,null,null,null,null,null,null,null,null,null,null,null,null,null,null,null,false]
[null,null,"",null,null,null,null,null,null,null,null,null,null,null,null,null,null,null,null,null,null,false]
[null,null,"",null,null,null,null,null,null,null,null,null,null,null,null,null,null,null,null,null,null,false]
[null,null,"",null,null,null,null,null,null,null,null,null,null,null,null,null,null,null,null,null,null,false]
[null,null,"",null,null,null,null,null,null,null,null,null,null,null,null,null,null,null,null,null,null,false]
[null,null,"",null,null,null,null,null,null,null,null,null,null,null,null,null,null,null,null,null,null,false]
[null,null,"",null,null,null,null,null,null,null,null,null,null,null,null,null,null,null,null,null,null,false]
[null,null,"",null,null,null,null,null,null,null,null,null,null,null,null,null,null,null,null,null,null,false]
[null,null,"",null,null,null,null,null,null,null,null,null,null,null,null,null,null,null,null,null,null,false]
[null,null,"",null,null,null,null,null,null,null,null,null,null,null,null,null,null,null,null,null,null,false]
[null,null,"",null,null,null,null,null,null,null,null,null,null,null,null,null,null,null,null,null,null,false]

{"sheet":"Strokovna_ocena","index":9,"n_rows":7,"n_cols":2,"rows_kept":7,"cut":false,"hidden":false,"merged":[[1,1,1,2]]}
[]
[null,"Vnos komposta/digestata/blata čistilne naprave po postopku R 10 - strokovna ocena"]
[]
[null,"Naziv ocene:"]
[null,"Številka ocene:"]
[null,"Datum izdelave ocene:"]
[null,"Izdelovalec ocene:"]

{"sheet":"Lokacije_vnosa_v_tla","index":10,"n_rows":23,"n_cols":14,"rows_kept":23,"cut":false,"hidden":false,"merged":[[2,4,2,12],[1,1,1,12]]}
[]
[null,"Podatki o lokacijah, na katere se bo vnašalo kompost, digestat ali blato iz komunalnih čistilnih naprav po postopku R10"]
[]
[null,"Zap.št. enake rabe in enakih talnih lastnosti","Vnos komposta, digestata ali blata (izbira iz spustnega seznama)","številka KO","naziv KO","Parcelna številka","Površina parcele, predvidene za vnos (m2)","Vnos suhe snovi (v t)","Lastnik ali zakupnik zemljišča (izbira iz spustnega seznama)","Ime in priimek oz. naziv in naslov lastnika ali zakupnika zemljišča","KMG-MID Gerk (kmetijska zemljišča)","Uporaba na nekmetijskih zemljiščih","Občina"]
[null,null,null,null,{"$f":"IF(ISNA(VLOOKUP(D5,SIFRANT_KO,2,FALSE)),\"\",VLOOKUP(D5,SIFRANT_KO,2,FALSE))","v":""},null,null,null,null,null,null,null,null,{"$f":"IF(ISNA(VLOOKUP(M5,SIFRANT_OBCIN,2,FALSE)),\"\",VLOOKUP(M5,SIFRANT_OBCIN,2,FALSE))","v":""}]
[null,null,null,null,"",null,null,null,null,null,null,null,null,""]
[null,null,null,null,"",null,null,null,null,null,null,null,null,""]
[null,null,null,null,"",null,null,null,null,null,null,null,null,""]
[null,null,null,null,"",null,null,null,null,null,null,null,null,""]
[null,null,null,null,"",null,null,null,null,null,null,null,null,""]
[null,null,null,null,"",null,null,null,null,null,null,null,null,""]
[null,null,null,null,"",null,null,null,null,null,null,null,null,""]
[null,null,null,null,"",null,null,null,null,null,null,null,null,""]
[null,null,null,null,"",null,null,null,null,null,null,null,null,""]
[null,null,null,null,"",null,null,null,null,null,null,null,null,""]
[null,null,null,null,"",null,null,null,null,null,null,null,null,""]
[null,null,null,null,"",null,null,null,null,null,null,null,null,""]
[null,null,null,null,"",null,null,null,null,null,null,null,null,""]
[null,null,null,null,"",null,null,null,null,null,null,null,null,""]
[null,null,null,null,"",null,null,null,null,null,null,null,null,""]
[null,null,null,null,"",null,null,null,null,null,null,null,null,""]
[null,null,null,null,"",null,null,null,null,null,null,null,null,{"$f":"IF(ISNA(VLOOKUP(M22,SIFRANT_OBCIN,2,FALSE)),\"\",VLOOKUP(M22,SIFRANT_OBCIN,2,FALSE))","v":""}]
[null,null,null,null,"",null,null,null,null,null,null,null,null,""]

{"sheet":"Kolicine_povrsine","index":11,"n_rows":15,"n_cols":5,"rows_kept":15,"cut":false,"hidden":false,"merged":[[12,1,12,4],[1,1,1,3]]}
[]
[null,"Izračun skupnih količin in površin po vrstah vnosa za kompost, digestat ali blato komunalnih čistilnih naprav                           (se izračuna avtomatsko glede na vnesene podatke spodaj)"]
[]
[null,"Vnos komposta, digestata ali blata (izbira iz spustnega seznama)","Količina komposta za enako rabo in enake talne lastnosti (v tonah suhe snovi):","Površina zemljišča pri enaki rabi in enakih talnih lastnostih: (m2)"]
[null,"1. kompost-1.kakovostni razred-kmetijska zemljišča",{"$f":"SUMIF($C$16:$C$29,B5,$D$16:$D$29)","v":0},{"$f":"SUMIF($C$16:$C$29,B5,$E$16:$E$29)","v":0}]
[null,"2. kompost-1.kakovostni razred-nekmetijska zemljišča",0,0]
[null,"3. kompost-2.kakovostni razred-nekmetijska zemljišča",0,0]
[null,"4. digestat-1.kakovostni razred-kmetijska zemljišča",0,0]
[null,"5. digestat-1.kakovostni razred-nekmetijska zemljišča",0,0]
[null,"6. digestat-2.kakovostni razred-nekmetijska zemljišča",0,0]
[null,"7. blato iz komunalnih čistilnih naprav-kmetijska zemljišča",0,0]
[]
[null,"Vnos skupnih količin in površin po enaki rabi in enakih talnih lastnostih ter po vrstah vnosa za kompost, digestat ali blato KČN"]
[]
[null,"Zap.št. enake rabe in enakih talnih lastnosti","Vnos komposta, digestata ali blata (izbira iz spustnega seznama)","Količina komposta za enako rabo in enake talne lastnosti (v tonah suhe snovi):","Površina zemljišča pri enaki rabi in enakih talnih lastnostih: (m2)"]

{"sheet":"Izvor","index":12,"n_rows":4,"n_cols":5,"rows_kept":4,"cut":false,"hidden":false,"merged":[[1,1,1,4]]}
[]
[null,"Izvor komposta, digestata ali blata iz komunalnih čistilnih naprav"]
[]
[null,"Kompost, digestat ali blato KČN","Naziv upravljavca (kompostarne, bioplinarne ali KČN)","Naziv  (kompostarne, bioplinarne ali KČN)","Lokacija (kompostarne, bioplinarne ali KČN)"]

{"sheet":"XODP_komp_digest","index":13,"n_rows":13,"n_cols":3,"rows_kept":13,"cut":false,"hidden":true,"merged":[[1,1,1,2],[9,1,9,2]]}
[]
[null,"Vnos komposta ali digestata"]
[null,"Opomba Marjana: ali se lahko kakovostni razred izbira iz spusnega seznama?","1. kakovostni razred in 2. kakavostni razred"]
[null,"Skupna količina komposta/digestata (v tonah suhe snovi):","Kakovostni razred komposta/digestata:"]
[]
[]
[]
[]
[]
[null,"Izvor komposta/digestata:"]
[null,"Naziv upravljavca kompostarne/bioplinarne:"]
[null,"Naziv kompostarne/bioplinarne:"]
[null,"Lokacija bioplinarne/kompostarne:"]

{"sheet":"XODP_blato_cn","index":14,"n_rows":4,"n_cols":3,"rows_kept":4,"cut":false,"hidden":true,"merged":[[1,1,1,2]]}
[]
[null,"Uporaba blata iz komunalnih čistilnih naprav v kmetijstvu"]
[]
[null,"Skupna letna količina blata (t):","Kakovostni razred blata:"]

{"sheet":"XODP_nenevarni_odpadki","index":15,"n_rows":104,"n_cols":11,"rows_kept":104,"cut":false,"hidden":true,"merged":[[3,2,3,3],[1,1,1,9],[2,1,2,7]]}
[]
[null,"Nenevarni odpadki, ki se bodo obdelovali"]
[null,"Opomba Marjana: predlog, da se pripravi za stolpec C spustni seznam samo odpadkov iz Uredbe o predelavi biološko razgradljivih odpadkov in uporabi koposta in digestata - Priloga 1 (naj pove Jana), v stolpcu F naj se pripravi spustni seznam samo R kod, ki so relevantne (naj pove Jana), Jana naj odloči ali sta stolpca G in H potrebna. V obstoječih wordovih obrazcih ni seznama odpadkov"]
[null,"Zap. št. tehn. enote","Št. in naziv odpadka (izbira v stolpcu C: spustni seznam)",null,"Opis odpadka","Postopek obdeleve (R,D) (izbira: spustni seznam)","Opis postopka obdelave","Izvor odpadka","Količina odpadka (m3) - umet.prip.zemljina","Volumski odstotek odpadka - umet.prip.zemljina"]
[null,null,null,{"$f":"IF(ISNA(VLOOKUP(C5,SIFRANT_NENEVARNIH_ODPADKOV,2,FALSE)),\"\",VLOOKUP(C5,SIFRANT_NENEVARNIH_ODPADKOV,2,FALSE))","v":""},null,null,null,null,null,null,{"$f":"NOT(ISNA(VLOOKUP(B5&\"da\",QUERY_ENOTE_ZA_ODP,1,FALSE)))","v":false}]
[null,null,null,"",null,null,null,null,null,null,false]
[null,null,null,"",null,null,null,null,null,null,false]
[null,null,null,"",null,null,null,null,null,null,false]
[null,null,null,"",null,null,null,null,null,null,false]
[null,null,null,"",null,null,null,null,null,null,false]
[null,null,null,"",null,null,null,null,null,null,false]
[null,null,null,"",null,null,null,null,null,null,false]
[null,null,null,"",null,null,null,null,null,null,false]
[null,null,null,"",null,null,null,null,null,null,false]
[null,null,null,"",null,null,null,null,null,null,false]
[null,null,null,"",null,null,null,null,null,null,false]
[null,null,null,"",null,null,null,null,null,null,false]
[null,null,null,"",null,null,null,null,null,null,false]
[null,null,null,"",null,null,null,null,null,null,false]
[null,null,null,"",null,null,null,null,null,null,false]
[null,null,null,"",null,null,null,null,null,null,false]
[null,null,null,"",null,null,null,null,null,null,false]
[null,null,null,"",null,null,null,null,null,null,false]
[null,null,null,"",null,null,null,null,null,null,false]
[null,null,null,"",null,null,null,null,null,null,false]
[null,null,null,"",null,null,null,null,null,null,false]
[null,null,null,"",null,null,null,null,null,null,false]
[null,null,null,"",null,null,null,null,null,null,false]
[null,null,null,"",null,null,null,null,null,null,false]
[null,null,null,"",null,null,null,null,null,null,false]
[null,null,null,"",null,null,null,null,null,null,false]
[null,null,null,"",null,null,null,null,null,null,false]
[null,null,null,"",null,null,null,null,null,null,false]
[null,null,null,"",null,null,null,null,null,null,false]
[null,null,null,"",null,null,null,null,null,null,false]
[null,null,null,"",null,null,null,null,null,null,false]
[null,null,null,{"$f":"IF(ISNA(VLOOKUP(C37,SIFRANT_NENEVARNIH_ODPADKOV,2,FALSE)),\"\",VLOOKUP(C37,SIFRANT_NENEVARNIH_ODPADKOV,2,FALSE))","v":""},null,null,null,null,null,null,{"$f":"NOT(ISNA(VLOOKUP(B37&\"da\",QUERY_ENOTE_ZA_ODP,1,FALSE)))","v":false}]
[null,null,null,"",null,null,null,null,null,null,false]
[null,null,null,"",null,null,null,null,null,null,false]
[null,null,null,"",null,null,null,null,null,null,false]
[null,null,null,"",null,null,null,null,null,null,false]
[null,null,null,"",null,null,null,null,null,null,false]
[null,null,null,"",null,null,null,null,null,null,false]
[null,null,null,"",null,null,null,null,null,null,false]
[null,null,null,"",null,null,null,null,null,null,false]
[null,null,null,"",null,null,null,null,null,null,false]
[null,null,null,"",null,null,null,null,null,null,false]
[null,null,null,"",null,null,null,null,null,null,false]
[null,null,null,"",null,null,null,null,null,null,false]
[null,null,null,"",null,null,null,null,null,null,false]
[null,null,null,"",null,null,null,null,null,null,false]
[null,null,null,"",null,null,null,null,null,null,false]
[null,null,null,"",null,null,null,null,null,null,false]
[null,null,null,"",null,null,null,null,null,null,false]
[null,null,null,"",null,null,null,null,null,null,false]
[null,null,null,"",null,null,null,null,null,null,false]
[null,null,null,"",null,null,null,null,null,null,false]
[null,null,null,"",null,null,null,null,null,null,false]
[null,null,null,"",null,null,null,null,null,null,false]
[null,null,null,"",null,null,null,null,null,null,false]
[null,null,null,"",null,null,null,null,null,null,false]
[null,null,null,"",null,null,null,null,null,null,false]
[null,null,null,"",null,null,null,null,null,null,false]
[null,null,null,"",null,null,null,null,null,null,false]
[null,null,null,"",null,null,null,null,null,null,false]
[null,null,null,"",null,null,null,null,null,null,false]
[null,null,null,"",null,null,null,null,null,null,false]
[null,null,null,"",null,null,null,null,null,null,false]
[null,null,null,{"$f":"IF(ISNA(VLOOKUP(C69,SIFRANT_NENEVARNIH_ODPADKOV,2,FALSE)),\"\",VLOOKUP(C69,SIFRANT_NENEVARNIH_ODPADKOV,2,FALSE))","v":""},null,null,null,null,null,null,{"$f":"NOT(ISNA(VLOOKUP(B69&\"da\",QUERY_ENOTE_ZA_ODP,1,FALSE)))","v":false}]
[null,null,null,"",null,null,null,null,null,null,false]
[null,null,null,"",null,null,null,null,null,null,false]
[null,null,null,"",null,null,null,null,null,null,false]
[null,null,null,"",null,null,null,null,null,null,false]
[null,null,null,"",null,null,null,null,null,null,false]
[null,null,null,"",null,null,null,null,null,null,false]
[null,null,null,"",null,null,null,null,null,null,false]
[null,null,null,"",null,null,null,null,null,null,false]
[null,null,null,"",null,null,null,null,null,null,false]
[null,null,null,"",null,null,null,null,null,null,false]
[null,null,null,"",null,null,null,null,null,null,false]
[null,null,null,"",null,null,null,null,null,null,false]
[null,null,null,"",null,null,null,null,null,null,false]
[null,null,null,"",null,null,null,null,null,null,false]
[null,null,null,"",null,null,null,null,null,null,false]
[null,null,null,"",null,null,null,null,null,null,false]
[null,null,null,"",null,null,null,null,null,null,false]
[null,null,null,"",null,null,null,null,null,null,false]
[null,null,null,"",null,null,null,null,null,null,false]
[null,null,null,"",null,null,null,null,null,null,false]
[null,null,null,"",null,null,null,null,null,null,false]
[null,null,null,{"$f":"IF(ISNA(VLOOKUP(C91,SIFRANT_NENEVARNIH_ODPADKOV,2,FALSE)),\"\",VLOOKUP(C91,SIFRANT_NENEVARNIH_ODPADKOV,2,FALSE))","v":""},null,null,null,null,null,null,false]
[null,null,null,"",null,null,null,null,null,null,false]
[null,null,null,"",null,null,null,null,null,null,false]
[null,null,null,{"$f":"IF(ISNA(VLOOKUP(C94,SIFRANT_NENEVARNIH_ODPADKOV,2,FALSE)),\"\",VLOOKUP(C94,SIFRANT_NENEVARNIH_ODPADKOV,2,FALSE))","v":""},null,null,null,null,null,null,{"$f":"NOT(ISNA(VLOOKUP(B94&\"da\",QUERY_ENOTE_ZA_ODP,1,FALSE)))","v":false}]
[null,null,null,"",null,null,null,null,null,null,false]
[null,null,null,"",null,null,null,null,null,null,false]
[null,null,null,"",null,null,null,null,null,null,false]
[null,null,null,"",null,null,null,null,null,null,false]
[null,null,null,"",null,null,null,null,null,null,false]
[null,null,null,"",null,null,null,null,null,null,false]
[null,null,null,"",null,null,null,null,null,null,false]
[null,null,null,"",null,null,null,null,null,null,false]
[null,null,null,"",null,null,null,null,null,null,false]
[null,null,null,"",null,null,null,null,null,null,false]

{"sheet":"XODP_nevarni odpadki","index":16,"n_rows":104,"n_cols":15,"rows_kept":104,"cut":false,"hidden":true,"merged":[[3,2,3,3],[108,1,108,3],[1,1,1,13]]}
[]
[null,"4. Nevarni odpadki, ki se bodo obdelovali"]
[]
[null,"Zap. št. tehn. enote","Št. in naziv odpadka  (izbira v stolpcu C: spustni seznam)",null,"Opis odpadka","Postopek obdeleve (R,D) (izbira: spustni seznam)","Opis postopka obdelave","Izvor odpadka","Sežig - letna količina (t)","Sežig - najmanjši masni pretok (kg/h)","Sežig - največji masni pretok (kg/h)","Sežig - najmanjša kurilna vrednost (MJ/kg)","Sežig - največja kurilna vrednost (MJ/kg)","Sežig - max.vsebnost onesnaževal"]
[null,null,null,{"$f":"IF(ISNA(VLOOKUP(C5,SIFRANT_NEVARNIH_ODPADKOV,2,FALSE)),\"\",VLOOKUP(C5,SIFRANT_NEVARNIH_ODPADKOV,2,FALSE))","v":""},null,null,null,null,null,null,null,null,null,null,{"$f":"NOT(ISNA(VLOOKUP(B5&\"da\",QUERY_ENOTE_ZA_ODP,1,FALSE)))","v":false}]
[null,null,null,"",null,null,null,null,null,null,null,null,null,null,false]
[null,null,null,"",null,null,null,null,null,null,null,null,null,null,false]
[null,null,null,{"$f":"IF(ISNA(VLOOKUP(C8,SIFRANT_NEVARNIH_ODPADKOV,2,FALSE)),\"\",VLOOKUP(C8,SIFRANT_NEVARNIH_ODPADKOV,2,FALSE))","v":""},null,null,null,null,null,null,null,null,null,null,false]
[null,null,null,"",null,null,null,null,null,null,null,null,null,null,false]
[null,null,null,"",null,null,null,null,null,null,null,null,null,null,false]
[null,null,null,"",null,null,null,null,null,null,null,null,null,null,false]
[null,null,null,"",null,null,null,null,null,null,null,null,null,null,false]
[null,null,null,"",null,null,null,null,null,null,null,null,null,null,false]
[null,null,null,"",null,null,null,null,null,null,null,null,null,null,false]
[null,null,null,"",null,null,null,null,null,null,null,null,null,null,false]
[null,null,null,"",null,null,null,null,null,null,null,null,null,null,false]
[null,null,null,"",null,null,null,null,null,null,null,null,null,null,false]
[null,null,null,"",null,null,null,null,null,null,null,null,null,null,false]
[null,null,null,"",null,null,null,null,null,null,null,null,null,null,false]
[null,null,null,"",null,null,null,null,null,null,null,null,null,null,false]
[null,null,null,"",null,null,null,null,null,null,null,null,null,null,false]
[null,null,null,"",null,null,null,null,null,null,null,null,null,null,false]
[null,null,null,"",null,null,null,null,null,null,null,null,null,null,false]
[null,null,null,"",null,null,null,null,null,null,null,null,null,null,false]
[null,null,null,"",null,null,null,null,null,null,null,null,null,null,false]
[null,null,null,"",null,null,null,null,null,null,null,null,null,null,false]
[null,null,null,"",null,null,null,null,null,null,null,null,null,null,false]
[null,null,null,"",null,null,null,null,null,null,null,null,null,null,false]
[null,null,null,"",null,null,null,null,null,null,null,null,null,null,false]
[null,null,null,"",null,null,null,null,null,null,null,null,null,null,false]
[null,null,null,"",null,null,null,null,null,null,null,null,null,null,false]
[null,null,null,"",null,null,null,null,null,null,null,null,null,null,false]
[null,null,null,"",null,null,null,null,null,null,null,null,null,null,false]
[null,null,null,"",null,null,null,null,null,null,null,null,null,null,false]
[null,null,null,"",null,null,null,null,null,null,null,null,null,null,false]
[null,null,null,"",null,null,null,null,null,null,null,null,null,null,false]
[null,null,null,{"$f":"IF(ISNA(VLOOKUP(C37,SIFRANT_NEVARNIH_ODPADKOV,2,FALSE)),\"\",VLOOKUP(C37,SIFRANT_NEVARNIH_ODPADKOV,2,FALSE))","v":""},null,null,null,null,null,null,null,null,null,null,{"$f":"NOT(ISNA(VLOOKUP(B37&\"da\",QUERY_ENOTE_ZA_ODP,1,FALSE)))","v":false}]
[null,null,null,"",null,null,null,null,null,null,null,null,null,null,false]
[null,null,null,"",null,null,null,null,null,null,null,null,null,null,false]
[null,null,null,"",null,null,null,null,null,null,null,null,null,null,false]
[null,null,null,"",null,null,null,null,null,null,null,null,null,null,false]
[null,null,null,"",null,null,null,null,null,null,null,null,null,null,false]
[null,null,null,"",null,null,null,null,null,null,null,null,null,null,false]
[null,null,null,"",null,null,null,null,null,null,null,null,null,null,false]
[null,null,null,"",null,null,null,null,null,null,null,null,null,null,false]
[null,null,null,"",null,null,null,null,null,null,null,null,null,null,false]
[null,null,null,"",null,null,null,null,null,null,null,null,null,null,false]
[null,null,null,"",null,null,null,null,null,null,null,null,null,null,false]
[null,null,null,"",null,null,null,null,null,null,null,null,null,null,false]
[null,null,null,"",null,null,null,null,null,null,null,null,null,null,false]
[null,null,null,"",null,null,null,null,null,null,null,null,null,null,false]
[null,null,null,"",null,null,null,null,null,null,null,null,null,null,false]
[null,null,null,"",null,null,null,null,null,null,null,null,null,null,false]
[null,null,null,"",null,null,null,null,null,null,null,null,null,null,false]
[null,null,null,"",null,null,null,null,null,null,null,null,null,null,false]
[null,null,null,"",null,null,null,null,null,null,null,null,null,null,false]
[null,null,null,"",null,null,null,null,null,null,null,null,null,null,false]
[null,null,null,"",null,null,null,null,null,null,null,null,null,null,false]
[null,null,null,"",null,null,null,null,null,null,null,null,null,null,false]
[null,null,null,"",null,null,null,null,null,null,null,null,null,null,false]
[null,null,null,"",null,null,null,null,null,null,null,null,null,null,false]
[null,null,null,"",null,null,null,null,null,null,null,null,null,null,false]
[null,null,null,"",null,null,null,null,null,null,null,null,null,null,false]
[null,null,null,"",null,null,null,null,null,null,null,null,null,null,false]
[null,null,null,"",null,null,null,null,null,null,null,null,null,null,false]
[null,null,null,"",null,null,null,null,null,null,null,null,null,null,false]
[null,null,null,"",null,null,null,null,null,null,null,null,null,null,false]
[null,null,null,"",null,null,null,null,null,null,null,null,null,null,false]
[null,null,null,{"$f":"IF(ISNA(VLOOKUP(C69,SIFRANT_NEVARNIH_ODPADKOV,2,FALSE)),\"\",VLOOKUP(C69,SIFRANT_NEVARNIH_ODPADKOV,2,FALSE))","v":""},null,null,null,null,null,null,null,null,null,null,{"$f":"NOT(ISNA(VLOOKUP(B69&\"da\",QUERY_ENOTE_ZA_ODP,1,FALSE)))","v":false}]
[null,null,null,"",null,null,null,null,null,null,null,null,null,null,false]
[null,null,null,"",null,null,null,null,null,null,null,null,null,null,false]
[null,null,null,"",null,null,null,null,null,null,null,null,null,null,false]
[null,null,null,"",null,null,null,null,null,null,null,null,null,null,false]
[null,null,null,"",null,null,null,null,null,null,null,null,null,null,false]
[null,null,null,"",null,null,null,null,null,null,null,null,null,null,false]
[null,null,null,"",null,null,null,null,null,null,null,null,null,null,false]
[null,null,null,"",null,null,null,null,null,null,null,null,null,null,false]
[null,null,null,"",null,null,null,null,null,null,null,null,null,null,false]
[null,null,null,"",null,null,null,null,null,null,null,null,null,null,false]
[null,null,null,"",null,null,null,null,null,null,null,null,null,null,false]
[null,null,null,"",null,null,null,null,null,null,null,null,null,null,false]
[null,null,null,"",null,null,null,null,null,null,null,null,null,null,false]
[null,null,null,"",null,null,null,null,null,null,null,null,null,null,false]
[null,null,null,"",null,null,null,null,null,null,null,null,null,null,false]
[null,null,null,"",null,null,null,null,null,null,null,null,null,null,false]
[null,null,null,"",null,null,null,null,null,null,null,null,null,null,false]
[null,null,null,"",null,null,null,null,null,null,null,null,null,null,false]
[null,null,null,"",null,null,null,null,null,null,null,null,null,null,false]
[null,null,null,"",null,null,null,null,null,null,null,null,null,null,false]
[null,null,null,"",null,null,null,null,null,null,null,null,null,null,false]
[null,null,null,"",null,null,null,null,null,null,null,null,null,null,false]
[null,null,null,"",null,null,null,null,null,null,null,null,null,null,false]
[null,null,null,"",null,null,null,null,null,null,null,null,null,null,false]
[null,null,null,"",null,null,null,null,null,null,null,null,null,null,false]
[null,null,null,"",null,null,null,null,null,null,null,null,null,null,false]
[null,null,null,{"$f":"IF(ISNA(VLOOKUP(C96,SIFRANT_NEVARNIH_ODPADKOV,2,FALSE)),\"\",VLOOKUP(C96,SIFRANT_NEVARNIH_ODPADKOV,2,FALSE))","v":""},null,null,null,null,null,null,null,null,null,null,false]
[null,null,null,"",null,null,null,null,null,null,null,null,null,null,false]
[null,null,null,"",null,null,null,null,null,null,null,null,null,null,false]
[null,null,null,{"$f":"IF(ISNA(VLOOKUP(C99,SIFRANT_NEVARNIH_ODPADKOV,2,FALSE)),\"\",VLOOKUP(C99,SIFRANT_NEVARNIH_ODPADKOV,2,FALSE))","v":""},null,null,null,null,null,null,null,null,null,null,{"$f":"NOT(ISNA(VLOOKUP(B99&\"da\",QUERY_ENOTE_ZA_ODP,1,FALSE)))","v":false}]
[null,null,null,"",null,null,null,null,null,null,null,null,null,null,false]
[null,null,null,"",null,null,null,null,null,null,null,null,null,null,false]
[null,null,null,"",null,null,null,null,null,null,null,null,null,null,false]
[null,null,null,"",null,null,null,null,null,null,null,null,null,null,false]
[null,null,null,"",null,null,null,null,null,null,null,null,null,null,false]

{"sheet":"XODP_vnos_zemlj","index":17,"n_rows":11,"n_cols":2,"rows_kept":11,"cut":false,"hidden":true,"merged":[[1,1,1,2]]}
[]
[null,"5. Vnos zemljine po postopku R 10"]
[]
[null,"Prosilec-vlagatelj je (izbrati možnostiz spustnega seznama):"]
[null,"Namen vnosa:"]
[null,"Predviden način vnosa:"]
[null,"Umetno pripravljena zemljina - št. OVD:"]
[null,"Umetno pripravljena zemljina - datum izdaje OVD:"]
[null,"Umetno pripravljena zemljina - skupna količina zemljine (m3):"]
[null,"Zemeljski izkop - skupna količina zemljine (m3):"]
[null,"Zmogljivost objekta (m3):"]

{"sheet":"XODP_vnos_zemlj_ocena","index":18,"n_rows":9,"n_cols":2,"rows_kept":9,"cut":false,"hidden":true,"merged":[[1,1,1,2]]}
[]
[null,"6. Vnos zemljine po postopku R 10 - ocena kakovosti"]
[]
[null,"Naziv ocene:"]
[null,"Številka ocene:"]
[null,"Datum izdelave ocene:"]
[null,"Datum vzorčenja:"]
[null,"Izdelovalec ocene:"]
[null,"Kraj izkopa:"]

{"sheet":"ODP_obvezne_priloge","index":19,"n_rows":16,"n_cols":5,"rows_kept":16,"cut":false,"hidden":false,"merged":[]}
[]
[null,null,"Priloge k vlogi - obvezna priložena dokazila "]
[]
[null,null,"Naziv priloge                                                                                                                                                                                                                                                                                                                                                              "]
[null,null,null,{"$f":"IF(ISNA(VLOOKUP(C5,SIFRANT_PRILOG,3,FALSE)),\"\",VLOOKUP(C5,SIFRANT_PRILOG,3,FALSE))","v":""}]
[null,null,null,{"$f":"IF(ISNA(VLOOKUP(C6,SIFRANT_PRILOG,3,FALSE)),\"\",VLOOKUP(C6,SIFRANT_PRILOG,3,FALSE))","v":""}]
[null,null,null,{"$f":"IF(ISNA(VLOOKUP(C7,SIFRANT_PRILOG,3,FALSE)),\"\",VLOOKUP(C7,SIFRANT_PRILOG,3,FALSE))","v":""}]
[null,null,null,{"$f":"IF(ISNA(VLOOKUP(C8,SIFRANT_PRILOG,3,FALSE)),\"\",VLOOKUP(C8,SIFRANT_PRILOG,3,FALSE))","v":""}]
[]
[null,null,null,null,"Marjana:"]
[null,null,null,null,"iz obveznih prilog brisati:"]
[null,null,null,null,"01., 02, 03, 04, 07.1-07.4."]
[null,null,null,null,"spremniti:"]
[null,null,null,null,"pri 08.02 se naj tekst spremini v: Strokovna ocena o možnem namenu uporabe"]
[null,null,null,null,"dodati:"]
[null,null,null,null,"doda naj se obvezna priloga: Specifikacija komposta/digestata"]

{"sheet":"ODP_druga_dok","index":20,"n_rows":33,"n_cols":4,"rows_kept":33,"cut":false,"hidden":false,"merged":[[1,1,1,2]]}
[]
[null,"Druga priložena dokazila "]
[]
[null,"Zap.št. dokumenta","Dokazilo (naziv, št. dokazila, datum izdaje, izdajatelj, itd.)                                                                                                                                                                                                                                                                                                                                             "]
[null,null,null,{"$f":"NOT(ISNA(VLOOKUP(B5&\"da\",QUERY_ENOTE_ZA_ODP,1,FALSE)))","v":false}]
[null,null,null,false]
[null,null,null,false]
[null,null,null,false]
[null,null,null,false]
[null,null,null,false]
[null,null,null,false]
[null,null,null,false]
[null,null,null,false]
[null,null,null,false]
[null,null,null,false]
[null,null,null,false]
[null,null,null,false]
[null,null,null,false]
[null,null,null,false]
[null,null,null,false]
[null,null,null,false]
[null,null,null,false]
[null,null,null,false]
[null,null,null,false]
[null,null,null,false]
[null,null,null,false]
[null,null,null,false]
[null,null,null,false]
[null,null,null,false]
[null,null,null,{"$f":"NOT(ISNA(VLOOKUP(B30&\"da\",QUERY_ENOTE_ZA_ODP,1,FALSE)))","v":false}]
[null,null,null,false]
[null,null,null,false]
[null,null,null,false]

{"sheet":"Sifrant_KO","index":21,"n_rows":2697,"n_cols":3,"rows_kept":2697,"cut":false,"hidden":true,"merged":[]}
["KO","Naziv","Občina"]
[1,"HODOŠ","MURSKA SOBOTA"]
[2,"SUHI VRH","MURSKA SOBOTA"]
[3,"DOLENCI","MURSKA SOBOTA"]
[4,"BUDINCI","MURSKA SOBOTA"]
[5,"MARKOVCI","MURSKA SOBOTA"]
[6,"ČEPINCI","MURSKA SOBOTA"]
[7,"LUCOVA","MURSKA SOBOTA"]
[8,"NERADNOVCI","MURSKA SOBOTA"]
[9,"MARTINJE","MURSKA SOBOTA"]
[10,"BOREČA","MURSKA SOBOTA"]
[11,"ŽENAVLJE","MURSKA SOBOTA"]
[12,"ŠULINCI","MURSKA SOBOTA"]
[13,"STANJEVCI","MURSKA SOBOTA"]
[14,"GORNJI PETROVCI","MURSKA SOBOTA"]
[15,"ADRIJANCI","MURSKA SOBOTA"]
[16,"PESKOVCI","MURSKA SOBOTA"]
[17,"ŠALOVCI","MURSKA SOBOTA"]
[18,"KRPLIVNIK","MURSKA SOBOTA"]
[19,"DOMANJŠEVCI","MURSKA SOBOTA"]
[20,"KRIŽEVCI","MURSKA SOBOTA"]
[21,"PANOVCI","MURSKA SOBOTA"]
[22,"KUKEČ","MURSKA SOBOTA"]
[23,"TRDKOVA","MURSKA SOBOTA"]
[24,"MATJAŠEVCI","MURSKA SOBOTA"]
[25,"DOLIČ","MURSKA SOBOTA"]
[26,"KUZMA","MURSKA SOBOTA"]
[27,"GORNJI SLAVEČI","MURSKA SOBOTA"]
[28,"SOTINA","MURSKA SOBOTA"]
[29,"SERDICA","MURSKA SOBOTA"]
[30,"OCINJE","MURSKA SOBOTA"]
[31,"KRAMAROVCI","MURSKA SOBOTA"]
[32,"NUSKOVA","MURSKA SOBOTA"]
[33,"ROGAŠOVCI","MURSKA SOBOTA"]
[34,"SVETI JURIJ","MURSKA SOBOTA"]
[35,"FIKŠINCI","MURSKA SOBOTA"]
[36,"VEČESLAVCI","MURSKA SOBOTA"]
[37,"DOLNJI SLAVEČI","MURSKA SOBOTA"]
[38,"GRAD","MURSKA SOBOTA"]
[39,"VIDONCI","MURSKA SOBOTA"]
[40,"OTOVCI","MURSKA SOBOTA"]
[41,"MAČKOVCI","MURSKA SOBOTA"]
[42,"PROSEČKA VAS","MURSKA SOBOTA"]
[43,"KOVAČEVCI","MURSKA SOBOTA"]
[44,"POZNANOVCI","MURSKA SOBOTA"]
[45,"RADOVCI","MURSKA SOBOTA"]
[46,"KRUPLIVNIK","MURSKA SOBOTA"]
[47,"MOTOVILCI","MURSKA SOBOTA"]
[48,"PERTOČA","MURSKA SOBOTA"]
[49,"ROPOČA","MURSKA SOBOTA"]
[50,"GERLINCI","MURSKA SOBOTA"]
[51,"KRAŠČI","MURSKA SOBOTA"]
[52,"VADARCI","MURSKA SOBOTA"]
[53,"BODONCI","MURSKA SOBOTA"]
[54,"PEČAROVCI","MURSKA SOBOTA"]
[55,"DANKOVCI","MURSKA SOBOTA"]
[56,"KUŠTANOVCI","MURSKA SOBOTA"]
[57,"KOŠAROVCI","MURSKA SOBOTA"]
[58,"DOLINA","MURSKA SOBOTA"]
[59,"MOŠČANCI","MURSKA SOBOTA"]
[60,"VANEČA","MURSKA SOBOTA"]
[61,"ŠALAMENCI","MURSKA SOBOTA"]
[62,"ZENKOVCI","MURSKA SOBOTA"]
[64,"BEZNOVCI","MURSKA SOBOTA"]
[65,"TOPOLOVCI","MURSKA SOBOTA"]
[66,"DOMAJINCI","MURSKA SOBOTA"]
[67,"GORNJI ČRNCI","MURSKA SOBOTA"]
[68,"KOROVCI","MURSKA SOBOTA"]
[69,"CANKOVA","MURSKA SOBOTA"]
[70,"SKAKOVCI","MURSKA SOBOTA"]
[71,"STRUKOVCI","MURSKA SOBOTA"]
[72,"PUŽEVCI","MURSKA SOBOTA"]
[73,"LEMERJE","MURSKA SOBOTA"]
[74,"BREZOVCI","MURSKA SOBOTA"]
[75,"PREDANOVCI","MURSKA SOBOTA"]
[76,"GORICA","MURSKA SOBOTA"]
[77,"PUCONCI","MURSKA SOBOTA"]
[78,"SEBEBORCI","MURSKA SOBOTA"]
[79,"BOKRAČI","MURSKA SOBOTA"]
[80,"KRNCI","MURSKA SOBOTA"]
[81,"IVANOVCI","MURSKA SOBOTA"]
[82,"KANČEVCI","MURSKA SOBOTA"]
[83,"LONČAROVCI","MURSKA SOBOTA"]
[84,"RATKOVCI","MURSKA SOBOTA"]
[85,"BERKOVCI","MURSKA SOBOTA"]
[86,"IVANJŠEVCI","MURSKA SOBOTA"]
[87,"SREDIŠČE","MURSKA SOBOTA"]
[88,"PROSENJAKOVCI","MURSKA SOBOTA"]
[89,"SELO","MURSKA SOBOTA"]
[90,"FOKOVCI","MURSKA SOBOTA"]
[91,"ANDREJCI","MURSKA SOBOTA"]
[92,"MORAVCI","MURSKA SOBOTA"]
[93,"TEŠANOVCI","MURSKA SOBOTA"]
[94,"VUČJA GOMILA","MURSKA SOBOTA"]
[95,"ČIKEČKA VAS","MURSKA SOBOTA"]
[96,"PORDAŠINCI","MURSKA SOBOTA"]
[97,"MOTVARJEVCI","MURSKA SOBOTA"]
[98,"BUKOVNICA","MURSKA SOBOTA"]
[99,"FILOVCI","MURSKA SOBOTA"]
[100,"BOGOJINA","MURSKA SOBOTA"]
[101,"IVANCI","MURSKA SOBOTA"]
[102,"MLAJTINCI","MURSKA SOBOTA"]
[103,"LUKAČEVCI","MURSKA SOBOTA"]
[104,"RAKIČAN","MURSKA SOBOTA"]
[105,"MURSKA SOBOTA","MURSKA SOBOTA"]
[106,"NORŠINCI","MURSKA SOBOTA"]
[107,"MARTJANCI","MURSKA SOBOTA"]
[108,"NEMČAVCI","MURSKA SOBOTA"]
[109,"MARKIŠAVCI","MURSKA SOBOTA"]
[110,"POLANA","MURSKA SOBOTA"]
[111,"ČERNELAVCI","MURSKA SOBOTA"]
[112,"VEŠČICA","MURSKA SOBOTA"]
[113,"KUPŠINCI","MURSKA SOBOTA"]
[114,"VANČA VAS","MURSKA SOBOTA"]
[115,"RANKOVCI","MURSKA SOBOTA"]
[116,"BOREJCI","MURSKA SOBOTA"]
[117,"KRAJNA","MURSKA SOBOTA"]
[118,"GEDEROVCI","MURSKA SOBOTA"]
[119,"SODIŠINCI","MURSKA SOBOTA"]
[120,"MURSKI PETROVCI","MURSKA SOBOTA"]
[121,"PETANJCI","MURSKA SOBOTA"]
[122,"TIŠINA","MURSKA SOBOTA"]
[123,"TROPOVCI","MURSKA SOBOTA"]
[124,"GRADIŠČE","MURSKA SOBOTA"]
[125,"MURSKI ČRNCI","MURSKA SOBOTA"]
[126,"SATAHOVCI","MURSKA SOBOTA"]
[127,"KROG","MURSKA SOBOTA"]
[128,"BAKOVCI","MURSKA SOBOTA"]
[129,"GANČANI","MURSKA SOBOTA"]
[130,"LIPA","MURSKA SOBOTA"]
[131,"BELTINCI","MURSKA SOBOTA"]
[132,"BRATONCI","MURSKA SOBOTA"]
[133,"LIPOVCI","MURSKA SOBOTA"]
[134,"DOKLEŽOVJE","MURSKA SOBOTA"]
[135,"IŽAKOVCI","MURSKA SOBOTA"]
[136,"MELINCI","MURSKA SOBOTA"]
[137,"ODRANCI","LENDAVA"]
[138,"TRNJE V PREKMURJU","LENDAVA"]
[139,"ŽIŽKI","LENDAVA"]
[140,"ČRENŠOVCI","LENDAVA"]
[141,"GORNJA BISTRICA","LENDAVA"]
[142,"SREDNJA BISTRICA","LENDAVA"]
[143,"DOLNJA BISTRICA","LENDAVA"]
[144,"KOBILJE","LENDAVA"]
[145,"ŽITKOVCI","LENDAVA"]
[146,"DOBROVNIK","LENDAVA"]
[147,"STREHOVCI","LENDAVA"]
[148,"RENKOVCI","LENDAVA"]
[149,"TURNIŠČE","LENDAVA"]
[150,"GOMILICA","LENDAVA"]
[151,"BREZOVICA V PREKMURJU","LENDAVA"]
[152,"NEDELICA","LENDAVA"]
[153,"RADMOŽANCI","LENDAVA"]
[154,"KAMOVCI","LENDAVA"]
[155,"GENTEROVCI","LENDAVA"]
[156,"MOSTJE PRI LENDAVI","LENDAVA"]
[157,"DOLGA VAS PRI LENDAVI","LENDAVA"]
[158,"BANUTA","LENDAVA"]
[159,"MALA POLANA","LENDAVA"]
[160,"VELIKA POLANA","LENDAVA"]
[161,"HOTIZA","LENDAVA"]
[162,"KAPCA","LENDAVA"]
[163,"KOT PRI MURI","LENDAVA"]
[164,"GABERJE","LENDAVA"]
[165,"LAKOŠ","LENDAVA"]
[166,"LENDAVA","LENDAVA"]
[167,"ČENTIBA","LENDAVA"]
[168,"DOLINA PRI LENDAVI","LENDAVA"]
[169,"PETIŠOVCI","LENDAVA"]
[170,"PINCE","LENDAVA"]
[171,"VRATJI VRH","GORNJA RADGONA"]
[172,"VRATJA VAS","GORNJA RADGONA"]
[173,"PODGORJE","GORNJA RADGONA"]
[174,"KONJIŠČE","GORNJA RADGONA"]
[175,"DROBTINCI","GORNJA RADGONA"]
[176,"GRABE","GORNJA RADGONA"]
[177,"NASOVA","GORNJA RADGONA"]
[178,"ŽIBERCI","GORNJA RADGONA"]
[179,"ŽEPOVCI","GORNJA RADGONA"]
[180,"ČRNCI","GORNJA RADGONA"]
[181,"APAČE","GORNJA RADGONA"]
[182,"SEGOVCI","GORNJA RADGONA"]
[183,"LUTVERCI","GORNJA RADGONA"]
[184,"GORNJA RADGONA","GORNJA RADGONA"]
[186,"MELE","GORNJA RADGONA"]
[187,"ČREŠNJEVCI","GORNJA RADGONA"]
[188,"POLICE","GORNJA RADGONA"]
[189,"HERCEGOVŠČAK","GORNJA RADGONA"]
[190,"LOMANOŠE","GORNJA RADGONA"]
[191,"PLITVICA","GORNJA RADGONA"]
[192,"PLITVIČKI VRH","GORNJA RADGONA"]
[193,"SPODNJA ŠČAVNICA","GORNJA RADGONA"]
[194,"LASTOMERCI","GORNJA RADGONA"]
[195,"ZBIGOVCI","GORNJA RADGONA"]
[196,"OREHOVSKI VRH","GORNJA RADGONA"]
[197,"OREHOVCI","GORNJA RADGONA"]
[198,"BORAČEVA","GORNJA RADGONA"]
[199,"ŠRATOVCI","GORNJA RADGONA"]
[200,"RADENCI","GORNJA RADGONA"]
[201,"RIHTAROVCI","GORNJA RADGONA"]
[202,"KAPELSKI VRH","GORNJA RADGONA"]
[203,"OČESLAVCI","GORNJA RADGONA"]
[204,"JANŽEV VRH","GORNJA RADGONA"]
[205,"STAVEŠINCI","GORNJA RADGONA"]
[206,"IVANJŠEVCI","GORNJA RADGONA"]
[207,"RADVENCI","GORNJA RADGONA"]
[208,"NEGOVA","GORNJA RADGONA"]
[209,"KUNOVA","GORNJA RADGONA"]
[210,"GORNJI IVANJCI","GORNJA RADGONA"]
[211,"SPODNJI IVANJCI","GORNJA RADGONA"]
[212,"OKOSLAVCI","GORNJA RADGONA"]
[213,"DRAGOTINCI","GORNJA RADGONA"]
[214,"ROŽIČKI VRH","GORNJA RADGONA"]
[215,"STANETINCI","GORNJA RADGONA"]
[216,"HRAŠENSKI-RAČKI VRH","GORNJA RADGONA"]
[217,"MURŠČAK","GORNJA RADGONA"]
[218,"HRASTJE-MOTA","GORNJA RADGONA"]
[219,"MURSKI VRH","GORNJA RADGONA"]
[220,"SELIŠČI","GORNJA RADGONA"]
[221,"SLAPTINCI","GORNJA RADGONA"]
[222,"JAMNA","GORNJA RADGONA"]
[223,"BLAGUŠ","GORNJA RADGONA"]
[224,"GRABONOŠ","GORNJA RADGONA"]
[225,"KRALJEVCI","GORNJA RADGONA"]
[226,"SOVJAK","GORNJA RADGONA"]
[227,"TERBEGOVCI","GORNJA RADGONA"]
[228,"GALUŠAK","GORNJA RADGONA"]
[229,"KOKOLAJNŠČAK","GORNJA RADGONA"]
[230,"VUČJA VAS","LJUTOMER"]
[231,"BUČEČOVCI","LJUTOMER"]
[232,"STARA NOVA VAS","LJUTOMER"]
[233,"BUNČANI","LJUTOMER"]
[234,"VERŽEJ","LJUTOMER"]
[235,"ILJAŠEVCI","LJUTOMER"]
[236,"KRIŽEVCI","LJUTOMER"]
[237,"GRLAVA","LJUTOMER"]
[238,"KRIŠTANCI","LJUTOMER"]
[239,"KRAPJE","LJUTOMER"]
[240,"MOTA","LJUTOMER"]
[241,"CVEN","LJUTOMER"]
[242,"BABINCI","LJUTOMER"]
[243,"NORŠINCI","LJUTOMER"]
[244,"LUKAVCI","LJUTOMER"]
[245,"KLJUČAROVCI PRI LJUTOMERU","LJUTOMER"]
[246,"BORECI","LJUTOMER"]
[247,"LOGAROVCI","LJUTOMER"]
[248,"PRECETINCI","LJUTOMER"]
[249,"KURŠINCI","LJUTOMER"]
[250,"BERKOVCI","LJUTOMER"]
[251,"BOLEHNEČICI","LJUTOMER"]
[252,"BUČKOVCI","LJUTOMER"]
[253,"DRAKOVCI","LJUTOMER"]
[254,"MORAVCI","LJUTOMER"]
[255,"GODEMARCI","LJUTOMER"]
[256,"RADOSLAVCI","LJUTOMER"]
[257,"BRANOSLAVCI","LJUTOMER"]
[258,"CEZANJEVCI","LJUTOMER"]
[259,"LJUTOMER","LJUTOMER"]
[260,"KAMENŠČAK","LJUTOMER"]
[261,"STARA CESTA","LJUTOMER"]
[262,"DESNJAK","LJUTOMER"]
[263,"MEKOTNJAK","LJUTOMER"]
[264,"RADOMERJE","LJUTOMER"]
[265,"GRESOVŠČAK","LJUTOMER"]
[266,"PLEŠIVICA","LJUTOMER"]
[267,"ILOVCI","LJUTOMER"]
[268,"SLAMNJAK","LJUTOMER"]
[269,"RINČETOVA GRABA","LJUTOMER"]
[270,"NUNSKA GRABA","LJUTOMER"]
[271,"PRESIKA","LJUTOMER"]
[272,"STROČJA VAS","LJUTOMER"]
[273,"PRISTAVA","LJUTOMER"]
[274,"GLOBOKA","LJUTOMER"]
[275,"VEŠČICA","LJUTOMER"]
[276,"RAZKRIŽJE","LJUTOMER"]
[277,"ŠAFARSKO","LJUTOMER"]
[278,"GIBINA","LJUTOMER"]
[279,"TRNOVCI","ORMOŽ"]
[280,"RUCMANCI","ORMOŽ"]
[281,"RAKOVCI","ORMOŽ"]
[282,"SAVCI","ORMOŽ"]
[283,"TOMAŽ","ORMOŽ"]
[284,"MALA VAS","ORMOŽ"]
[285,"BRATONEČICE","ORMOŽ"]
[286,"SENIK PRI TOMAŽU","ORMOŽ"]
[287,"KLJUČAROVCI PRI ORMOŽU","ORMOŽ"]
[288,"KORAČICE","ORMOŽ"]
[289,"PRŠETINCI","ORMOŽ"]
[290,"LAHONCI","ORMOŽ"]
[291,"ŽVAB","ORMOŽ"]
[292,"RUNEČ","ORMOŽ"]
[293,"STANOVNO","ORMOŽ"]
[294,"IVANJKOVCI","ORMOŽ"]
[295,"ŽEROVINCI","ORMOŽ"]
[296,"CEROVEC - STANKA VRAZA","ORMOŽ"]
[297,"VELIČANE","ORMOŽ"]
[298,"MIHALOVCI","ORMOŽ"]
[299,"MALI BREBROVNIK","ORMOŽ"]
[300,"VELIKI BREBROVNIK","ORMOŽ"]
[301,"VINSKI VRH","ORMOŽ"]
[302,"MIKLAVŽ","ORMOŽ"]
[303,"HERMANCI","ORMOŽ"]
[304,"GOMILA","ORMOŽ"]
[305,"KOG","ORMOŽ"]
[306,"VUZMETINCI","ORMOŽ"]
[307,"KAJŽAR","ORMOŽ"]
[308,"ZASAVCI","ORMOŽ"]
[309,"LAČAVES","ORMOŽ"]
[310,"JASTREBCI","ORMOŽ"]
[311,"VODRANCI","ORMOŽ"]
[312,"VITAN","ORMOŽ"]
[313,"ŠALOVCI PRI SREDIŠČU","ORMOŽ"]
[314,"HUM","ORMOŽ"]
[315,"PAVLOVSKI VRH","ORMOŽ"]
[316,"LIBANJA","ORMOŽ"]
[317,"PAVLOVCI","ORMOŽ"]
[318,"HARDEK","ORMOŽ"]
[319,"LITMERK","ORMOŽ"]
[320,"LEŠNICA PRI ORMOŽU","ORMOŽ"]
[321,"ŠARDINJE","ORMOŽ"]
[322,"VIČANCI","ORMOŽ"]
[323,"SENEŠCI","ORMOŽ"]
[324,"SODINCI","ORMOŽ"]
[325,"STRJANCI","ORMOŽ"]
[326,"BRESNICA","ORMOŽ"]
[327,"PODGORCI","ORMOŽ"]
[328,"OSLUŠEVCI","ORMOŽ"]
[329,"CVETKOVCI","ORMOŽ"]
[330,"TRGOVIŠČE","ORMOŽ"]
[331,"VELIKA NEDELJA","ORMOŽ"]
[332,"ORMOŽ","ORMOŽ"]
[333,"PUŠENCI","ORMOŽ"]
[334,"FRANKOVCI","ORMOŽ"]
[335,"LOPERŠICE","ORMOŽ"]
[336,"OBREŽ","ORMOŽ"]
[337,"GRABE PRI SREDIŠČU","ORMOŽ"]
[338,"SREDIŠČE","ORMOŽ"]
[339,"NOVINCI","PTUJ"]
[340,"SLAVŠINA","PTUJ"]
[341,"RJAVCI","PTUJ"]
[342,"HVALETINCI","PTUJ"]
[343,"VITOMARCI","PTUJ"]
[344,"DRBETINCI","PTUJ"]
[345,"TRNOVSKA VAS","PTUJ"]
[346,"BIŠ","PTUJ"]
[347,"BIŠEČKI VRH","PTUJ"]
[348,"TRNOVSKI VRH","PTUJ"]
[349,"LOČKI VRH","PTUJ"]
[350,"LOČIČ","PTUJ"]
[351,"SVETINCI","PTUJ"]
[352,"DESENCI","PTUJ"]
[353,"GRLINCI","PTUJ"]
[354,"ZAGORCI","PTUJ"]
[355,"SENČAK","PTUJ"]
[356,"SAKUŠAK","PTUJ"]
[357,"BODKOVCI","PTUJ"]
[358,"JURŠINCI","PTUJ"]
[359,"DRAGOVIČ","PTUJ"]
[360,"GRADIŠČAK","PTUJ"]
[361,"LEVANJCI","PTUJ"]
[362,"DOLIČ","PTUJ"]
[363,"DESTRNIK","PTUJ"]
[364,"VINTAROVCI","PTUJ"]
[365,"JIRŠOVCI","PTUJ"]
[366,"KRČEVINA PRI VURBERGU","PTUJ"]
[367,"GRAJENŠČAK","PTUJ"]
[368,"DRSTELJA","PTUJ"]
[369,"JANEŽOVCI","PTUJ"]
[370,"JANEŽOVSKI VRH","PTUJ"]
[371,"ZGORNJI VELOVLEK","PTUJ"]
[372,"SPODNJI VELOVLEK","PTUJ"]
[373,"MOSTJE","PTUJ"]
[374,"KUKAVA","PTUJ"]
[375,"ROTMAN","PTUJ"]
[376,"HLAPONCI","PTUJ"]
[377,"POLENŠAK","PTUJ"]
[378,"BRATISLAVCI","PTUJ"]
[379,"POLENCI","PTUJ"]
[380,"PRERAD","PTUJ"]
[381,"TIBOLCI","PTUJ"]
[382,"SLOMI","PTUJ"]
[383,"MEZGOVCI","PTUJ"]
[384,"DORNAVA","PTUJ"]
[385,"PODVINCI","PTUJ"]
[386,"PACINJE","PTUJ"]
[387,"KICAR","PTUJ"]
[388,"ROGOZNICA","PTUJ"]
[389,"NOVA VAS PRI PTUJU","PTUJ"]
[390,"MESTNI VRH","PTUJ"]
[391,"GRAJENA","PTUJ"]
[392,"KRČEVINA PRI PTUJU","PTUJ"]
[393,"SLOVENJA VAS","PTUJ"]
[394,"GEREČJA VAS","PTUJ"]
[395,"HAJDOŠE","PTUJ"]
[396,"SKORBA","PTUJ"]
[397,"HAJDINA","PTUJ"]
[399,"DRAŽENCI","PTUJ"]
[400,"PTUJ","PTUJ"]
[401,"BRSTJE","PTUJ"]
[402,"SPUHLJA","PTUJ"]
[403,"BOROVCI","PTUJ"]
[404,"PRVENCI","PTUJ"]
[405,"SOBETINCI","PTUJ"]
[406,"ZAGOJIČI","PTUJ"]
[407,"MOŠKANJCI","PTUJ"]
[408,"GORIŠNICA","PTUJ"]
[409,"ZAMUŠANI","PTUJ"]
[410,"FORMIN","PTUJ"]
[411,"GAJEVCI","PTUJ"]
[412,"MALA VAS","PTUJ"]
[413,"MURETINCI","PTUJ"]
[414,"STOJNCI","PTUJ"]
[415,"BUKOVCI","PTUJ"]
[416,"NOVA VAS PRI MARKOVCIH","PTUJ"]
[417,"MARKOVCI","PTUJ"]
[418,"ZABOVCI","PTUJ"]
[419,"ŠTURMOVCI","PTUJ"]
[420,"POBREŽJE","PTUJ"]
[421,"LANCOVA VAS","PTUJ"]
[422,"SELA","PTUJ"]
[423,"TRNOVEC","PTUJ"]
[424,"APAČE","PTUJ"]
[425,"LOVRENC NA DRAVSKEM POLJU","PTUJ"]
[426,"ŽUPEČJA VAS","PTUJ"]
[427,"PLETERJE","PTUJ"]
[428,"MIHOVCE","PTUJ"]
[429,"DRAGONJA VAS","PTUJ"]
[430,"CIRKOVCE","PTUJ"]
[431,"STAROŠINCE","PTUJ"]
[432,"SPODNJE JABLANE","PTUJ"]
[433,"ZGORNJE JABLANE","PTUJ"]
[434,"PONGRCE","PTUJ"]
[435,"ŠIKOLE","PTUJ"]
[436,"SESTRŽE","PTUJ"]
[437,"PODLOŽE","PTUJ"]
[438,"LEŠJE","PTUJ"]
[439,"PTUJSKA GORA","PTUJ"]
[440,"DOKLECE","PTUJ"]
[441,"STOGOVCI","PTUJ"]
[442,"SKRBLJE","PTUJ"]
[443,"JANŠKI VRH","PTUJ"]
[444,"BOLEČKA VAS","PTUJ"]
[445,"ZGORNJA PRISTAVA","PTUJ"]
[446,"JUROVCI","PTUJ"]
[447,"DRAVINJSKI VRH","PTUJ"]
[448,"VAREJA","PTUJ"]
[449,"LJUBSTAVA","PTUJ"]
[450,"MAJSKI VRH","PTUJ"]
[451,"GORCA","PTUJ"]
[452,"DOLENA","PTUJ"]
[453,"RODNI VRH","PTUJ"]
[454,"JABLOVEC","PTUJ"]
[455,"ZAKL","PTUJ"]
[456,"DEŽNO","PTUJ"]
[457,"PODLEHNIK","PTUJ"]
[458,"SPODNJI LESKOVEC","PTUJ"]
[459,"REPIŠČE","PTUJ"]
[460,"DRAVCI","PTUJ"]
[461,"GRADIŠČA","PTUJ"]
[462,"DOLANE","PTUJ"]
[463,"VELIKI VRH","PTUJ"]
[464,"BELSKI VRH","PTUJ"]
[465,"HRASTOVEC","PTUJ"]
[466,"ZAVRČ","PTUJ"]
[467,"GORIČAK","PTUJ"]
[468,"DRENOVEC","PTUJ"]
[469,"TURŠKI VRH","PTUJ"]
[470,"KORENJAK","PTUJ"]
[471,"PESTIKE","PTUJ"]
[472,"GORENJSKI VRH","PTUJ"]
[473,"BREZOVEC","PTUJ"]
[474,"CIRKULANE","PTUJ"]
[475,"GRUŠKOVEC","PTUJ"]
[476,"MEJE","PTUJ"]
[477,"MEDRIBNIK","PTUJ"]
[478,"PARADIŽ","PTUJ"]
[479,"PRISTAVA","PTUJ"]
[480,"POHORJE","PTUJ"]
[481,"SLATINA","PTUJ"]
[482,"MALI OKIČ","PTUJ"]
[483,"VELIKI OKIČ","PTUJ"]
[484,"GRADIŠČE","PTUJ"]
[485,"SKORIŠNJAK","PTUJ"]
[486,"BELAVŠEK","PTUJ"]
[487,"ZGORNJI LESKOVEC","PTUJ"]
[488,"TRDOBOJCI","PTUJ"]
[489,"MALA VARNICA","PTUJ"]
[490,"VELIKA VARNICA","PTUJ"]
[491,"LOŽINA","PTUJ"]
[492,"GRUŠKOVJE","PTUJ"]
[493,"SEDLAŠEK","PTUJ"]
[494,"STANOŠINA","PTUJ"]
[495,"KOZMINCI","PTUJ"]
[496,"STRAJNA","PTUJ"]
[497,"DOBRINA","PTUJ"]
[498,"KOČICE","PTUJ"]
[499,"SITEŽ","PTUJ"]
[500,"BOLFENK","PTUJ"]
[501,"SVEČA","PTUJ"]
[502,"STOPERCE","PTUJ"]
[503,"KUPČINJI VRH","PTUJ"]
[504,"NADOLE","PTUJ"]
[505,"ČERMOŽIŠE","PTUJ"]
[506,"ŽETALE","PTUJ"]
[507,"LOKAVEC","MARIBOR"]
[508,"ROŽENGRUNT","MARIBOR"]
[509,"ZGORNJA ŠČAVNICA","MARIBOR"]
[510,"SPODNJI DRAŽEN VRH","MARIBOR"]
[511,"ŽITENCE","MARIBOR"]
[512,"LEDINEK","MARIBOR"]
[513,"KREMBERK","MARIBOR"]
[514,"KRIVI VRH","MARIBOR"]
[515,"ZGORNJA ROČICA","MARIBOR"]
[516,"DRVANJA","MARIBOR"]
[517,"IHOVA","MARIBOR"]
[518,"TRIJE KRALJI","MARIBOR"]
[519,"TROTKOVA","MARIBOR"]
[520,"BENEDIKT","MARIBOR"]
[521,"SPODNJA ROČICA","MARIBOR"]
[522,"SPODNJI ŽERJAVCI","MARIBOR"]
[523,"ZGORNJI ŽERJAVCI","MARIBOR"]
[524,"ŽICE","MARIBOR"]
[525,"SPODNJI GASTERAJ","MARIBOR"]
[526,"SREDNJI GASTERAJ","MARIBOR"]
[527,"ZGORNJI GASTERAJ","MARIBOR"]
[528,"MALNA","MARIBOR"]
[529,"JUROVSKI DOL","MARIBOR"]
[530,"PARTINJE","MARIBOR"]
[531,"VARDA","MARIBOR"]
[532,"LENART V SLOVENSKIH GORICAH","MARIBOR"]
[533,"SPODNJI PORČIČ","MARIBOR"]
[534,"ZGORNJI PORČIČ","MARIBOR"]
[535,"STARI PORČIČ","MARIBOR"]
[536,"GRADIŠČE V SLOVENSKIH GORICAH","MARIBOR"]
[537,"ZGORNJE VERJANE","MARIBOR"]
[538,"OSEK","MARIBOR"]
[539,"BRENGOVA","MARIBOR"]
[540,"COGETINCI","MARIBOR"]
[541,"CERKVENJAK","MARIBOR"]
[542,"ANDRENCI","MARIBOR"]
[543,"ŽUPETINCI","MARIBOR"]
[544,"SMOLINCI","MARIBOR"]
[545,"ČAGONA","MARIBOR"]
[546,"SPODNJE VERJANE","MARIBOR"]
[547,"SPODNJA SENARSKA","MARIBOR"]
[548,"ZGORNJA SENARSKA","MARIBOR"]
[549,"RADEHOVA","MARIBOR"]
[550,"ZAMARKOVA","MARIBOR"]
[551,"MOČNA","MARIBOR"]
[552,"VINIČKA VAS","MARIBOR"]
[553,"ZGORNJA VOLIČINA","MARIBOR"]
[554,"SPODNJA VOLIČINA","MARIBOR"]
[555,"ŠETAROVA","MARIBOR"]
[556,"GOČOVA","MARIBOR"]
[557,"NADBIŠEC","MARIBOR"]
[558,"ZAVRH","MARIBOR"]
[559,"ČRMLJENŠAK","MARIBOR"]
[561,"STRAŽE","MARIBOR"]
[562,"ROGOZNICA","MARIBOR"]
[563,"CERŠAK","MARIBOR"]
[564,"ŠENTILJ V SLOVENSKIH GORICAH","MARIBOR"]
[565,"SELNICA OB MURI","MARIBOR"]
[566,"SLADKI VRH","MARIBOR"]
[567,"ZGORNJA VELKA","MARIBOR"]
[568,"TRATE","MARIBOR"]
[569,"SPODNJA VELKA","MARIBOR"]
[570,"PLODERŠNICA","MARIBOR"]
[571,"ROČICA","MARIBOR"]
[572,"SPODNJE HLAPJE","MARIBOR"]
[573,"ZGORNJE HLAPJE","MARIBOR"]
[574,"POČENIK","MARIBOR"]
[575,"ŠOMAT","MARIBOR"]
[576,"SREBOTJE","MARIBOR"]
[577,"ZGORNJI JAKOBSKI DOL","MARIBOR"]
[578,"POLIČKA VAS","MARIBOR"]
[579,"POLIČKI VRH","MARIBOR"]
[580,"VAJGEN","MARIBOR"]
[581,"KANIŽA","MARIBOR"]
[582,"ŠTRIHOVEC","MARIBOR"]
[583,"CIRKNICA","MARIBOR"]
[584,"ZGORNJE DOBRENJE","MARIBOR"]
[585,"KRESNICA","MARIBOR"]
[586,"PODIGRAC","MARIBOR"]
[587,"CIRINGA","MARIBOR"]
[588,"SVEČINA","MARIBOR"]
[589,"SLATINA","MARIBOR"]
[590,"ŠPIČNIK","MARIBOR"]
[591,"SLATINSKI DOL","MARIBOR"]
[592,"PLAČ","MARIBOR"]
[593,"ZGORNJE VRTIČE","MARIBOR"]
[594,"SPODNJE VRTIČE","MARIBOR"]
[595,"PLINTOVEC","MARIBOR"]
[596,"ZGORNJA KUNGOTA","MARIBOR"]
[597,"JEDLOVNIK","MARIBOR"]
[598,"GRUŠENA","MARIBOR"]
[599,"JURSKI VRH","MARIBOR"]
[600,"PESNICA","MARIBOR"]
[601,"VRŠNIK","MARIBOR"]
[602,"GAJ NAD MARIBOROM","MARIBOR"]
[603,"KOZJAK","MARIBOR"]
[604,"GRADIŠKA","MARIBOR"]
[605,"SPODNJE DOBRENJE","MARIBOR"]
[606,"RANCA","MARIBOR"]
[607,"JELENČE","MARIBOR"]
[608,"GAČNIK","MARIBOR"]
[609,"JARENINSKI DOL","MARIBOR"]
[610,"JARENINSKI VRH","MARIBOR"]
[611,"VUKOVSKI VRH","MARIBOR"]
[612,"VUKOVSKI DOL","MARIBOR"]
[613,"FLEKUŠEK","MARIBOR"]
[614,"SPODNJI JAKOBSKI DOL","MARIBOR"]
[615,"VUKOVJE","MARIBOR"]
[616,"KUŠERNIK","MARIBOR"]
[617,"VOSEK","MARIBOR"]
[618,"PESNIŠKI DVOR","MARIBOR"]
[619,"DOLNJA POČEHOVA","MARIBOR"]
[620,"MALI ROŠPOH","MARIBOR"]
[621,"MORSKI JAREK","MARIBOR"]
[622,"ŠOBER","MARIBOR"]
[623,"ZGORNJI SLEMEN","MARIBOR"]
[624,"VELIKI BOČ","MARIBOR"]
[625,"GRADIŠČE","MARIBOR"]
[626,"ZGORNJI BOČ","MARIBOR"]
[627,"SPODNJI BOČ","MARIBOR"]
[628,"ZGORNJA SELNICA","MARIBOR"]
[629,"JANŽEVA GORA","MARIBOR"]
[630,"GEREČJA VAS","MARIBOR"]
[631,"SPODNJA SELNICA","MARIBOR"]
[632,"SPODNJI SLEMEN","MARIBOR"]
[633,"SREDNJE","MARIBOR"]
[634,"JELOVEC","MARIBOR"]
[635,"BRESTRNICA","MARIBOR"]
[636,"KAMNICA","MARIBOR"]
[637,"ROŠPOH","MARIBOR"]
[638,"KRČEVINA","MARIBOR"]
[639,"POČEHOVA","MARIBOR"]
[640,"PEKEL","MARIBOR"]
[641,"DRAGUČOVA","MARIBOR"]
[642,"PERNICA","MARIBOR"]
[643,"LOŽANE","MARIBOR"]
[644,"RUPERČE","MARIBOR"]
[645,"GRUŠOVA","MARIBOR"]
[646,"METAVA","MARIBOR"]
[647,"TRČOVA","MARIBOR"]
[648,"NEBOVA","MARIBOR"]
[649,"CELESTRINA","MARIBOR"]
[650,"MALEČNIK","MARIBOR"]
[651,"HRENCA","MARIBOR"]
[652,"VODOLE","MARIBOR"]
[653,"KOŠAKI","MARIBOR"]
[654,"OREŠJE","MARIBOR"]
[655,"MELJE","MARIBOR"]
[656,"BREZJE","MARIBOR"]
[657,"MARIBOR-GRAD","MARIBOR"]
[658,"KOROŠKA VRATA","MARIBOR"]
[659,"TABOR","MARIBOR"]
[660,"STUDENCI","MARIBOR"]
[661,"LIMBUŠ","MARIBOR"]
[662,"LAZNICA","MARIBOR"]
[663,"BISTRICA PRI LIMBUŠU","MARIBOR"]
[664,"BISTRICA PRI RUŠAH","MARIBOR"]
[665,"RUŠE","MARIBOR"]
[666,"ČINŽAT","MARIBOR"]
[667,"RUTA","MARIBOR"]
[668,"RDEČI BREG","MARIBOR"]
[669,"LOVRENC NA POHORJU","MARIBOR"]
[670,"RECENJAK","MARIBOR"]
[671,"KUMEN","MARIBOR"]
[672,"SMOLNIK","MARIBOR"]
[673,"LOBNICA","MARIBOR"]
[674,"ZGORNJI VRHOV DOL","MARIBOR"]
[675,"HRASTJE","MARIBOR"]
[676,"PEKRE","MARIBOR"]
[677,"ZGORNJE RADVANJE","MARIBOR"]
[678,"SPODNJE RADVANJE","MARIBOR"]
[679,"RAZVANJE","MARIBOR"]
[680,"TEZNO","MARIBOR"]
[681,"POBREŽJE","MARIBOR"]
[682,"ZRKOVCI","MARIBOR"]
[683,"DOGOŠE","MARIBOR"]
[684,"ZGORNJI DUPLEK","MARIBOR"]
[685,"ZAVRŠKA VAS","MARIBOR"]
[686,"ZIMICA","MARIBOR"]
[687,"JABLANCE","MARIBOR"]
[688,"ZGORNJA KORENA","MARIBOR"]
[689,"SPODNJA KORENA","MARIBOR"]
[690,"ŽIKARCE","MARIBOR"]
[691,"CIGLENCE","MARIBOR"]
[692,"SPODNJI DUPLEK","MARIBOR"]
[693,"MIKLAVŽ NA DRAVSKEM POLJU","MARIBOR"]
[694,"ROGOZA","MARIBOR"]
[695,"BOHOVA","MARIBOR"]
[696,"SPODNJE HOČE","MARIBOR"]
[697,"ZGORNJE HOČE","MARIBOR"]
[698,"PIVOLA","MARIBOR"]
[699,"HOČKO POHORJE","MARIBOR"]
[700,"SLIVNIŠKO POHORJE","MARIBOR"]
[701,"POLANA","MARIBOR"]
[702,"RANČE","MARIBOR"]
[703,"RADIZEL","MARIBOR"]
[704,"ČRETA","MARIBOR"]
[705,"SLIVNICA","MARIBOR"]
[706,"OREHOVA VAS","MARIBOR"]
[707,"HOTINJA VAS","MARIBOR"]
[708,"SKOKE","MARIBOR"]
[709,"LOKA PRI ROŠNJI","MARIBOR"]
[710,"DVORJANE","MARIBOR"]
[711,"VURBERK","MARIBOR"]
[712,"STARŠE","MARIBOR"]
[713,"ZLATOLIČJE","MARIBOR"]
[714,"PREPOLJE","MARIBOR"]
[715,"MARJETA NA DRAVSKEM POLJU","MARIBOR"]
[716,"RAČE","MARIBOR"]
[717,"FRAM","MARIBOR"]
[718,"KOPIVNIK","MARIBOR"]
[719,"PLANICA","MARIBOR"]
[720,"LOKA PRI FRAMU","MARIBOR"]
[721,"MORJE","MARIBOR"]
[722,"JEŠENCA","MARIBOR"]
[723,"PODOVA","MARIBOR"]
[724,"GORICA","MARIBOR"]
[725,"KOT","SLOVENSKA BISTRICA"]
[726,"PLANINA","SLOVENSKA BISTRICA"]
[727,"SMREČNO","SLOVENSKA BISTRICA"]
[728,"BOJTINA","SLOVENSKA BISTRICA"]
[729,"FRAJHAJM","SLOVENSKA BISTRICA"]
[730,"ŠMARTNO NA POHORJU","SLOVENSKA BISTRICA"]
[731,"OŠELJ","SLOVENSKA BISTRICA"]
[732,"URH","SLOVENSKA BISTRICA"]
[733,"REP","SLOVENSKA BISTRICA"]
[734,"MALO TINJE","SLOVENSKA BISTRICA"]
[735,"TINJSKA GORA","SLOVENSKA BISTRICA"]
[736,"VISOLE","SLOVENSKA BISTRICA"]
[737,"JURIŠNA VAS","SLOVENSKA BISTRICA"]
[738,"PREBUKOVJE","SLOVENSKA BISTRICA"]
[739,"KALŠE","SLOVENSKA BISTRICA"]
[740,"OGLJENŠAK","SLOVENSKA BISTRICA"]
[741,"BUKOVEC","SLOVENSKA BISTRICA"]
[742,"ZGORNJA POLSKAVA","SLOVENSKA BISTRICA"]
[743,"GABERNIK","SLOVENSKA BISTRICA"]
[744,"RITOZNOJ","SLOVENSKA BISTRICA"]
[745,"KOVAČA VAS","SLOVENSKA BISTRICA"]
[746,"ŠENTOVEC","SLOVENSKA BISTRICA"]
[747,"POKOŠE","SLOVENSKA BISTRICA"]
[748,"SPODNJA POLSKAVA","SLOVENSKA BISTRICA"]
[749,"STRAŽGONJCA","PTUJ"]
[750,"VRHLOGA","SLOVENSKA BISTRICA"]
[751,"ČREŠNJEVEC","SLOVENSKA BISTRICA"]
[752,"SPODNJA NOVA VAS","SLOVENSKA BISTRICA"]
[753,"SLOVENSKA BISTRICA","SLOVENSKA BISTRICA"]
[754,"ZGORNJA BISTRICA","SLOVENSKA BISTRICA"]
[755,"SPODNJA LOŽNICA","SLOVENSKA BISTRICA"]
[756,"ZGORNJA LOŽNICA","SLOVENSKA BISTRICA"]
[757,"GLADOMES","SLOVENSKA BISTRICA"]
[758,"OKOŠKA VAS","SLOVENSKA BISTRICA"]
[759,"ZLOGONA GORA","SLOVENSKA BISTRICA"]
[760,"KORITNO","SLOVENSKA BISTRICA"]
[761,"BOŽJE","SLOVENSKA BISTRICA"]
[762,"BREZJE PRI OPLOTNICI","SLOVENSKA BISTRICA"]
[763,"OPLOTNICA","SLOVENSKA BISTRICA"]
[764,"ZGORNJE GRUŠOVJE","SLOVENSKA BISTRICA"]
[765,"VRHOLE PRI KONJICAH","SLOVENSKA BISTRICA"]
[766,"CIGONCA","SLOVENSKA BISTRICA"]
[767,"ŽABLJEK","SLOVENSKA BISTRICA"]
[768,"HOŠNICA","SLOVENSKA BISTRICA"]
[769,"LAPORJE","SLOVENSKA BISTRICA"]
[770,"VRHOLE PRI LAPORJU","SLOVENSKA BISTRICA"]
[771,"PRETREŽ","SLOVENSKA BISTRICA"]
[772,"ŠTATENBERG","SLOVENSKA BISTRICA"]
[773,"PEČKE","SLOVENSKA BISTRICA"]
[774,"STOPNO","SLOVENSKA BISTRICA"]
[775,"DEŽNO","SLOVENSKA BISTRICA"]
[776,"JELOVEC","SLOVENSKA BISTRICA"]
[777,"MODRAŽE","SLOVENSKA BISTRICA"]
[778,"BREZJE PRI POLJČANAH","SLOVENSKA BISTRICA"]
[779,"PEKEL","SLOVENSKA BISTRICA"]
[780,"STANOVSKO","SLOVENSKA BISTRICA"]
[781,"LUŠEČKA VAS","SLOVENSKA BISTRICA"]
[782,"POLJČANE","SLOVENSKA BISTRICA"]
[783,"STUDENICE","SLOVENSKA BISTRICA"]
[784,"HRASTOVEC","SLOVENSKA BISTRICA"]
[785,"STARI GRAD","SLOVENSKA BISTRICA"]
[786,"MLAKE","SLOVENJ GRADEC"]
[787,"PERNICE","SLOVENJ GRADEC"]
[788,"BRANIK","SLOVENJ GRADEC"]
[789,"PODLIPJE","SLOVENJ GRADEC"]
[790,"BREZOVEC","SLOVENJ GRADEC"]
[791,"SUHI VRH","SLOVENJ GRADEC"]
[792,"RADELCA","SLOVENJ GRADEC"]
[793,"VAS","SLOVENJ GRADEC"]
[794,"REMŠNIK","SLOVENJ GRADEC"]
[795,"BREZNI VRH","SLOVENJ GRADEC"]
[796,"ZGORNJA KAPLA","SLOVENJ GRADEC"]
[797,"SPODNJA KAPLA","SLOVENJ GRADEC"]
[798,"ZGORNJI VURMAT","SLOVENJ GRADEC"]
[799,"OŽBALT","SLOVENJ GRADEC"]
[800,"JAVNIK","SLOVENJ GRADEC"]
[801,"BREZNO","SLOVENJ GRADEC"]
[802,"KOZJI VRH","SLOVENJ GRADEC"]
[803,"SPODNJA VIŽINGA","SLOVENJ GRADEC"]
[804,"RADLJE OB DRAVI","SLOVENJ GRADEC"]
[805,"DOBRAVA","SLOVENJ GRADEC"]
[806,"ZGORNJA VIŽINGA","SLOVENJ GRADEC"]
[807,"SPODNJA MUTA","SLOVENJ GRADEC"]
[808,"ZGORNJA MUTA","SLOVENJ GRADEC"]
[809,"ZGORNJA GORTINA","SLOVENJ GRADEC"]
[810,"SPODNJA GORTINA","SLOVENJ GRADEC"]
[811,"DRAVČE","SLOVENJ GRADEC"]
[812,"ŠENTJANŽ NAD DRAVČAMI","SLOVENJ GRADEC"]
[813,"VUZENICA","SLOVENJ GRADEC"]
[814,"ŠENTVID","SLOVENJ GRADEC"]
[815,"PRIMOŽ NA POHORJU","SLOVENJ GRADEC"]
[816,"PLANINA","SLOVENJ GRADEC"]
[817,"VUHRED","SLOVENJ GRADEC"]
[818,"ORLICA","SLOVENJ GRADEC"]
[819,"JANŽEVSKI VRH","SLOVENJ GRADEC"]
[820,"PODVELKA","SLOVENJ GRADEC"]
[821,"RDEČI BREG II","SLOVENJ GRADEC"]
[822,"LEHEN","SLOVENJ GRADEC"]
[823,"RIBNICA NA POHORJU","SLOVENJ GRADEC"]
[824,"HUDI KOT","SLOVENJ GRADEC"]
[825,"LIBELIČE","SLOVENJ GRADEC"]
[826,"LIBELIŠKA GORA","SLOVENJ GRADEC"]
[827,"ČRNEŠKA GORA","SLOVENJ GRADEC"]
[828,"ČRNEČE","SLOVENJ GRADEC"]
[829,"DRAVOGRAD","SLOVENJ GRADEC"]
[830,"GRAD","SLOVENJ GRADEC"]
[831,"VIČ","SLOVENJ GRADEC"]
[832,"GORIŠKI VRH","SLOVENJ GRADEC"]
[833,"OJSTRICA","SLOVENJ GRADEC"]
[834,"DUH NA OJSTRICI","SLOVENJ GRADEC"]
[835,"VELKA","SLOVENJ GRADEC"]
[836,"KOZJI VRH","SLOVENJ GRADEC"]
[837,"VRATA","SLOVENJ GRADEC"]
[838,"TRBONJE","SLOVENJ GRADEC"]
[839,"DANIJEL PRI TRBONJAH","SLOVENJ GRADEC"]
[840,"OTIŠKI VRH I","SLOVENJ GRADEC"]
[841,"OTIŠKI VRH II","SLOVENJ GRADEC"]
[842,"DOBROVA","SLOVENJ GRADEC"]
[843,"SELOVEC","SLOVENJ GRADEC"]
[844,"ŠENTJANŽ PRI DRAVOGRADU","SLOVENJ GRADEC"]
[845,"PAMEČE","SLOVENJ GRADEC"]
[846,"GRADIŠČE","SLOVENJ GRADEC"]
[847,"VRHE","SLOVENJ GRADEC"]
[848,"SELE","SLOVENJ GRADEC"]
[849,"STARI TRG","SLOVENJ GRADEC"]
[850,"SLOVENJ GRADEC","SLOVENJ GRADEC"]
[851,"LEGEN","SLOVENJ GRADEC"]
[852,"GOLAVABUKA","SLOVENJ GRADEC"]
[853,"ŠMARTNO PRI SLOVENJ GRADCU","SLOVENJ GRADEC"]
[854,"PODGORJE","SLOVENJ GRADEC"]
[855,"ZGORNJI RAZBOR","SLOVENJ GRADEC"]
[856,"SPODNJI RAZBOR","SLOVENJ GRADEC"]
[857,"VELUNA","SLOVENJ GRADEC"]
[858,"GRAŠKA GORA","SLOVENJ GRADEC"]
[859,"VODRIŽ","SLOVENJ GRADEC"]
[860,"ŠMIKLAVŽ","SLOVENJ GRADEC"]
[861,"DOBRAVA","SLOVENJ GRADEC"]
[862,"BRDA","SLOVENJ GRADEC"]
[863,"ŠENTILJ POD TURJAKOM","SLOVENJ GRADEC"]
[864,"MISLINJA","SLOVENJ GRADEC"]
[865,"GORNJI DOLIČ","SLOVENJ GRADEC"]
[866,"ŠENTVID NAD VALDEKOM","SLOVENJ GRADEC"]
[867,"ZAVRŠE","SLOVENJ GRADEC"]
[868,"KOZJAK","SLOVENJ GRADEC"]
[869,"BELŠAK","RAVNE NA KOROŠKEM"]
[870,"JAMNICA","RAVNE NA KOROŠKEM"]
[871,"STROJNA","RAVNE NA KOROŠKEM"]
[872,"ZELEN BREG","RAVNE NA KOROŠKEM"]
[873,"SUHI VRH","RAVNE NA KOROŠKEM"]
[874,"ŠENTANEL","RAVNE NA KOROŠKEM"]
[875,"DOLGA BRDA","RAVNE NA KOROŠKEM"]
[876,"BREZNICA","RAVNE NA KOROŠKEM"]
[877,"STRAŽIŠČE","RAVNE NA KOROŠKEM"]
[878,"TOLSTI VRH","RAVNE NA KOROŠKEM"]
[879,"KOROŠKI SELOVEC","RAVNE NA KOROŠKEM"]
[880,"BRDINJE","RAVNE NA KOROŠKEM"]
[882,"RAVNE","RAVNE NA KOROŠKEM"]
[883,"DOBJA VAS","RAVNE NA KOROŠKEM"]
[884,"FARNA VAS","RAVNE NA KOROŠKEM"]
[885,"POLJANA","RAVNE NA KOROŠKEM"]
[886,"LOKOVICA","RAVNE NA KOROŠKEM"]
[887,"LOM","RAVNE NA KOROŠKEM"]
[888,"MEŽA TAKRAJ","RAVNE NA KOROŠKEM"]
[889,"MEŽICA","RAVNE NA KOROŠKEM"]
[890,"MEŽA ONKRAJ","RAVNE NA KOROŠKEM"]
[891,"PREVALJE","RAVNE NA KOROŠKEM"]
[892,"LEŠE","RAVNE NA KOROŠKEM"]
[893,"ZAGRAD","RAVNE NA KOROŠKEM"]
[894,"NAVRŠKI VRH","RAVNE NA KOROŠKEM"]
[895,"PREŠKI VRH","RAVNE NA KOROŠKEM"]
[896,"KOTLJE","RAVNE NA KOROŠKEM"]
[897,"PODGORA","RAVNE NA KOROŠKEM"]
[898,"URŠLJA GORA I","RAVNE NA KOROŠKEM"]
[899,"URŠLJA GORA II","RAVNE NA KOROŠKEM"]
[900,"ŽERJAV","RAVNE NA KOROŠKEM"]
[901,"PLAT","RAVNE NA KOROŠKEM"]
[902,"PODPECA","RAVNE NA KOROŠKEM"]
[903,"TOPLA","RAVNE NA KOROŠKEM"]
[904,"KOPRIVNA","RAVNE NA KOROŠKEM"]
[905,"BISTRA","RAVNE NA KOROŠKEM"]
[906,"ČRNA","RAVNE NA KOROŠKEM"]
[907,"LUDRANSKI VRH","RAVNE NA KOROŠKEM"]
[908,"JAVORJE","RAVNE NA KOROŠKEM"]
[909,"LOGARSKA DOLINA","MOZIRJE"]
[910,"SOLČAVA","MOZIRJE"]
[911,"RADUHA","MOZIRJE"]
[912,"KONJSKI VRH","MOZIRJE"]
[913,"PRIMOŽ PRI LJUBNEM","MOZIRJE"]
[914,"TER","MOZIRJE"]
[915,"RADEGUNDA","MOZIRJE"]
[916,"ŠMIHEL","MOZIRJE"]
[917,"LEPA NJIVA","MOZIRJE"]
[918,"LJUBIJA","MOZIRJE"]
[919,"BREZJE","MOZIRJE"]
[920,"MOZIRJE","MOZIRJE"]
[921,"REČICA OB SAVINJI","MOZIRJE"]
[922,"POLJANE","MOZIRJE"]
[923,"LJUBNO","MOZIRJE"]
[924,"SAVINA","MOZIRJE"]
[925,"KRNICA","MOZIRJE"]
[926,"LUČE","MOZIRJE"]
[927,"PODVEŽA","MOZIRJE"]
[928,"PODVOLOVLJEK","MOZIRJE"]
[929,"LENART PRI GORNJEM GRADU","MOZIRJE"]
[930,"FLORJAN PRI GORNJEM GRADU","MOZIRJE"]
[931,"RADMIRJE","MOZIRJE"]
[932,"ŠENTJANŽ","MOZIRJE"]
[933,"HOMEC","MOZIRJE"]
[934,"ZGORNJE POBREŽJE","MOZIRJE"]
[935,"SPODNJA REČICA","MOZIRJE"]
[936,"PRIHOVA","MOZIRJE"]
[937,"LOKE","MOZIRJE"]
[938,"KOKARJE","MOZIRJE"]
[939,"PUSTO POLJE","MOZIRJE"]
[940,"ŠMARTNO OB DRETI","MOZIRJE"]
[941,"BOČNA","MOZIRJE"]
[942,"GORNJI GRAD","MOZIRJE"]
[943,"ŠMIKLAVŽ","MOZIRJE"]
[944,"TIROSEK","MOZIRJE"]
[945,"BELE VODE","VELENJE"]
[946,"ŠENTVID PRI ZAVODNJAH","VELENJE"]
[947,"ZAVODNJE","VELENJE"]
[948,"TOPOLŠICA","VELENJE"]
[949,"RAVNE","VELENJE"]
[950,"PLEŠIVEC","VELENJE"]
[951,"HRASTOVEC","VELENJE"]
[952,"CIRKOVCE","VELENJE"]
[953,"PAKA","VELENJE"]
[954,"LIPJE","ŽALEC"]
[955,"BEVČE","VELENJE"]
[957,"ŠKALE","VELENJE"]
[958,"GABERKE","VELENJE"]
[959,"ŠOŠTANJ","VELENJE"]
[960,"FLORJAN PRI ŠOŠTANJU","VELENJE"]
[961,"SKORNO PRI ŠOŠTANJU","VELENJE"]
[962,"GORENJE","VELENJE"]
[963,"LOKOVICA","VELENJE"]
[964,"VELENJE","VELENJE"]
[965,"LAZE","VELENJE"]
[966,"LOŽNICA","VELENJE"]
[967,"KAVČE","VELENJE"]
[968,"PODKRAJ","VELENJE"]
[969,"VELIKI VRH","VELENJE"]
[970,"GAVCE","VELENJE"]
[971,"PAŠKA VAS","VELENJE"]
[972,"ŠMARTNO OB PAKI","VELENJE"]
[973,"REČICA OB PAKI","VELENJE"]
[974,"PRELSKA","ŽALEC"]
[975,"VINSKA GORA","ŽALEC"]
[976,"ČRNOVA","ŽALEC"]
[977,"ŽELEZNO","ŽALEC"]
[978,"STUDENCE","ŽALEC"]
[979,"PONIKVA","ŽALEC"]
[980,"ANDRAŽ","ŽALEC"]
[981,"DOBRIČ","ŽALEC"]
[982,"PODVIN","ŽALEC"]
[983,"MALE BRASLOVČE","ŽALEC"]
[984,"LETUŠ","ŽALEC"]
[985,"DOBROVLJE","ŽALEC"]
[986,"PODVRH","ŽALEC"]
[987,"BRASLOVČE","ŽALEC"]
[988,"SPODNJE GORČE","ŽALEC"]
[989,"ŠMATEVŽ","ŽALEC"]
[990,"TRNAVA","ŽALEC"]
[991,"ORLA VAS","ŽALEC"]
[992,"POLZELA","ŽALEC"]
[993,"ZALOŽE","ŽALEC"]
[994,"ZALOG","ŽALEC"]
[995,"ŠEMPETER V SAVINJSKI DOLINI","ŽALEC"]
[996,"ŽALEC","ŽALEC"]
[997,"GOTOVLJE","ŽALEC"]
[998,"VELIKA PIREŠICA","ŽALEC"]
[999,"GORICA","ŽALEC"]
[1000,"LEVEC","ŽALEC"]
[1001,"PETROVČE","ŽALEC"]
[1002,"KASAZE","ŽALEC"]
[1003,"ZABUKOVICA","ŽALEC"]
[1004,"GORNJA VAS","ŽALEC"]
[1005,"PREBOLD","ŽALEC"]
[1006,"LATKOVA VAS","ŽALEC"]
[1007,"GRAJSKA VAS","ŽALEC"]
[1008,"GOMILSKO","ŽALEC"]
[1009,"OJSTRIŠKA VAS","ŽALEC"]
[1010,"PREKOPA","ŽALEC"]
[1011,"TEŠOVA","ŽALEC"]
[1012,"VRANSKO","ŽALEC"]
[1013,"JERONIM","ŽALEC"]
[1014,"LOČICA","ŽALEC"]
[1015,"ZAPLANINA","ŽALEC"]
[1016,"ČRNI VRH","ŽALEC"]
[1017,"MIKLAVŽ","ŽALEC"]
[1018,"MARIJA REKA","ŽALEC"]
[1019,"MATKE","ŽALEC"]
[1020,"PONGRAC","ŽALEC"]
[1021,"LIBOJE","ŽALEC"]
[1022,"REČICA","LAŠKO"]
[1023,"SLIVNO","LAŠKO"]
[1024,"RIFENGOZD","LAŠKO"]
[1025,"REKA","LAŠKO"]
[1026,"LAŠKO","LAŠKO"]
[1027,"ŠMIHEL","LAŠKO"]
[1028,"SEDRAŽ","LAŠKO"]
[1029,"LAHOMŠEK","LAŠKO"]
[1030,"LAHOMNO","LAŠKO"]
[1031,"OLEŠČE","LAŠKO"]
[1032,"ŠENTRUPERT","LAŠKO"]
[1033,"TROBNI DOL","LAŠKO"]
[1034,"MRZLO POLJE","LAŠKO"]
[1035,"JURKLOŠTER","LAŠKO"]
[1036,"VRH NAD LAŠKIM","LAŠKO"]
[1037,"LAŽIŠE","LAŠKO"]
[1038,"PLAZOVJE","LAŠKO"]
[1039,"RIMSKE TOPLICE","LAŠKO"]
[1040,"LOŽE","LAŠKO"]
[1041,"LOKAVEC","LAŠKO"]
[1042,"PANEČE","LAŠKO"]
[1043,"MARIJINA VAS","LAŠKO"]
[1044,"BRDCE NAD DOBRNO","CELJE"]
[1045,"KLANC","CELJE"]
[1046,"ZAVRH","CELJE"]
[1047,"ČREŠKOVA","CELJE"]
[1048,"SOCKA","CELJE"]
[1049,"LIPA","CELJE"]
[1050,"DOL","CELJE"]
[1051,"VERPETE","CELJE"]
[1052,"PODGORJE","CELJE"]
[1053,"LOKA","CELJE"]
[1054,"NOVAKE","CELJE"]
[1055,"HOMEC","CELJE"]
[1056,"DOBRNA","CELJE"]
[1057,"RUPE","CELJE"]
[1058,"ROŽNI VRH","CELJE"]
[1059,"LEMBERG","CELJE"]
[1060,"STRMEC PRI VOJNIKU","CELJE"]
[1061,"VIŠNJA VAS","CELJE"]
[1062,"MALE DOLE","CELJE"]
[1063,"BEZOVICA","CELJE"]
[1064,"TOMAŽ","CELJE"]
[1065,"VOJNIK TRG","CELJE"]
[1066,"VOJNIK OKOLICA","CELJE"]
[1067,"BREZOVA","CELJE"]
[1068,"ŠMARTNO","CELJE"]
[1069,"ŠENTJUNGERT","CELJE"]
[1070,"ARCLIN","CELJE"]
[1071,"ŠKOFJA VAS","CELJE"]
[1072,"ŠMIKLAVŽ","CELJE"]
[1073,"TRNOVLJE","CELJE"]
[1074,"SPODNJA HUDINJA","CELJE"]
[1075,"OSTROŽNO","CELJE"]
[1076,"MEDLOG","CELJE"]
[1077,"CELJE","CELJE"]
[1078,"LISCE","CELJE"]
[1079,"KOŠNICA","CELJE"]
[1080,"TREMERJE","CELJE"]
[1081,"ZAGRAD","CELJE"]
[1082,"TEHARJE","CELJE"]
[1083,"BUKOVŽLAK","CELJE"]
[1084,"PEČOVJE","CELJE"]
[1085,"KOMPOLE","CELJE"]
[1086,"PROŽINSKA VAS","CELJE"]
[1087,"SVETINA","CELJE"]
[1088,"PADEŠKI VRH","SLOVENSKE KONJICE"]
[1089,"RESNIK","SLOVENSKE KONJICE"]
[1090,"SKOMARJE","SLOVENSKE KONJICE"]
[1091,"HUDINJA","SLOVENSKE KONJICE"]
[1092,"PAKA I","SLOVENSKE KONJICE"]
[1093,"SPODNJI DOLIČ","SLOVENSKE KONJICE"]
[1094,"BREZEN","SLOVENSKE KONJICE"]
[1095,"VITANJE","SLOVENSKE KONJICE"]
[1096,"STENICA","SLOVENSKE KONJICE"]
[1097,"LJUBNICA","SLOVENSKE KONJICE"]
[1098,"LOŠKA GORA","SLOVENSKE KONJICE"]
[1099,"GORENJE PRI ZREČAH","SLOVENSKE KONJICE"]
[1100,"ZREČE","SLOVENSKE KONJICE"]
[1101,"RADANA VAS","SLOVENSKE KONJICE"]
[1102,"KRIŽEVEC","SLOVENSKE KONJICE"]
[1103,"STRANICE","SLOVENSKE KONJICE"]
[1104,"PRELOGE","SLOVENSKE KONJICE"]
[1105,"ŠKALCE","SLOVENSKE KONJICE"]
[1106,"BEZINA","SLOVENSKE KONJICE"]
[1107,"TEPANJE","SLOVENSKE KONJICE"]
[1108,"PEROVEC","SLOVENSKE KONJICE"]
[1109,"SPODNJE GRUŠOVJE","SLOVENSKE KONJICE"]
[1110,"LIČENCA","SLOVENSKE KONJICE"]
[1111,"JERNEJ PRI LOČAH","SLOVENSKE KONJICE"]
[1112,"KOBLE","SLOVENSKE KONJICE"]
[1113,"ŽIČE","SLOVENSKE KONJICE"]
[1114,"KONJIŠKA VAS","SLOVENSKE KONJICE"]
[1115,"SLOVENSKE KONJICE","SLOVENSKE KONJICE"]
[1116,"SLEMENE","SLOVENSKE KONJICE"]
[1117,"TOLSTI VRH","SLOVENSKE KONJICE"]
[1118,"LIPOGLAV","SLOVENSKE KONJICE"]
[1119,"LOČE","SLOVENSKE KONJICE"]
[1120,"ZGORNJE LAŽE","SLOVENSKE KONJICE"]
[1121,"ZBELOVSKA GORA","SLOVENSKE KONJICE"]
[1122,"DRAMLJE","ŠENTJUR PRI CELJU"]
[1123,"PLETOVARJE","ŠENTJUR PRI CELJU"]
[1124,"SLATINA","ŠENTJUR PRI CELJU"]
[1125,"OSTROŽNO","ŠENTJUR PRI CELJU"]
[1126,"DOLGA GORA","ŠENTJUR PRI CELJU"]
[1127,"PONKVICA","ŠENTJUR PRI CELJU"]
[1128,"PONIKVA","ŠENTJUR PRI CELJU"]
[1129,"ZAGAJ","ŠENTJUR PRI CELJU"]
[1130,"VODULE","ŠENTJUR PRI CELJU"]
[1131,"MARIJA DOBJE","ŠENTJUR PRI CELJU"]
[1132,"PRIMOŽ","ŠENTJUR PRI CELJU"]
[1133,"GORIČICA","ŠENTJUR PRI CELJU"]
[1134,"ZLATEČE","ŠENTJUR PRI CELJU"]
[1135,"LOKARJE","ŠENTJUR PRI CELJU"]
[1136,"KAMENO","ŠENTJUR PRI CELJU"]
[1137,"GROBELNO","ŠENTJUR PRI CELJU"]
[1138,"ŠENTJUR PRI CELJU","ŠENTJUR PRI CELJU"]
[1139,"PODGRAD","ŠENTJUR PRI CELJU"]
[1140,"KRAJNČICA","ŠENTJUR PRI CELJU"]
[1141,"RIFNIK","ŠENTJUR PRI CELJU"]
[1142,"TRATNA","ŠENTJUR PRI CELJU"]
[1143,"GORICA PRI SLIVNICI","ŠENTJUR PRI CELJU"]
[1144,"VODRUŽ","ŠENTJUR PRI CELJU"]
[1145,"PLANINCA","ŠENTJUR PRI CELJU"]
[1146,"VEZOVJE","ŠENTJUR PRI CELJU"]
[1147,"SLIVNICA PRI CELJU","ŠENTJUR PRI CELJU"]
[1148,"JAVORJE","ŠENTJUR PRI CELJU"]
[1149,"VODUCE","ŠENTJUR PRI CELJU"]
[1150,"KALOBJE","ŠENTJUR PRI CELJU"]
[1151,"BREZJE","ŠENTJUR PRI CELJU"]
[1152,"SUHO","ŠENTJUR PRI CELJU"]
[1153,"PARIDOL","ŠENTJUR PRI CELJU"]
[1154,"DOBRINA","ŠENTJUR PRI CELJU"]
[1155,"LOKA PRI ŽUSMU","ŠENTJUR PRI CELJU"]
[1156,"LOPACA","ŠENTJUR PRI CELJU"]
[1157,"STRAŠKA GORCA","ŠENTJUR PRI CELJU"]
[1158,"PRESEČNO","ŠENTJUR PRI CELJU"]
[1159,"PLANINSKA VAS","ŠENTJUR PRI CELJU"]
[1160,"LOKE PRI PLANINI","ŠENTJUR PRI CELJU"]
[1161,"PLANINA","ŠENTJUR PRI CELJU"]
[1162,"GOLOBINJEK","ŠENTJUR PRI CELJU"]
[1163,"ŠENTVID PRI PLANINI","ŠENTJUR PRI CELJU"]
[1164,"ZGORNJI GABRNIK","ŠMARJE PRI JELŠAH"]
[1165,"DREVENIK","ŠMARJE PRI JELŠAH"]
[1166,"ČAČA VAS","ŠMARJE PRI JELŠAH"]
[1167,"NEGONJE","ŠMARJE PRI JELŠAH"]
[1168,"RATANSKA VAS","ŠMARJE PRI JELŠAH"]
[1169,"CEROVEC","ŠMARJE PRI JELŠAH"]
[1170,"SPODNJE SEČOVO","ŠMARJE PRI JELŠAH"]
[1171,"SVETI FLORJAN","ŠMARJE PRI JELŠAH"]
[1172,"STRMEC","ŠMARJE PRI JELŠAH"]
[1173,"TLAKE","ŠMARJE PRI JELŠAH"]
[1174,"TRŠKA GORCA","ŠMARJE PRI JELŠAH"]
[1175,"DONAČKA GORA","ŠMARJE PRI JELŠAH"]
[1176,"TRLIČNO","ŠMARJE PRI JELŠAH"]
[1177,"DOBOVEC","ŠMARJE PRI JELŠAH"]
[1178,"ROGATEC","ŠMARJE PRI JELŠAH"]
[1179,"TRŽIŠČE","ŠMARJE PRI JELŠAH"]
[1180,"TOPOLE","ŠMARJE PRI JELŠAH"]
[1181,"TEKAČEVO","ŠMARJE PRI JELŠAH"]
[1182,"SPODNJA KOSTRIVNICA","ŠMARJE PRI JELŠAH"]
[1183,"LEMBERG OKOLICA","ŠMARJE PRI JELŠAH"]
[1184,"LEMBERG TRG","ŠMARJE PRI JELŠAH"]
[1185,"PIJOVCI","ŠMARJE PRI JELŠAH"]
[1186,"SLADKA GORA","ŠMARJE PRI JELŠAH"]
[1187,"VRH","ŠMARJE PRI JELŠAH"]
[1188,"DVOR","ŠMARJE PRI JELŠAH"]
[1189,"BOBOVO","ŠMARJE PRI JELŠAH"]
[1190,"PRELOGE","ŠMARJE PRI JELŠAH"]
[1191,"GRLIČE","ŠMARJE PRI JELŠAH"]
[1192,"KAČJI DOL","ŠMARJE PRI JELŠAH"]
[1193,"MALE RODNE","ŠMARJE PRI JELŠAH"]
[1194,"VELIKE RODNE","ŠMARJE PRI JELŠAH"]
[1195,"RJAVICA","ŠMARJE PRI JELŠAH"]
[1196,"BRESTOVEC","ŠMARJE PRI JELŠAH"]
[1197,"CESTE","ŠMARJE PRI JELŠAH"]
[1198,"PLAT","ŠMARJE PRI JELŠAH"]
[1199,"KRISTAN VRH","ŠMARJE PRI JELŠAH"]
[1200,"ŠMARJE PRI JELŠAH","ŠMARJE PRI JELŠAH"]
[1201,"ZADRŽE","ŠMARJE PRI JELŠAH"]
[1202,"SENOVICA","ŠMARJE PRI JELŠAH"]
[1203,"BODREŽ","ŠMARJE PRI JELŠAH"]
[1204,"ZGORNJE SELCE","ŠENTJUR PRI CELJU"]
[1205,"PLATINOVEC","ŠMARJE PRI JELŠAH"]
[1206,"JEŠOVEC","ŠMARJE PRI JELŠAH"]
[1207,"BRECLJEVO","ŠMARJE PRI JELŠAH"]
[1208,"DOL","ŠMARJE PRI JELŠAH"]
[1209,"KORETNO","ŠMARJE PRI JELŠAH"]
[1210,"PRISTAVA","ŠMARJE PRI JELŠAH"]
[1211,"HAJNSKO","ŠMARJE PRI JELŠAH"]
[1212,"NEZBIŠE","ŠMARJE PRI JELŠAH"]
[1213,"KAMENCE","ŠMARJE PRI JELŠAH"]
[1214,"RAJNKOVEC","ŠMARJE PRI JELŠAH"]
[1215,"NIMNO","ŠMARJE PRI JELŠAH"]
[1216,"VIDOVICA","ŠMARJE PRI JELŠAH"]
[1217,"VONARJE","ŠMARJE PRI JELŠAH"]
[1218,"EMA","ŠMARJE PRI JELŠAH"]
[1219,"SODNA VAS","ŠMARJE PRI JELŠAH"]
[1220,"ROGINSKA GORCA","ŠMARJE PRI JELŠAH"]
[1221,"ZIBIKA","ŠMARJE PRI JELŠAH"]
[1222,"VRŠNA VAS","ŠMARJE PRI JELŠAH"]
[1223,"OREHOVEC","ŠMARJE PRI JELŠAH"]
[1224,"BABNA REKA","ŠMARJE PRI JELŠAH"]
[1225,"GROBELCE","ŠMARJE PRI JELŠAH"]
[1226,"BABNA GORA","ŠMARJE PRI JELŠAH"]
[1227,"TINSKO","ŠMARJE PRI JELŠAH"]
[1228,"SOPOTE","ŠMARJE PRI JELŠAH"]
[1229,"PODČETRTEK","ŠMARJE PRI JELŠAH"]
[1230,"IMENO","ŠMARJE PRI JELŠAH"]
[1231,"VIRŠTANJ","ŠMARJE PRI JELŠAH"]
[1232,"DOBLEŽIČE","ŠMARJE PRI JELŠAH"]
[1233,"VERAČE","ŠMARJE PRI JELŠAH"]
[1234,"BUČE","ŠMARJE PRI JELŠAH"]
[1235,"DRENSKO REBRO","ŠMARJE PRI JELŠAH"]
[1236,"ZAGORJE","ŠMARJE PRI JELŠAH"]
[1237,"PILŠTANJ","ŠMARJE PRI JELŠAH"]
[1238,"ZDOLE","ŠMARJE PRI JELŠAH"]
[1239,"VRENSKA GORCA","ŠMARJE PRI JELŠAH"]
[1240,"SEDLARJEVO","ŠMARJE PRI JELŠAH"]
[1241,"LASTNIČ","ŠMARJE PRI JELŠAH"]
[1242,"KOZJE","ŠMARJE PRI JELŠAH"]
[1243,"VETRNIK","ŠMARJE PRI JELŠAH"]
[1244,"GORJANE","ŠMARJE PRI JELŠAH"]
[1245,"PODSREDA","ŠMARJE PRI JELŠAH"]
[1246,"DEKMANCA","ŠMARJE PRI JELŠAH"]
[1247,"TREBČE","ŠMARJE PRI JELŠAH"]
[1248,"HRASTJE","ŠMARJE PRI JELŠAH"]
[1249,"PLES","ŠMARJE PRI JELŠAH"]
[1250,"KUNŠPERK","ŠMARJE PRI JELŠAH"]
[1251,"ZAGAJ","ŠMARJE PRI JELŠAH"]
[1252,"KRIŽE","BREŽICE"]
[1253,"OREŠJE","BREŽICE"]
[1254,"BUKOVJE","BREŽICE"]
[1255,"DRENOVEC","BREŽICE"]
[1256,"BREZOVICA","BREŽICE"]
[1257,"BIZELJSKO","BREŽICE"]
[1258,"PODGORJE","BREŽICE"]
[1259,"PAVLOVA VAS","BREŽICE"]
[1260,"SILOVEC","BREŽICE"]
[1261,"SROMLJE","BREŽICE"]
[1262,"ZGORNJA POHANCA","BREŽICE"]
[1263,"OKLUKOVA GORA","BREŽICE"]
[1264,"ARNOVO SELO","BREŽICE"]
[1265,"VOLČJE","BREŽICE"]
[1266,"CURNOVEC","BREŽICE"]
[1267,"BLATNO","BREŽICE"]
[1268,"DEDNJA VAS","BREŽICE"]
[1269,"PIŠECE","BREŽICE"]
[1270,"BREZJE","BREŽICE"]
[1271,"VITNA VAS","BREŽICE"]
[1272,"STARA VAS","BREŽICE"]
[1273,"ŽUPELEVEC","BREŽICE"]
[1274,"BOJSNO","BREŽICE"]
[1275,"PIRŠENBREG","BREŽICE"]
[1276,"GLOBOKO","BREŽICE"]
[1277,"MALI VRH","BREŽICE"]
[1278,"DEČNO SELO","BREŽICE"]
[1279,"ARTIČE","BREŽICE"]
[1280,"ZGORNJI OBREŽ","BREŽICE"]
[1281,"ŠENTLENART","BREŽICE"]
[1282,"BREZINA","BREŽICE"]
[1283,"ČRNC","BREŽICE"]
[1284,"BUKOŠEK","BREŽICE"]
[1285,"SELA","BREŽICE"]
[1286,"SLOGONSKO","BREŽICE"]
[1287,"VRHJE","BREŽICE"]
[1288,"JERESLAVEC","BREŽICE"]
[1289,"RAKOVEC","BREŽICE"]
[1290,"KAPELE","BREŽICE"]
[1291,"PODVINJE","BREŽICE"]
[1292,"GABRJE","BREŽICE"]
[1293,"VELIKI OBREŽ","BREŽICE"]
[1294,"RIGONCE","BREŽICE"]
[1295,"LOČE","BREŽICE"]
[1296,"MIHALOVEC","BREŽICE"]
[1297,"MOSTEC","BREŽICE"]
[1298,"TRNJE","BREŽICE"]
[1299,"ZAKOT","BREŽICE"]
[1300,"BREŽICE","BREŽICE"]
[1301,"KRŠKA VAS","BREŽICE"]
[1302,"CERKLJE","BREŽICE"]
[1303,"BUŠEČA VAS","BREŽICE"]
[1304,"STOJANSKI VRH","BREŽICE"]
[1305,"GLOBOČICE","BREŽICE"]
[1306,"ČATEŽ","BREŽICE"]
[1307,"CERINA","BREŽICE"]
[1308,"VELIKA DOLINA","BREŽICE"]
[1309,"KORITNO","BREŽICE"]
[1310,"NOVA VAS","BREŽICE"]
[1311,"KOSTANJEK","KRŠKO"]
[1312,"PLETERJE","KRŠKO"]
[1313,"ANOVEC","KRŠKO"]
[1314,"SREMIČ","KRŠKO"]
[1315,"VIDEM","KRŠKO"]
[1316,"STARA VAS","KRŠKO"]
[1317,"STARI GRAD","KRŠKO"]
[1318,"DOLENJA VAS","KRŠKO"]
[1319,"PESJE","KRŠKO"]
[1320,"DRNOVO","KRŠKO"]
[1321,"LESKOVEC","KRŠKO"]
[1322,"KRŠKO","KRŠKO"]
[1323,"VELIKI TRN","KRŠKO"]
[1324,"RAVNE","KRŠKO"]
[1325,"SENUŠE","KRŠKO"]
[1326,"RAKA","KRŠKO"]
[1327,"POVRŠJE","KRŠKO"]
[1328,"SMEDNIK","KRŠKO"]
[1329,"VELIKI PODLOG","KRŠKO"]
[1330,"VELIKO MRAŠEVO","KRŠKO"]
[1331,"KOSTANJEVICA","KRŠKO"]
[1332,"PODBOČJE","KRŠKO"]
[1333,"PLANINA","KRŠKO"]
[1334,"ČRNEČA VAS","KRŠKO"]
[1335,"OŠTRC","KRŠKO"]
[1336,"OREHOVEC","KRŠKO"]
[1337,"STRANJE","KRŠKO"]
[1338,"DOBROVA","KRŠKO"]
[1339,"REŠTANJ","KRŠKO"]
[1340,"MRČNA SELA","KRŠKO"]
[1341,"KOPRIVNICA","KRŠKO"]
[1342,"VELIKI DOL","KRŠKO"]
[1343,"VELIKI KAMEN","KRŠKO"]
[1344,"MALI KAMEN","KRŠKO"]
[1345,"ŠEDEM","KRŠKO"]
[1346,"GORNJI LESKOVEC","KRŠKO"]
[1347,"KALIŠOVEC","KRŠKO"]
[1348,"BREZJE","KRŠKO"]
[1349,"DOVŠKO","KRŠKO"]
[1350,"SENOVO","KRŠKO"]
[1351,"ARMEŠKO","KRŠKO"]
[1352,"LOKVE","KRŠKO"]
[1353,"RAZTEZ","KRŠKO"]
[1354,"GORICA","KRŠKO"]
[1355,"ANŽE","KRŠKO"]
[1356,"STOLOVNIK","KRŠKO"]
[1357,"BRESTANICA","KRŠKO"]
[1358,"DOLNJI LESKOVEC","KRŠKO"]
[1359,"PRESLADOL","KRŠKO"]
[1360,"ROŽNO","KRŠKO"]
[1361,"PODGORJE","SEVNICA"]
[1362,"OKROGLICE","SEVNICA"]
[1363,"RADEŽ","SEVNICA"]
[1364,"LOKA PRI ZIDANEM MOSTU","SEVNICA"]
[1365,"BREG","SEVNICA"]
[1366,"LEDINA","SEVNICA"]
[1367,"ZABUKOVJE","SEVNICA"]
[1368,"POKLEK","SEVNICA"]
[1369,"TRNOVEC","SEVNICA"]
[1370,"PODVRH","SEVNICA"]
[1371,"METNI VRH","SEVNICA"]
[1372,"ŽURKOV DOL","SEVNICA"]
[1373,"ŽIGRSKI VRH","SEVNICA"]
[1374,"KRAJNA BRDA","SEVNICA"]
[1375,"SELCE","SEVNICA"]
[1376,"KLADJE","SEVNICA"]
[1377,"BLANCA","SEVNICA"]
[1378,"BREZOVO","SEVNICA"]
[1379,"SEVNICA","SEVNICA"]
[1380,"ŠMARJE","SEVNICA"]
[1381,"BOŠTANJ","SEVNICA"]
[1382,"KOMPOLJE","SEVNICA"]
[1383,"CEROVEC","SEVNICA"]
[1384,"ŠENTJANŽ","SEVNICA"]
[1385,"PODBORŠT","SEVNICA"]
[1386,"KAL","SEVNICA"]
[1387,"CIRNIK","SEVNICA"]
[1388,"PIJAVICE","SEVNICA"]
[1389,"GOVEJI DOL","SEVNICA"]
[1390,"VRH","SEVNICA"]
[1391,"LOG","SEVNICA"]
[1392,"HUBAJNICA","SEVNICA"]
[1393,"STUDENEC","SEVNICA"]
[1394,"BUČKA","SEVNICA"]
[1395,"TELČE","SEVNICA"]
[1396,"KRSINJI VRH","SEVNICA"]
[1397,"TRŽIŠČE","SEVNICA"]
[1398,"BISTRICA","TREBNJE"]
[1399,"ŠENTRUPERT","TREBNJE"]
[1400,"STRAŽA","TREBNJE"]
[1401,"NOVO ZABUKOVJE","TREBNJE"]
[1402,"SELO-MIRNA","TREBNJE"]
[1403,"ČATEŽ","TREBNJE"]
[1404,"DOLGA NJIVA","TREBNJE"]
[1405,"MALI VIDEM","TREBNJE"]
[1406,"ŠKOVEC","TREBNJE"]
[1407,"ROJE","TREBNJE"]
[1408,"ŠEVNICA","TREBNJE"]
[1409,"BREZOVICA","TREBNJE"]
[1410,"MIRNA","TREBNJE"]
[1411,"OSTROŽNIK","TREBNJE"]
[1412,"MOKRONOG","TREBNJE"]
[1413,"LAKNICE","TREBNJE"]
[1414,"JELŠEVEC","TREBNJE"]
[1415,"TREBELNO","TREBNJE"]
[1416,"STARO ZABUKOVJE","TREBNJE"]
[1417,"ORNUŠKA VAS","TREBNJE"]
[1418,"LUKOVEK","TREBNJE"]
[1419,"PONIKVE","TREBNJE"]
[1420,"ČEŠNJEVEK","TREBNJE"]
[1421,"MEDVEDJE SELO","TREBNJE"]
[1422,"TREBNJE","TREBNJE"]
[1423,"VRHTREBNJE","TREBNJE"]
[1424,"ŠTEFAN","TREBNJE"]
[1425,"VELIKA LOKA","TREBNJE"]
[1426,"PRAPREČE","TREBNJE"]
[1427,"VELIKI GABER","TREBNJE"]
[1428,"ZAGORICA","TREBNJE"]
[1429,"STEHANJA VAS","TREBNJE"]
[1430,"KNEŽJA VAS","TREBNJE"]
[1431,"DOBRNIČ","TREBNJE"]
[1432,"KORITA","TREBNJE"]
[1433,"SELA PRI ŠUMBERKU","TREBNJE"]
[1434,"GORNJI KRIŽ","NOVO MESTO"]
[1435,"REBER","NOVO MESTO"]
[1436,"ŽUŽEMBERK","NOVO MESTO"]
[1437,"ŠMIHEL PRI ŽUŽEMBERKU","NOVO MESTO"]
[1438,"ŽVIRČE","NOVO MESTO"]
[1439,"HINJE","NOVO MESTO"]
[1440,"SELA PRI HINJAH","NOVO MESTO"]
[1441,"VELIKO LIPJE","NOVO MESTO"]
[1442,"STAVČA VAS","NOVO MESTO"]
[1443,"DVOR","NOVO MESTO"]
[1444,"AJDOVEC","NOVO MESTO"]
[1445,"BREZOVA REBER","NOVO MESTO"]
[1446,"GORENJE POLJE","NOVO MESTO"]
[1447,"GORENJA STRAŽA","NOVO MESTO"]
[1448,"PREČNA","NOVO MESTO"]
[1449,"GLOBODOL","NOVO MESTO"]
[1450,"GOLOBINJEK","NOVO MESTO"]
[1451,"MIRNA PEČ","NOVO MESTO"]
[1452,"HMELJČIČ","NOVO MESTO"]
[1453,"ZAGORICA","NOVO MESTO"]
[1454,"DALJNJI VRH","NOVO MESTO"]
[1455,"BRŠLJIN","NOVO MESTO"]
[1456,"NOVO MESTO","NOVO MESTO"]
[1457,"ŽDINJA VAS","NOVO MESTO"]
[1458,"ČREŠNJICE","NOVO MESTO"]
[1459,"HERINJA VAS","NOVO MESTO"]
[1460,"ŠENTPETER","NOVO MESTO"]
[1461,"ŽALOVIČE","NOVO MESTO"]
[1462,"ZBURE","NOVO MESTO"]
[1463,"ZAGRAD","NOVO MESTO"]
[1464,"DOLE","NOVO MESTO"]
[1465,"STARA VAS","NOVO MESTO"]
[1466,"GORENJA VAS","NOVO MESTO"]
[1467,"DRUŽINSKA VAS","NOVO MESTO"]
[1468,"BELA CERKEV","NOVO MESTO"]
[1469,"TOMAŽJA VAS","NOVO MESTO"]
[1470,"DOBRAVA","NOVO MESTO"]
[1471,"MRŠEČA VAS","NOVO MESTO"]
[1472,"OSTROG","NOVO MESTO"]
[1473,"GRADIŠČE","NOVO MESTO"]
[1474,"POLHOVICA","NOVO MESTO"]
[1475,"GORENJA OREHOVICA","NOVO MESTO"]
[1476,"ŠENTJERNEJ","NOVO MESTO"]
[1477,"VRHPOLJE","NOVO MESTO"]
[1478,"GABRJE","NOVO MESTO"]
[1479,"BRUSNICE","NOVO MESTO"]
[1480,"POTOV VRH","NOVO MESTO"]
[1481,"SMOLENJA VAS","NOVO MESTO"]
[1482,"RAGOVO","NOVO MESTO"]
[1483,"KANDIJA","NOVO MESTO"]
[1484,"ŠMIHEL PRI NOVEM MESTU","NOVO MESTO"]
[1485,"GOTNA VAS","NOVO MESTO"]
[1486,"STOPIČE","NOVO MESTO"]
[1487,"ZAJČJI VRH","NOVO MESTO"]
[1488,"HRUŠICA","NOVO MESTO"]
[1489,"CEROVEC","NOVO MESTO"]
[1490,"TEŽKA VODA","NOVO MESTO"]
[1491,"LAKOVNICE","NOVO MESTO"]
[1492,"STRANSKA VAS","NOVO MESTO"]
[1493,"VELIKI PODLJUBEN","NOVO MESTO"]
[1494,"JURKA VAS","NOVO MESTO"]
[1495,"TOPLICE","NOVO MESTO"]
[1496,"PODTURN","NOVO MESTO"]
[1497,"PODSTENICE","NOVO MESTO"]
[1498,"POLJANE","NOVO MESTO"]
[1499,"STARE ŽAGE","NOVO MESTO"]
[1500,"DOBINDOL","NOVO MESTO"]
[1501,"VINJA VAS","NOVO MESTO"]
[1502,"DOLE","ČRNOMELJ"]
[1503,"SEKULIČI","ČRNOMELJ"]
[1504,"HRAST PRI JUGORJU","ČRNOMELJ"]
[1505,"BUŠINJA VAS","ČRNOMELJ"]
[1506,"LOKVICA","ČRNOMELJ"]
[1507,"GABROVEC","ČRNOMELJ"]
[1508,"BOJANJA VAS","ČRNOMELJ"]
[1509,"RADOVICA","ČRNOMELJ"]
[1510,"SLAMNA VAS","ČRNOMELJ"]
[1511,"DRAŠIČI","ČRNOMELJ"]
[1512,"BOŽAKOVO","ČRNOMELJ"]
[1513,"RADOVIČI","ČRNOMELJ"]
[1514,"ROSALNICE","ČRNOMELJ"]
[1515,"METLIKA","ČRNOMELJ"]
[1516,"PRIMOSTEK","ČRNOMELJ"]
[1517,"DOBRAVICE","ČRNOMELJ"]
[1518,"GRADAC","ČRNOMELJ"]
[1519,"PODZEMELJ","ČRNOMELJ"]
[1520,"ŠTALE","ČRNOMELJ"]
[1521,"ČRMOŠNJICE","ČRNOMELJ"]
[1522,"PRIBIŠJE","ČRNOMELJ"]
[1523,"ŠTREKLJEVEC","ČRNOMELJ"]
[1524,"SODJI VRH","ČRNOMELJ"]
[1525,"ČREŠNJEVEC","ČRNOMELJ"]
[1526,"VINJI VRH","ČRNOMELJ"]
[1527,"SEMIČ","ČRNOMELJ"]
[1528,"BREZJE PRI VINJEM VRHU","ČRNOMELJ"]
[1529,"KOT","ČRNOMELJ"]
[1530,"BLATNIK","ČRNOMELJ"]
[1531,"GOLOBINJEK","ČRNOMELJ"]
[1532,"PLANINA","ČRNOMELJ"]
[1533,"KLEČ","ČRNOMELJ"]
[1534,"PETROVA VAS","ČRNOMELJ"]
[1535,"ČRNOMELJ","ČRNOMELJ"]
[1536,"TALČJI VRH","ČRNOMELJ"]
[1537,"BUKOVA GORA","ČRNOMELJ"]
[1538,"DOLENJA PODGORA","ČRNOMELJ"]
[1539,"MAVRLEN","ČRNOMELJ"]
[1540,"DOBLIČE","ČRNOMELJ"]
[1541,"LOKA","ČRNOMELJ"]
[1542,"ZASTAVA","ČRNOMELJ"]
[1543,"KRASINEC","ČRNOMELJ"]
[1544,"GRIBLJE","ČRNOMELJ"]
[1545,"BEDENJ","ČRNOMELJ"]
[1546,"TRIBUČE","ČRNOMELJ"]
[1547,"BUTORAJ","ČRNOMELJ"]
[1548,"GOLEK","ČRNOMELJ"]
[1549,"TANČA GORA","ČRNOMELJ"]
[1550,"DRAGATUŠ","ČRNOMELJ"]
[1551,"BELČJI VRH","ČRNOMELJ"]
[1552,"ADLEŠIČI","ČRNOMELJ"]
[1553,"BOJANCI","ČRNOMELJ"]
[1554,"HRAST PRI VINICI","ČRNOMELJ"]
[1555,"NOVA LIPA","ČRNOMELJ"]
[1556,"STARA LIPA","ČRNOMELJ"]
[1557,"STARI TRG OB KOLPI","ČRNOMELJ"]
[1558,"SODEVCI","ČRNOMELJ"]
[1559,"RADENCI","ČRNOMELJ"]
[1560,"SINJI VRH","ČRNOMELJ"]
[1561,"DAMELJ","ČRNOMELJ"]
[1562,"UČAKOVCI","ČRNOMELJ"]
[1563,"VINICA","ČRNOMELJ"]
[1564,"PRELOKA","ČRNOMELJ"]
[1565,"MARINDOL","ČRNOMELJ"]
[1566,"ŽUNIČI","ČRNOMELJ"]
[1567,"POTISKAVEC","KOČEVJE"]
[1568,"PODTABOR","KOČEVJE"]
[1569,"POLOM","KOČEVJE"]
[1570,"STARI LOG","KOČEVJE"]
[1571,"SMUKA","KOČEVJE"]
[1572,"ROG","KOČEVJE"]
[1573,"MALA GORA","KOČEVJE"]
[1574,"KOBLARJI","KOČEVJE"]
[1575,"STARA CERKEV","KOČEVJE"]
[1576,"MAHOVNIK","KOČEVJE"]
[1577,"KOČEVJE","KOČEVJE"]
[1578,"ŽELJNE","KOČEVJE"]
[1579,"RAJHENAV","KOČEVJE"]
[1580,"ONEK","KOČEVJE"]
[1581,"LIVOLD","KOČEVJE"]
[1582,"KOČE","KOČEVJE"]
[1583,"GOTENICA","KOČEVJE"]
[1584,"DRAGA","KOČEVJE"]
[1585,"TRAVA","KOČEVJE"]
[1586,"ŽURGE","KOČEVJE"]
[1587,"OSILNICA","KOČEVJE"]
[1588,"BOSLJIVA LOKA","KOČEVJE"]
[1589,"BOROVEC","KOČEVJE"]
[1590,"KOČEVSKA REKA","KOČEVJE"]
[1591,"NOVI LAZI","KOČEVJE"]
[1592,"ŠTALCERJI","KOČEVJE"]
[1593,"ČRNI POTOK","KOČEVJE"]
[1594,"MOZELJ","KOČEVJE"]
[1596,"BREZJE","KOČEVJE"]
[1597,"KOPRIVNIK","KOČEVJE"]
[1599,"NEMŠKA LOKA","KOČEVJE"]
[1600,"KNEŽJA LIPA","KOČEVJE"]
[1601,"ČEPLJE","KOČEVJE"]
[1602,"PREDGRAD","KOČEVJE"]
[1603,"DOL","KOČEVJE"]
[1604,"SPODNJI LOG","KOČEVJE"]
[1605,"RAJNDOL","KOČEVJE"]
[1606,"ŠKRILJ","KOČEVJE"]
[1607,"SUHOR","KOČEVJE"]
[1608,"BRIGA","KOČEVJE"]
[1609,"BANJA LOKA","KOČEVJE"]
[1610,"VRH","KOČEVJE"]
[1611,"FARA","KOČEVJE"]
[1612,"PIRČE","KOČEVJE"]
[1613,"KUŽELJ","KOČEVJE"]
[1614,"SLEMENA","KOČEVJE"]
[1615,"PODPOLJANE","KOČEVJE"]
[1616,"VELIKE POLJANE","KOČEVJE"]
[1617,"SUŠJE","KOČEVJE"]
[1618,"VINICE","KOČEVJE"]
[1619,"SODRAŽICA","KOČEVJE"]
[1620,"ŽIMARICE","KOČEVJE"]
[1621,"GORA","KOČEVJE"]
[1622,"ZAMOSTEC","KOČEVJE"]
[1623,"JURJEVICA","KOČEVJE"]
[1624,"GORENJA VAS","KOČEVJE"]
[1625,"RIBNICA","KOČEVJE"]
[1626,"GORIČA VAS","KOČEVJE"]
[1627,"PRIGORICA","KOČEVJE"]
[1628,"DANE","KOČEVJE"]
[1629,"DOLENJA VAS","KOČEVJE"]
[1630,"RAKITNICA","KOČEVJE"]
[1631,"GRČARICE","KOČEVJE"]
[1632,"OTOK I","CERKNICA"]
[1633,"GORENJE JEZERO","CERKNICA"]
[1634,"DANE","CERKNICA"]
[1635,"PODCERKEV","CERKNICA"]
[1636,"LOŽ","CERKNICA"]
[1637,"STARI TRG PRI LOŽU","CERKNICA"]
[1638,"KNEŽJA NJIVA","CERKNICA"]
[1639,"VRHNIKA","CERKNICA"]
[1640,"RETJE","KOČEVJE"]
[1641,"HRIB","KOČEVJE"]
[1642,"TRAVNIK","KOČEVJE"]
[1643,"POLJANE","CERKNICA"]
[1644,"IGA VAS","CERKNICA"]
[1645,"VIŠEVEK","CERKNICA"]
[1646,"PUDOB","CERKNICA"]
[1647,"NADLESK","CERKNICA"]
[1648,"KOZARIŠČE","CERKNICA"]
[1649,"VRH","CERKNICA"]
[1650,"BABNA POLICA","CERKNICA"]
[1651,"BABNO POLJE","CERKNICA"]
[1652,"RAKITNA","LJUBLJANA"]
[1653,"OSREDEK","CERKNICA"]
[1654,"ŽILCE","CERKNICA"]
[1655,"KRANJČE","CERKNICA"]
[1656,"OTAVE","CERKNICA"]
[1657,"KOŽLJEK","CERKNICA"]
[1658,"BEZULJAK","CERKNICA"]
[1659,"RAKEK","CERKNICA"]
[1660,"UNEC","CERKNICA"]
[1661,"BEGUNJE PRI CERKNICI","CERKNICA"]
[1662,"SELŠČEK","CERKNICA"]
[1663,"CAJNARJE","CERKNICA"]
[1664,"ŠTRUKLJEVA VAS","CERKNICA"]
[1665,"JERŠIČE","CERKNICA"]
[1666,"RAVNE PRI ŽILCAH","CERKNICA"]
[1667,"HITENO","CERKNICA"]
[1668,"ZALES","CERKNICA"]
[1669,"KREMENCA","CERKNICA"]
[1670,"ULAKA","CERKNICA"]
[1671,"GRADIŠKO","CERKNICA"]
[1672,"RAVNIK","CERKNICA"]
[1673,"VELIKE BLOKE","CERKNICA"]
[1674,"RADLEK","CERKNICA"]
[1675,"GRAHOVO","CERKNICA"]
[1676,"CERKNICA","CERKNICA"]
[1677,"DOLENJA VAS","CERKNICA"]
[1678,"OTOK II","CERKNICA"]
[1679,"LIPSENJ","CERKNICA"]
[1680,"ŽEROVNICA","CERKNICA"]
[1681,"BLOČICE","CERKNICA"]
[1682,"STUDENO","CERKNICA"]
[1683,"NOVA VAS","CERKNICA"]
[1684,"VOLČJE","CERKNICA"]
[1685,"KRAJIČ","CERKNICA"]
[1686,"STRMCA","CERKNICA"]
[1687,"VELIKI VRH","CERKNICA"]
[1688,"RUNARSKO","CERKNICA"]
[1689,"BENETE","CERKNICA"]
[1690,"STUDENEC","CERKNICA"]
[1691,"HUDI VRH","CERKNICA"]
[1692,"METULJE","CERKNICA"]
[1693,"TOPOL","CERKNICA"]
[1694,"RAVNE PRI TOPOLU","CERKNICA"]
[1695,"KARLOVŠKO PREDMESTJE","LJUBLJANA"]
[1696,"RUDNIK","LJUBLJANA"]
[1697,"LANIŠČE","LJUBLJANA"]
[1698,"PIJAVA GORICA","LJUBLJANA"]
[1699,"DOBRAVICA","LJUBLJANA"]
[1700,"IG","LJUBLJANA"]
[1701,"IŠKA LOKA","LJUBLJANA"]
[1702,"TOMIŠELJ","LJUBLJANA"]
[1703,"JEZERO","LJUBLJANA"]
[1704,"KAMNIK","LJUBLJANA"]
[1705,"PRESERJE","LJUBLJANA"]
[1706,"VRBLJENE","LJUBLJANA"]
[1707,"IŠKA VAS","LJUBLJANA"]
[1708,"GOLO","LJUBLJANA"]
[1709,"ŽELIMLJE","LJUBLJANA"]
[1710,"GRADIŠČE","LJUBLJANA"]
[1711,"TURJAK","LJUBLJANA"]
[1712,"ZAPOTOK","LJUBLJANA"]
[1713,"KRVAVA PEČ","LJUBLJANA"]
[1714,"SELO PRI ROBU","LJUBLJANA"]
[1715,"OSOLNIK","LJUBLJANA"]
[1716,"ULAKA","LJUBLJANA"]
[1717,"VELIKE LAŠČE","LJUBLJANA"]
[1718,"DVORSKA VAS","LJUBLJANA"]
[1719,"LUŽARJI","LJUBLJANA"]
[1720,"KRAKOVSKO PREDMESTJE","LJUBLJANA"]
[1721,"GRADIŠČE I","LJUBLJANA"]
[1722,"TRNOVSKO PREDMESTJE","LJUBLJANA"]
[1723,"VIČ","LJUBLJANA"]
[1724,"BREZOVICA","LJUBLJANA"]
[1725,"AJDOVŠČINA","LJUBLJANA"]
[1726,"ŠENTPETER","LJUBLJANA"]
[1727,"POLJANSKO PREDMESTJE","LJUBLJANA"]
[1728,"LJUBLJANA MESTO","LJUBLJANA"]
[1729,"ŠMARTNO OB SAVI","LJUBLJANA"]
[1730,"MOSTE","LJUBLJANA"]
[1731,"UDMAT","LJUBLJANA"]
[1732,"ŠTEPANJA VAS","LJUBLJANA"]
[1733,"BIZOVIK","LJUBLJANA"]
[1734,"JEŽICA","LJUBLJANA"]
[1735,"STOŽICE","LJUBLJANA"]
[1736,"BRINJE I","LJUBLJANA"]
[1737,"TABOR","LJUBLJANA"]
[1738,"DRAVLJE","LJUBLJANA"]
[1739,"ZGORNJA ŠIŠKA","LJUBLJANA"]
[1740,"SPODNJA ŠIŠKA","LJUBLJANA"]
[1741,"VODICE","LJUBLJANA"]
[1742,"REPNJE","LJUBLJANA"]
[1743,"BUKOVICA","LJUBLJANA"]
[1744,"ŠINKOV TURN","LJUBLJANA"]
[1745,"VESCA","LJUBLJANA"]
[1746,"RAŠICA","LJUBLJANA"]
[1747,"POLJE","LJUBLJANA"]
[1748,"SKARUČNA","LJUBLJANA"]
[1749,"GAMELJNE","LJUBLJANA"]
[1750,"ŠMARTNO POD ŠMARNO GORO","LJUBLJANA"]
[1751,"TACEN","LJUBLJANA"]
[1752,"STANEŽIČE","LJUBLJANA"]
[1753,"VIŽMARJE","LJUBLJANA"]
[1754,"ŠENTVID NAD LJUBLJANO","LJUBLJANA"]
[1755,"GLINCE","LJUBLJANA"]
[1756,"ČRNUČE","LJUBLJANA"]
[1757,"NADGORICA","LJUBLJANA"]
[1758,"DRAGOMELJ","DOMŽALE"]
[1759,"PODGORICA","LJUBLJANA"]
[1760,"BERIČEVO","LJUBLJANA"]
[1761,"DOL PRI LJUBLJANI","LJUBLJANA"]
[1762,"PODGORA","LJUBLJANA"]
[1763,"KLEČE","LJUBLJANA"]
[1764,"KRIŽEVSKA VAS","LJUBLJANA"]
[1765,"VINJE","LJUBLJANA"]
[1766,"PETELINJE","LJUBLJANA"]
[1767,"DOLSKO","LJUBLJANA"]
[1768,"SENOŽETI","LJUBLJANA"]
[1769,"LAZE","LJUBLJANA"]
[1770,"KAŠELJ","LJUBLJANA"]
[1771,"ZADOBROVA","LJUBLJANA"]
[1772,"SLAPE","LJUBLJANA"]
[1773,"DOBRUNJE","LJUBLJANA"]
[1774,"PODMOLNIK","LJUBLJANA"]
[1775,"SOSTRO","LJUBLJANA"]
[1776,"LIPOGLAV","LJUBLJANA"]
[1777,"JAVOR","LJUBLJANA"]
[1778,"VOLAVLJE","LJUBLJANA"]
[1779,"TREBELJEVO","LJUBLJANA"]
[1780,"BLEČJI VRH","GROSUPLJE"]
[1781,"POLICA","GROSUPLJE"]
[1782,"STARA VAS","GROSUPLJE"]
[1783,"GROSUPLJE - NASELJE","GROSUPLJE"]
[1784,"STRANSKA VAS","GROSUPLJE"]
[1785,"SELA","GROSUPLJE"]
[1786,"ŠMARJE","GROSUPLJE"]
[1787,"MALI VRH","GROSUPLJE"]
[1788,"VINO","GROSUPLJE"]
[1789,"PONOVA VAS","GROSUPLJE"]
[1790,"SLIVNICA","GROSUPLJE"]
[1791,"ŽALNA","GROSUPLJE"]
[1792,"LUČE","GROSUPLJE"]
[1793,"ILOVA GORA","GROSUPLJE"]
[1794,"RAČNA","GROSUPLJE"]
[1795,"VELIKE LIPLJENE","GROSUPLJE"]
[1796,"CESTA","GROSUPLJE"]
[1797,"ZDENSKA VAS","GROSUPLJE"]
[1798,"ZAGORICA","GROSUPLJE"]
[1799,"VIDEM DOBREPOLJE","GROSUPLJE"]
[1800,"PODGORA","GROSUPLJE"]
[1801,"KOMPOLJE","GROSUPLJE"]
[1802,"LESKOVEC","GROSUPLJE"]
[1803,"METNAJ","GROSUPLJE"]
[1804,"ČEŠNJICE","GROSUPLJE"]
[1805,"BUKOVICA","GROSUPLJE"]
[1806,"SOBRAČE","LITIJA"]
[1807,"TEMENICA","GROSUPLJE"]
[1808,"MALE DOLE","GROSUPLJE"]
[1809,"ŠENTVID","GROSUPLJE"]
[1810,"STIČNA","GROSUPLJE"]
[1811,"DOBRAVA","GROSUPLJE"]
[1812,"DEDNI DOL","GROSUPLJE"]
[1813,"VIŠNJA GORA","GROSUPLJE"]
[1814,"KRIŠKA VAS","GROSUPLJE"]
[1815,"DRAGA","GROSUPLJE"]
[1816,"HUDO","GROSUPLJE"]
[1817,"RADOHOVA VAS","GROSUPLJE"]
[1818,"PODBORŠT","GROSUPLJE"]
[1819,"VELIKE PECE","GROSUPLJE"]
[1820,"GORENJA VAS","GROSUPLJE"]
[1821,"VRHE","GROSUPLJE"]
[1822,"MULJAVA","GROSUPLJE"]
[1823,"DOB","GROSUPLJE"]
[1824,"VALIČNA VAS","GROSUPLJE"]
[1825,"ZAGRADEC","GROSUPLJE"]
[1826,"SUŠICA","GROSUPLJE"]
[1827,"KRKA","GROSUPLJE"]
[1828,"PODBUKOVJE","GROSUPLJE"]
[1829,"VELIKO GLOBOKO","GROSUPLJE"]
[1830,"AMBRUS","GROSUPLJE"]
[1831,"VIŠNJE","GROSUPLJE"]
[1832,"VAČE","LITIJA"]
[1833,"SAVA PRI LITIJI","LITIJA"]
[1834,"KONJ","LITIJA"]
[1835,"HOTIČ","LITIJA"]
[1836,"KRESNICE","LITIJA"]
[1837,"KRESNIŠKI VRH","LITIJA"]
[1838,"LITIJA","LITIJA"]
[1839,"JABLANICA","LITIJA"]
[1840,"POLŠNIK","LITIJA"]
[1841,"VELIKA GOBA","LITIJA"]
[1842,"DOLE PRI LITIJI","LITIJA"]
[1843,"PRELESJE","LITIJA"]
[1844,"VODICE","LITIJA"]
[1845,"MORAVČE","LITIJA"]
[1846,"LIBERGA","LITIJA"]
[1847,"ŠMARTNO","LITIJA"]
[1848,"ŠTANGA","LITIJA"]
[1849,"VINTARJEVEC","LITIJA"]
[1850,"JEŽNI VRH","LITIJA"]
[1851,"GRADIŠČE","LITIJA"]
[1852,"POLJANE","LITIJA"]
[1853,"OKROG","LITIJA"]
[1854,"TIHABOJ","LITIJA"]
[1855,"HRASTNIK-MESTO","TRBOVLJE"]
[1856,"DOL PRI HRASTNIKU","TRBOVLJE"]
[1857,"MARNO","TRBOVLJE"]
[1858,"TURJE","TRBOVLJE"]
[1859,"GORE","TRBOVLJE"]
[1860,"ŠIRJE","LAŠKO"]
[1861,"OBREŽJE","LAŠKO"]
[1862,"RADEČE","LAŠKO"]
[1863,"PODKRAJ","TRBOVLJE"]
[1864,"SVIBNO","LAŠKO"]
[1865,"NJIVICE","LAŠKO"]
[1866,"HOTEMEŽ","LAŠKO"]
[1867,"VRHOVO","LAŠKO"]
[1868,"KNEZDOL","TRBOVLJE"]
[1869,"ČEČE","TRBOVLJE"]
[1870,"OJSTRO","TRBOVLJE"]
[1871,"TRBOVLJE","TRBOVLJE"]
[1872,"DOBOVEC","TRBOVLJE"]
[1873,"HRASTNIK PRI TROJANAH","TRBOVLJE"]
[1874,"BREZJE","TRBOVLJE"]
[1875,"ČEMŠENIK","TRBOVLJE"]
[1876,"JESENOVO","TRBOVLJE"]
[1877,"VRHE I","TRBOVLJE"]
[1878,"KOTREDEŽ","TRBOVLJE"]
[1879,"RŽIŠE","TRBOVLJE"]
[1880,"KOLOVRAT","TRBOVLJE"]
[1881,"KANDRŠE","TRBOVLJE"]
[1882,"ZABAVA","TRBOVLJE"]
[1883,"ŠEMNIK","TRBOVLJE"]
[1884,"LOKE PRI ZAGORJU","TRBOVLJE"]
[1885,"POTOŠKA VAS","TRBOVLJE"]
[1886,"ZAGORJE-MESTO","TRBOVLJE"]
[1887,"ŠENTLAMBERT","TRBOVLJE"]
[1888,"KONJŠICA","LITIJA"]
[1889,"PODKUM","TRBOVLJE"]
[1890,"ČRNA","KAMNIK"]
[1891,"ŽUPANJE NJIVE","KAMNIK"]
[1892,"BISTRIČICA","KAMNIK"]
[1893,"STRANJE","KAMNIK"]
[1894,"GODIČ","KAMNIK"]
[1895,"GOZD","KAMNIK"]
[1896,"TUČNA","KAMNIK"]
[1897,"NEVLJE","KAMNIK"]
[1898,"MEKINJE","KAMNIK"]
[1899,"KOŠIŠE","KAMNIK"]
[1900,"TUNJICE","KAMNIK"]
[1901,"MLAKA","KAMNIK"]
[1902,"KLANEC","KAMNIK"]
[1903,"NASOVČE","KAMNIK"]
[1904,"KAPLJA VAS","KAMNIK"]
[1905,"MOSTE","KAMNIK"]
[1906,"SUHADOLE","KAMNIK"]
[1907,"KRIŽ","KAMNIK"]
[1908,"PODGORJE","KAMNIK"]
[1909,"ŠMARCA","KAMNIK"]
[1910,"VOLČJI POTOK","KAMNIK"]
[1911,"KAMNIK","KAMNIK"]
[1912,"PALOVČE","KAMNIK"]
[1913,"PODHRUŠKA","KAMNIK"]
[1914,"ZNOJILE","KAMNIK"]
[1915,"HRUŠEVKA","KAMNIK"]
[1916,"LOKE","KAMNIK"]
[1917,"ŠMARTNO V TUHINJU","KAMNIK"]
[1918,"PŠAJNOVICA","KAMNIK"]
[1919,"ZGORNJI TUHINJ","KAMNIK"]
[1920,"HRIBI","KAMNIK"]
[1921,"ŠPITALIČ","KAMNIK"]
[1922,"ZGORNJI MOTNIK","KAMNIK"]
[1923,"MOTNIK","KAMNIK"]
[1924,"TROJANE","DOMŽALE"]
[1925,"UČAK","DOMŽALE"]
[1926,"ŠENTOŽBOLT","DOMŽALE"]
[1927,"BLAGOVICA","DOMŽALE"]
[1928,"ČEŠNJICE","DOMŽALE"]
[1929,"KORENO","DOMŽALE"]
[1930,"ŽIROVŠE","DOMŽALE"]
[1931,"KRAŠNJA","DOMŽALE"]
[1932,"ZLATO POLJE","DOMŽALE"]
[1933,"LUKOVICA","DOMŽALE"]
[1934,"RAFOLČE","DOMŽALE"]
[1935,"ROVA","DOMŽALE"]
[1936,"RADOMLJE","DOMŽALE"]
[1937,"HOMEC","DOMŽALE"]
[1938,"MENGEŠ","DOMŽALE"]
[1939,"DOBENO","DOMŽALE"]
[1940,"LOKA","DOMŽALE"]
[1943,"DOB","DOMŽALE"]
[1944,"PREVOJE","DOMŽALE"]
[1945,"KRTINA","DOMŽALE"]
[1946,"STUDENEC","DOMŽALE"]
[1947,"SPODNJE KOSEZE","DOMŽALE"]
[1948,"KRAŠCE","DOMŽALE"]
[1949,"NEGASTRN","DOMŽALE"]
[1950,"LIMBARSKA GORA","DOMŽALE"]
[1951,"ZGORNJE KOSEZE","DOMŽALE"]
[1952,"PEČE","DOMŽALE"]
[1953,"DRTIJA","DOMŽALE"]
[1954,"VELIKA VAS","DOMŽALE"]
[1955,"MORAVČE","DOMŽALE"]
[1956,"VRHPOLJE","DOMŽALE"]
[1957,"TROJICA","DOMŽALE"]
[1958,"BREZOVICA","DOMŽALE"]
[1959,"DOMŽALE","DOMŽALE"]
[1961,"TRZIN","DOMŽALE"]
[1962,"DEPALA VAS","DOMŽALE"]
[1963,"ŠTUDA","DOMŽALE"]
[1964,"IHAN","DOMŽALE"]
[1965,"BRDO","DOMŽALE"]
[1966,"SELO","DOMŽALE"]
[1967,"MOŠE","LJUBLJANA"]
[1968,"HRAŠE","LJUBLJANA"]
[1969,"ZAPOGE","LJUBLJANA"]
[1970,"SMLEDNIK","LJUBLJANA"]
[1971,"ZBILJE","LJUBLJANA"]
[1972,"SENICA","LJUBLJANA"]
[1973,"MEDVODE","LJUBLJANA"]
[1974,"ZGORNJE PIRNIČE","LJUBLJANA"]
[1975,"SPODNJE PIRNIČE","LJUBLJANA"]
[1976,"PRESKA","LJUBLJANA"]
[1977,"SORA","LJUBLJANA"]
[1978,"STUDENČICE","LJUBLJANA"]
[1979,"ŽLEBE","LJUBLJANA"]
[1980,"TOPOL","LJUBLJANA"]
[1981,"GOLO BRDO","LJUBLJANA"]
[1982,"ŠUJICA","LJUBLJANA"]
[1983,"BABNA GORA","LJUBLJANA"]
[1984,"SELO NAD POLHOVIM GRADCEM","LJUBLJANA"]
[1985,"ČRNI VRH","LJUBLJANA"]
[1986,"POLHOV GRADEC","LJUBLJANA"]
[1987,"SETNIK","LJUBLJANA"]
[1988,"BUTAJNOVA","LJUBLJANA"]
[1989,"ŠENTJOŠT","LJUBLJANA"]
[1990,"ŽAŽAR","LJUBLJANA"]
[1991,"VRZDENEC","LJUBLJANA"]
[1992,"HORJUL","LJUBLJANA"]
[1993,"ZAKLANEC","LJUBLJANA"]
[1994,"DOBROVA","LJUBLJANA"]
[1995,"PODSMREKA","LJUBLJANA"]
[1996,"LOG","VRHNIKA"]
[1997,"BLATNA BREZOVICA","VRHNIKA"]
[1998,"VELIKA LIGOJNA","VRHNIKA"]
[1999,"PODLIPA","VRHNIKA"]
[2000,"ZAPLANA","VRHNIKA"]
[2001,"STARA VRHNIKA","VRHNIKA"]
[2002,"VRHNIKA","VRHNIKA"]
[2003,"VERD","VRHNIKA"]
[2004,"BOROVNICA","VRHNIKA"]
[2005,"BREG","VRHNIKA"]
[2006,"ZABOČEVO","VRHNIKA"]
[2007,"VRH","LOGATEC"]
[2008,"ROVTE","LOGATEC"]
[2009,"PETKOVEC","LOGATEC"]
[2010,"ŽIBRŠE","LOGATEC"]
[2011,"MEDVEDJE BRDO","LOGATEC"]
[2012,"NOVI SVET","LOGATEC"]
[2013,"HOTEDRŠICA","LOGATEC"]
[2014,"RAVNIK","LOGATEC"]
[2015,"GORENJI LOGATEC","LOGATEC"]
[2016,"BLEKOVA VAS","LOGATEC"]
[2017,"DOLENJI LOGATEC","LOGATEC"]
[2018,"LAZE","LOGATEC"]
[2019,"GRČAREVEC","LOGATEC"]
[2020,"LEDINICA","ŠKOFJA LOKA"]
[2021,"DOBRAČEVA","ŠKOFJA LOKA"]
[2022,"ŽIROVSKI VRH","ŠKOFJA LOKA"]
[2023,"ŽIRI","ŠKOFJA LOKA"]
[2024,"VRSNIK II","ŠKOFJA LOKA"]
[2025,"OPALE","ŠKOFJA LOKA"]
[2026,"PEVNO","ŠKOFJA LOKA"]
[2027,"STARA LOKA","ŠKOFJA LOKA"]
[2028,"DORFARJE","ŠKOFJA LOKA"]
[2029,"STARI DVOR","ŠKOFJA LOKA"]
[2030,"SUHA","ŠKOFJA LOKA"]
[2031,"GODEŠIČ","ŠKOFJA LOKA"]
[2032,"RETEČE","ŠKOFJA LOKA"]
[2033,"DRAGA","ŠKOFJA LOKA"]
[2034,"PUŠTAL","ŠKOFJA LOKA"]
[2035,"ŠKOFJA LOKA","ŠKOFJA LOKA"]
[2036,"SOPOTNICA","ŠKOFJA LOKA"]
[2037,"PODVRH","ŠKOFJA LOKA"]
[2038,"DOLENČICE","ŠKOFJA LOKA"]
[2039,"GORENJA RAVAN","ŠKOFJA LOKA"]
[2040,"PODOBENO","ŠKOFJA LOKA"]
[2041,"VISOKO","ŠKOFJA LOKA"]
[2042,"ZMINEC","ŠKOFJA LOKA"]
[2043,"BARBARA","ŠKOFJA LOKA"]
[2044,"OŽBOLT","ŠKOFJA LOKA"]
[2045,"STANIŠE","ŠKOFJA LOKA"]
[2046,"KOVSKI VRH","ŠKOFJA LOKA"]
[2047,"DOBJE","ŠKOFJA LOKA"]
[2048,"DOLENJE BRDO","ŠKOFJA LOKA"]
[2049,"HOTAVLJE","ŠKOFJA LOKA"]
[2050,"LESKOVICA","ŠKOFJA LOKA"]
[2051,"PODJELOVO BRDO","ŠKOFJA LOKA"]
[2052,"LANIŠE","ŠKOFJA LOKA"]
[2053,"JAVORJEV DOL","ŠKOFJA LOKA"]
[2054,"KOPRIVNIK","ŠKOFJA LOKA"]
[2055,"STARA OSELICA","ŠKOFJA LOKA"]
[2056,"TREBIJA","ŠKOFJA LOKA"]
[2057,"GORENJA VAS","ŠKOFJA LOKA"]
[2058,"DOLENJA DOBRAVA","ŠKOFJA LOKA"]
[2059,"LUČINE","ŠKOFJA LOKA"]
[2060,"DRAŽGOŠE","ŠKOFJA LOKA"]
[2061,"PODLONK","ŠKOFJA LOKA"]
[2062,"STUDENO","ŠKOFJA LOKA"]
[2063,"KALIŠE","ŠKOFJA LOKA"]
[2064,"SELCA","ŠKOFJA LOKA"]
[2065,"BUKOVŠČICA","ŠKOFJA LOKA"]
[2066,"DOLENJA VAS","ŠKOFJA LOKA"]
[2067,"BUKOVICA","ŠKOFJA LOKA"]
[2068,"ZGORNJA LUŠA","ŠKOFJA LOKA"]
[2069,"LENART","ŠKOFJA LOKA"]
[2070,"MARTINJ VRH","ŠKOFJA LOKA"]
[2071,"ŽELEZNIKI","ŠKOFJA LOKA"]
[2072,"ZALI LOG","ŠKOFJA LOKA"]
[2073,"DANJE","ŠKOFJA LOKA"]
[2074,"SORICA","ŠKOFJA LOKA"]
[2075,"DAVČA","ŠKOFJA LOKA"]
[2076,"ZGORNJE JEZERSKO","KRANJ"]
[2077,"SPODNJE JEZERSKO","KRANJ"]
[2078,"KOKRA","KRANJ"]
[2079,"ŠENTURŠKA GORA","KRANJ"]
[2080,"ŠTEFANJA GORA","KRANJ"]
[2081,"OLŠEVEK","KRANJ"]
[2082,"TUPALIČE","KRANJ"]
[2083,"BREG OB KOKRI","KRANJ"]
[2084,"BELA","KRANJ"]
[2085,"BABNI VRT","KRANJ"]
[2086,"SREDNJA VAS","KRANJ"]
[2087,"GOLNIK","KRANJ"]
[2088,"GORIČE","KRANJ"]
[2089,"TENETIŠE","KRANJ"]
[2090,"VOJVODIN BORŠT I","KRANJ"]
[2091,"VOJVODIN BORŠT II","KRANJ"]
[2092,"DUPLJE","KRANJ"]
[2093,"PODBREZJE","KRANJ"]
[2094,"ŽEJE","KRANJ"]
[2095,"STRAHINJ","KRANJ"]
[2096,"NAKLO","KRANJ"]
[2097,"OKROGLO","KRANJ"]
[2098,"STRUŽEVO","KRANJ"]
[2099,"PIVKA","KRANJ"]
[2100,"KRANJ","KRANJ"]
[2101,"RUPA","KRANJ"]
[2102,"KOKRICA","KRANJ"]
[2103,"PREDOSLJE","KRANJ"]
[2104,"SUHA","KRANJ"]
[2105,"BRITOF","KRANJ"]
[2106,"VISOKO","KRANJ"]
[2107,"LUŽE","KRANJ"]
[2108,"VELESOVO","KRANJ"]
[2109,"ČEŠNJEVEK","KRANJ"]
[2110,"GRAD","KRANJ"]
[2111,"PŠATA","KRANJ"]
[2112,"ŠMARTNO","KRANJ"]
[2113,"ZALOG","KRANJ"]
[2114,"DOBRAVA","KRANJ"]
[2115,"LAHOVČE","KRANJ"]
[2116,"SPODNJI BRNIK","KRANJ"]
[2117,"ZGORNJI BRNIK","KRANJ"]
[2118,"CERKLJE","KRANJ"]
[2119,"ŠENČUR","KRANJ"]
[2120,"PRIMSKOVO","KRANJ"]
[2121,"KLANEC","KRANJ"]
[2122,"HUJE","KRANJ"]
[2123,"ČIRČIČE","KRANJ"]
[2124,"HRASTJE","KRANJ"]
[2125,"VOGLJE","KRANJ"]
[2126,"TRBOJE","KRANJ"]
[2127,"NEMILJE","KRANJ"]
[2128,"ZGORNJA BESNICA","KRANJ"]
[2129,"SPODNJA BESNICA","KRANJ"]
[2130,"PŠEVO","KRANJ"]
[2131,"STRAŽIŠČE","KRANJ"]
[2132,"BITNJE","KRANJ"]
[2133,"KRIŽNA GORA","ŠKOFJA LOKA"]
[2134,"ŽABNICA","KRANJ"]
[2135,"DRULOVKA","KRANJ"]
[2136,"BREG OB SAVI","KRANJ"]
[2137,"JAMA","KRANJ"]
[2138,"PRAŠE","KRANJ"]
[2139,"MAVČIČE","KRANJ"]
[2140,"PODREČA","KRANJ"]
[2141,"PODLJUBELJ","KRANJ"]
[2142,"LOM POD STORŽIČEM","KRANJ"]
[2143,"TRŽIČ","KRANJ"]
[2144,"BISTRICA","KRANJ"]
[2145,"LEŠE","KRANJ"]
[2146,"KOVOR","KRANJ"]
[2147,"KRIŽE","KRANJ"]
[2148,"SENIČNO","KRANJ"]
[2149,"ŽIGANJA VAS","KRANJ"]
[2150,"ZVIRČE","KRANJ"]
[2151,"BEGUNJE","RADOVLJICA"]
[2152,"SREDNJA VAS","RADOVLJICA"]
[2153,"OTOK","RADOVLJICA"]
[2154,"NOVA VAS","RADOVLJICA"]
[2155,"HRAŠE","RADOVLJICA"]
[2156,"RADOVLJICA","RADOVLJICA"]
[2157,"PREDTRG","RADOVLJICA"]
[2158,"MOŠNJE","RADOVLJICA"]
[2159,"BREZJE","RADOVLJICA"]
[2160,"LJUBNO","RADOVLJICA"]
[2161,"ZALOŠE","RADOVLJICA"]
[2162,"DOBRAVA PRI KROPI","RADOVLJICA"]
[2163,"KAMNA GORICA","RADOVLJICA"]
[2164,"LANCOVO","RADOVLJICA"]
[2165,"KROPA","RADOVLJICA"]
[2166,"ČEŠNJICA PRI KROPI","RADOVLJICA"]
[2167,"RATEČE","JESENICE"]
[2168,"PODKOREN","JESENICE"]
[2169,"KRANJSKA GORA","JESENICE"]
[2170,"GOZD","JESENICE"]
[2171,"DOVJE","JESENICE"]
[2172,"HRUŠICA","JESENICE"]
[2173,"PLAVŠKI ROVT","JESENICE"]
[2174,"PLANINA","JESENICE"]
[2175,"JESENICE","JESENICE"]
[2176,"BLEJSKA DOBRAVA","JESENICE"]
[2177,"JAVORNIŠKI ROVT","JESENICE"]
[2178,"KOROŠKA BELA","JESENICE"]
[2179,"POTOKI","JESENICE"]
[2180,"ŽIROVNICA","JESENICE"]
[2181,"ZABREZNICA","JESENICE"]
[2182,"DOSLOVČE","JESENICE"]
[2183,"ZASIP","RADOVLJICA"]
[2184,"PODHOM","RADOVLJICA"]
[2185,"SPODNJE GORJE","RADOVLJICA"]
[2186,"VIŠELNICA I","RADOVLJICA"]
[2187,"ZGORNJE GORJE","RADOVLJICA"]
[2188,"POLJŠICA","RADOVLJICA"]
[2189,"REČICA","RADOVLJICA"]
[2190,"BLED","RADOVLJICA"]
[2191,"ŽELEČE","RADOVLJICA"]
[2192,"RIBNO","RADOVLJICA"]
[2193,"SELO PRI BLEDU","RADOVLJICA"]
[2194,"BOHINJSKA BELA","RADOVLJICA"]
[2195,"GORJUŠE","RADOVLJICA"]
[2196,"BOHINJSKA ČEŠNJICA","RADOVLJICA"]
[2197,"BOHINJSKA SREDNJA VAS","RADOVLJICA"]
[2198,"STUDOR","RADOVLJICA"]
[2199,"SAVICA","RADOVLJICA"]
[2200,"BOHINJSKA BISTRICA","RADOVLJICA"]
[2201,"NOMENJ","RADOVLJICA"]
[2202,"NEMŠKI ROVT","RADOVLJICA"]
[2203,"TRENTA LEVA","TOLMIN"]
[2204,"TRENTA DESNA","TOLMIN"]
[2205,"STRMEC","TOLMIN"]
[2206,"LOG POD MANGARTOM","TOLMIN"]
[2207,"BOVEC","TOLMIN"]
[2208,"KORITNICA","TOLMIN"]
[2209,"SOČA DESNA","TOLMIN"]
[2210,"SOČA LEVA","TOLMIN"]
[2211,"ČEZSOČA","TOLMIN"]
[2212,"ŽAGA","TOLMIN"]
[2213,"SRPENICA","TOLMIN"]
[2214,"BREGINJ","TOLMIN"]
[2215,"ROBIDIŠČE","TOLMIN"]
[2216,"LOGJE","TOLMIN"]
[2217,"SEDLO","TOLMIN"]
[2218,"BORJANA","TOLMIN"]
[2219,"KRED","TOLMIN"]
[2220,"STARO SELO","TOLMIN"]
[2221,"SUŽID","TOLMIN"]
[2222,"SVINO","TOLMIN"]
[2223,"KOBARID","TOLMIN"]
[2224,"TRNOVO","TOLMIN"]
[2225,"DREŽNICA","TOLMIN"]
[2226,"VRSNO","TOLMIN"]
[2227,"SMAST","TOLMIN"]
[2228,"LADRA","TOLMIN"]
[2229,"IDRSKO","TOLMIN"]
[2230,"LIVEK","TOLMIN"]
[2231,"KAMNO","TOLMIN"]
[2232,"VOLARJE","TOLMIN"]
[2233,"DOLJE","TOLMIN"]
[2234,"ZATOLMIN","TOLMIN"]
[2235,"ČADRG","TOLMIN"]
[2236,"ŽABČE","TOLMIN"]
[2237,"LJUBINJ","TOLMIN"]
[2238,"PODMELEC","TOLMIN"]
[2239,"KNEŽA","TOLMIN"]
[2240,"RUT","TOLMIN"]
[2241,"STRŽIŠČE","TOLMIN"]
[2242,"PODBRDO","TOLMIN"]
[2243,"OBLOKE","TOLMIN"]
[2244,"GRAHOVO","TOLMIN"]
[2245,"PONIKVE","TOLMIN"]
[2246,"MOST NA SOČI","TOLMIN"]
[2247,"PODLJUBINJ","TOLMIN"]
[2248,"TOLMIN","TOLMIN"]
[2249,"VOLČE","TOLMIN"]
[2250,"MODREJCE","TOLMIN"]
[2251,"KOZARŠČE","TOLMIN"]
[2252,"ČIGINJ","TOLMIN"]
[2253,"RUTE","TOLMIN"]
[2254,"SELA","TOLMIN"]
[2255,"LOM","TOLMIN"]
[2256,"IDRIJA PRI BAČI","TOLMIN"]
[2257,"SLAP","TOLMIN"]
[2258,"PEČINE","TOLMIN"]
[2259,"ŠENTVIŠKA GORA","TOLMIN"]
[2260,"PRAPETNO BRDO","TOLMIN"]
[2261,"GORENJA TREBUŠA","TOLMIN"]
[2262,"KAL NAD KANALOM","NOVA GORICA"]
[2263,"AVČE","NOVA GORICA"]
[2264,"DOBLAR","NOVA GORICA"]
[2265,"ROČINJ","NOVA GORICA"]
[2266,"AJBA","NOVA GORICA"]
[2267,"BODREŽ","NOVA GORICA"]
[2268,"VRH KANALSKI","NOVA GORICA"]
[2269,"KANAL","NOVA GORICA"]
[2270,"MORSKO","NOVA GORICA"]
[2271,"GORENJA VAS","NOVA GORICA"]
[2272,"IDRIJA NAD KANALOM","NOVA GORICA"]
[2273,"UKANJE","NOVA GORICA"]
[2274,"ANHOVO","NOVA GORICA"]
[2275,"PLAVE","NOVA GORICA"]
[2276,"DESKLE","NOVA GORICA"]
[2277,"MIRNIK","NOVA GORICA"]
[2278,"KOŽBANA","NOVA GORICA"]
[2279,"KRASNO","NOVA GORICA"]
[2280,"VRHOVLJE","NOVA GORICA"]
[2281,"ŠMARTNO","NOVA GORICA"]
[2282,"VEDRIJAN","NOVA GORICA"]
[2283,"VIŠNJEVIK","NOVA GORICA"]
[2284,"NEBLO","NOVA GORICA"]
[2285,"BILJANA","NOVA GORICA"]
[2286,"MEDANA","NOVA GORICA"]
[2287,"VIPOLŽE","NOVA GORICA"]
[2288,"KOZANA","NOVA GORICA"]
[2289,"CEROVO","NOVA GORICA"]
[2290,"KOJSKO","NOVA GORICA"]
[2291,"PODSABOTIN","NOVA GORICA"]
[2292,"ŠMAVER","NOVA GORICA"]
[2293,"GRGAR","NOVA GORICA"]
[2294,"BATE","NOVA GORICA"]
[2295,"BANJŠICE","NOVA GORICA"]
[2296,"LOKOVEC","NOVA GORICA"]
[2297,"ČEPOVAN","NOVA GORICA"]
[2298,"LAZNA","NOVA GORICA"]
[2299,"LOKVE","NOVA GORICA"]
[2300,"TRNOVO","NOVA GORICA"]
[2301,"RAVNICA","NOVA GORICA"]
[2302,"KROMBERK","NOVA GORICA"]
[2303,"SOLKAN","NOVA GORICA"]
[2304,"NOVA GORICA","NOVA GORICA"]
[2306,"ROŽNA DOLINA","NOVA GORICA"]
[2307,"STARA GORA","NOVA GORICA"]
[2308,"LOKE","NOVA GORICA"]
[2309,"ŠMIHEL","NOVA GORICA"]
[2310,"OZELJAN","NOVA GORICA"]
[2311,"VITOVLJE","NOVA GORICA"]
[2312,"OSEK","NOVA GORICA"]
[2313,"ŠEMPAS","NOVA GORICA"]
[2314,"VOGRSKO","NOVA GORICA"]
[2315,"ŠEMPETER","NOVA GORICA"]
[2316,"VRTOJBA","NOVA GORICA"]
[2318,"BILJE","NOVA GORICA"]
[2319,"BUKOVICA","NOVA GORICA"]
[2320,"PRVAČINA","NOVA GORICA"]
[2321,"GRADIŠČE","NOVA GORICA"]
[2322,"RENČE","NOVA GORICA"]
[2323,"VRTOČE","NOVA GORICA"]
[2324,"OREHOVLJE","NOVA GORICA"]
[2325,"MIREN","NOVA GORICA"]
[2326,"RUPA","NOVA GORICA"]
[2327,"GABRJE OB VIPAVI","NOVA GORICA"]
[2328,"OPATJE SELO","NOVA GORICA"]
[2329,"NOVA VAS","NOVA GORICA"]
[2330,"SELA NA KRASU","NOVA GORICA"]
[2331,"VOJŠČICA","NOVA GORICA"]
[2332,"KOSTANJEVICA NA KRASU","NOVA GORICA"]
[2333,"TEMNICA","NOVA GORICA"]
[2334,"LIPA","NOVA GORICA"]
[2335,"DORNBERK","NOVA GORICA"]
[2336,"BRANIK","NOVA GORICA"]
[2337,"BUKOVO","IDRIJA"]
[2338,"JESENICA","IDRIJA"]
[2339,"GORJE","IDRIJA"]
[2340,"LABINJE","IDRIJA"]
[2341,"DOLENJI NOVAKI","IDRIJA"]
[2342,"GORENJI NOVAKI","IDRIJA"]
[2343,"PLANINA","IDRIJA"]
[2344,"CERKNO","IDRIJA"]
[2345,"ZAKRIŽ","IDRIJA"]
[2346,"OREHEK","IDRIJA"]
[2347,"POLICE","IDRIJA"]
[2348,"REKA - RAVNE","IDRIJA"]
[2349,"ŠEBRELJE","IDRIJA"]
[2350,"OTALEŽ","IDRIJA"]
[2351,"IDRIJSKE KRNICE","IDRIJA"]
[2352,"SPODNJA KANOMLJA","IDRIJA"]
[2353,"SREDNJA KANOMLJA","IDRIJA"]
[2354,"GORENJA KANOMLJA","IDRIJA"]
[2355,"VOJSKO","IDRIJA"]
[2356,"ČEKOVNIK","IDRIJA"]
[2357,"IDRIJA - MESTO","IDRIJA"]
[2358,"SPODNJA IDRIJA","IDRIJA"]
[2359,"LEDINE","IDRIJA"]
[2360,"VRSNIK I","IDRIJA"]
[2361,"DOLE","IDRIJA"]
[2362,"JELIČNI VRH","IDRIJA"]
[2363,"IDRIJSKI LOG","IDRIJA"]
[2364,"GODOVIČ","IDRIJA"]
[2365,"ČRNI VRH","IDRIJA"]
[2366,"ZADLOG","IDRIJA"]
[2367,"KANJI DOL","IDRIJA"]
[2368,"LOME","IDRIJA"]
[2369,"JAVORNIK","IDRIJA"]
[2370,"DOL-OTLICA","AJDOVŠČINA"]
[2371,"KOVK","AJDOVŠČINA"]
[2372,"KRIŽNA GORA","AJDOVŠČINA"]
[2373,"COL","AJDOVŠČINA"]
[2374,"VODICE","AJDOVŠČINA"]
[2375,"PODKRAJ","AJDOVŠČINA"]
[2376,"VIŠNJE","AJDOVŠČINA"]
[2377,"SANABOR","AJDOVŠČINA"]
[2378,"VRHPOLJE","AJDOVŠČINA"]
[2379,"BUDANJE","AJDOVŠČINA"]
[2380,"ŠTURJE","AJDOVŠČINA"]
[2381,"LOKAVEC","AJDOVŠČINA"]
[2382,"STOMAŽ","AJDOVŠČINA"]
[2383,"VRTOVIN","AJDOVŠČINA"]
[2384,"ČRNIČE","AJDOVŠČINA"]
[2385,"GOJAČE","AJDOVŠČINA"]
[2386,"BATUJE","AJDOVŠČINA"]
[2387,"SELO","AJDOVŠČINA"]
[2388,"KAMNJE","AJDOVŠČINA"]
[2389,"SKRILJE","AJDOVŠČINA"]
[2390,"DOBRAVLJE","AJDOVŠČINA"]
[2391,"VIPAVSKI KRIŽ","AJDOVŠČINA"]
[2392,"AJDOVŠČINA","AJDOVŠČINA"]
[2393,"USTJE","AJDOVŠČINA"]
[2394,"VELIKE ŽABLJE","AJDOVŠČINA"]
[2395,"BRJE","AJDOVŠČINA"]
[2396,"ŠMARJE","AJDOVŠČINA"]
[2397,"GABERJE","AJDOVŠČINA"]
[2398,"ERZELJ","AJDOVŠČINA"]
[2399,"PLANINA","AJDOVŠČINA"]
[2400,"SLAP","AJDOVŠČINA"]
[2401,"VIPAVA","AJDOVŠČINA"]
[2402,"LOŽE","AJDOVŠČINA"]
[2403,"GOČE","AJDOVŠČINA"]
[2404,"PODRAGA","AJDOVŠČINA"]
[2405,"PODNANOS","AJDOVŠČINA"]
[2406,"NANOS","AJDOVŠČINA"]
[2407,"LOZICE","AJDOVŠČINA"]
[2408,"BRESTOVICA","SEŽANA"]
[2409,"IVANJI GRAD","SEŽANA"]
[2410,"SVETO","SEŽANA"]
[2411,"ŠKRBINA","SEŽANA"]
[2412,"KOMEN","SEŽANA"]
[2413,"MALI DOL","SEŽANA"]
[2414,"TOMAČEVICA","SEŽANA"]
[2415,"KOBJEGLAVA","SEŽANA"]
[2416,"ŠTANJEL","SEŽANA"]
[2417,"HRUŠEVICA","SEŽANA"]
[2418,"KOBDILJ","SEŽANA"]
[2419,"KOBOLI","SEŽANA"]
[2420,"ŠTJAK","SEŽANA"]
[2421,"AVBER","SEŽANA"]
[2422,"KOPRIVA","SEŽANA"]
[2423,"GABROVICA","SEŽANA"]
[2424,"VOLČJI GRAD","SEŽANA"]
[2425,"GORJANSKO","SEŽANA"]
[2426,"BRJE","SEŽANA"]
[2427,"VELIKI DOL","SEŽANA"]
[2428,"SALEŽ","SEŽANA"]
[2429,"PLISKOVICA","SEŽANA"]
[2430,"KRAJNA VAS","SEŽANA"]
[2431,"SKOPO","SEŽANA"]
[2432,"DUTOVLJE","SEŽANA"]
[2433,"VELIKI REPEN","SEŽANA"]
[2434,"VOGLJE","SEŽANA"]
[2435,"KRIŽ","SEŽANA"]
[2436,"TOMAJ","SEŽANA"]
[2437,"UTOVLJE","SEŽANA"]
[2438,"KAZLJE","SEŽANA"]
[2439,"GRIŽE","SEŽANA"]
[2440,"VELIKO POLJE","SEŽANA"]
[2441,"DOLENJA VAS","SEŽANA"]
[2442,"ŠTORJE","SEŽANA"]
[2443,"SENADOLE","SEŽANA"]
[2444,"GABRČE","SEŽANA"]
[2445,"POTOČE","SEŽANA"]
[2446,"LAŽE","SEŽANA"]
[2447,"SENOŽEČE","SEŽANA"]
[2448,"GORNJE VREME","SEŽANA"]
[2449,"VREMSKI BRITOF","SEŽANA"]
[2450,"FAMLJE","SEŽANA"]
[2451,"DOLNJE LEŽEČE","SEŽANA"]
[2452,"DIVAČA","SEŽANA"]
[2453,"POVIR","SEŽANA"]
[2454,"MERČE","SEŽANA"]
[2455,"SEŽANA","SEŽANA"]
[2456,"TREBČE","SEŽANA"]
[2457,"GROPADA","SEŽANA"]
[2458,"BAZOVICA","SEŽANA"]
[2459,"LOKEV","SEŽANA"]
[2460,"NAKLO","SEŽANA"]
[2461,"DANE","SEŽANA"]
[2462,"PODGRAD","SEŽANA"]
[2463,"ŠKOFLJE","SEŽANA"]
[2464,"BARKA","SEŽANA"]
[2465,"VAREJE","SEŽANA"]
[2466,"MISLIČE","SEŽANA"]
[2467,"VATOVLJE","SEŽANA"]
[2468,"KOZJANE","SEŽANA"]
[2469,"DOLENJA PLANINA","POSTOJNA"]
[2470,"GORENJA PLANINA","POSTOJNA"]
[2471,"KAČJA VAS","POSTOJNA"]
[2472,"STRMICA","POSTOJNA"]
[2473,"STUDENO","POSTOJNA"]
[2474,"BUKOVJE","POSTOJNA"]
[2475,"ŠMIHEL POD NANOSOM","POSTOJNA"]
[2476,"LANDOL","POSTOJNA"]
[2477,"ZAGON","POSTOJNA"]
[2478,"HRAŠČE","POSTOJNA"]
[2479,"STUDENEC","POSTOJNA"]
[2480,"HRENOVICE","POSTOJNA"]
[2481,"VELIKA BRDA","POSTOJNA"]
[2482,"STRANE","POSTOJNA"]
[2483,"RAZDRTO","POSTOJNA"]
[2484,"HRUŠEVJE","POSTOJNA"]
[2485,"RAKULIK","POSTOJNA"]
[2486,"OREHEK","POSTOJNA"]
[2487,"RAKITNIK","POSTOJNA"]
[2488,"ZALOG","POSTOJNA"]
[2489,"STARA VAS","POSTOJNA"]
[2490,"POSTOJNA","POSTOJNA"]
[2491,"MATENJA VAS","POSTOJNA"]
[2492,"SLAVINA","POSTOJNA"]
[2493,"VOLČE","POSTOJNA"]
[2494,"KOŠANA","POSTOJNA"]
[2495,"SUHORJE","POSTOJNA"]
[2496,"STARA SUŠICA","POSTOJNA"]
[2497,"NADANJE SELO","POSTOJNA"]
[2498,"NARIN","POSTOJNA"]
[2499,"KAL","POSTOJNA"]
[2500,"SELCE","POSTOJNA"]
[2501,"PETELINJE","POSTOJNA"]
[2502,"RADOHOVA VAS","POSTOJNA"]
[2503,"PARJE","POSTOJNA"]
[2504,"ZAGORJE","POSTOJNA"]
[2505,"JURIŠČE","POSTOJNA"]
[2506,"PALČJE","POSTOJNA"]
[2507,"TRNJE","POSTOJNA"]
[2508,"SNEŽNIK","ILIRSKA BISTRICA"]
[2509,"BAČ","ILIRSKA BISTRICA"]
[2510,"KORITNICE","ILIRSKA BISTRICA"]
[2511,"KNEŽAK","ILIRSKA BISTRICA"]
[2512,"ŠEMBIJE","ILIRSKA BISTRICA"]
[2513,"PODSTENJE","ILIRSKA BISTRICA"]
[2514,"MEREČE","ILIRSKA BISTRICA"]
[2515,"RATEČEVO BRDO","ILIRSKA BISTRICA"]
[2516,"KILOVČE","ILIRSKA BISTRICA"]
[2517,"PREM","ILIRSKA BISTRICA"]
[2518,"JANEŽEVO BRDO","ILIRSKA BISTRICA"]
[2519,"OSTROŽNO BRDO","ILIRSKA BISTRICA"]
[2520,"PRELOŽE","ILIRSKA BISTRICA"]
[2521,"ČELJE","ILIRSKA BISTRICA"]
[2522,"SMRJE","ILIRSKA BISTRICA"]
[2523,"TOPOLC","ILIRSKA BISTRICA"]
[2524,"TRNOVO","ILIRSKA BISTRICA"]
[2525,"ILIRSKA BISTRICA","ILIRSKA BISTRICA"]
[2526,"VRBOVO","ILIRSKA BISTRICA"]
[2527,"JASEN","ILIRSKA BISTRICA"]
[2528,"KOSEZE","ILIRSKA BISTRICA"]
[2529,"ZAREČICA","ILIRSKA BISTRICA"]
[2530,"DOBROPOLJE","ILIRSKA BISTRICA"]
[2531,"ZAREČJE","ILIRSKA BISTRICA"]
[2532,"BRCE","ILIRSKA BISTRICA"]
[2533,"ZAJELŠJE","ILIRSKA BISTRICA"]
[2534,"TOMINJE","ILIRSKA BISTRICA"]
[2535,"HARIJE","ILIRSKA BISTRICA"]
[2536,"SABONJE","ILIRSKA BISTRICA"]
[2537,"PAVLICA","ILIRSKA BISTRICA"]
[2538,"STUDENA GORA","ILIRSKA BISTRICA"]
[2539,"VELIKA BUKOVICA","ILIRSKA BISTRICA"]
[2540,"MALA BUKOVICA","ILIRSKA BISTRICA"]
[2541,"DOLNJI ZEMON","ILIRSKA BISTRICA"]
[2542,"GORNJI ZEMON","ILIRSKA BISTRICA"]
[2543,"JABLANICA","ILIRSKA BISTRICA"]
[2544,"TRPČANE","ILIRSKA BISTRICA"]
[2545,"PODGRAJE","ILIRSKA BISTRICA"]
[2546,"ZABIČE","ILIRSKA BISTRICA"]
[2547,"SUŠAK","ILIRSKA BISTRICA"]
[2548,"NOVOKRAČINE","ILIRSKA BISTRICA"]
[2549,"JELŠANE","ILIRSKA BISTRICA"]
[2550,"DOLENJE","ILIRSKA BISTRICA"]
[2551,"VELIKO BRDO","ILIRSKA BISTRICA"]
[2552,"STAROD","ILIRSKA BISTRICA"]
[2553,"GROČANA","SEŽANA"]
[2554,"RODIK","SEŽANA"]
[2555,"DRAGA","SEŽANA"]
[2557,"OCIZLA","SEŽANA"]
[2558,"PREŠNICA","SEŽANA"]
[2559,"MATERIJA","SEŽANA"]
[2560,"HRPELJE","SEŽANA"]
[2561,"BREZOVICA","SEŽANA"]
[2562,"ARTVIŽE","SEŽANA"]
[2563,"TATRE","SEŽANA"]
[2564,"RJAVČE","ILIRSKA BISTRICA"]
[2565,"PREGARJE","ILIRSKA BISTRICA"]
[2566,"GABERK","ILIRSKA BISTRICA"]
[2567,"HUJE","ILIRSKA BISTRICA"]
[2568,"MALE LOČE","ILIRSKA BISTRICA"]
[2569,"JAVORJE","SEŽANA"]
[2570,"RITOMEČE","SEŽANA"]
[2571,"KOVČICE","SEŽANA"]
[2572,"HOTIČNA","SEŽANA"]
[2573,"SLIVJE","SEŽANA"]
[2574,"MARKOVŠČINA","SEŽANA"]
[2575,"GRADIŠČE","SEŽANA"]
[2576,"OBROV","SEŽANA"]
[2577,"HRUŠICA","ILIRSKA BISTRICA"]
[2578,"PODBEŽE","ILIRSKA BISTRICA"]
[2579,"PODGRAD","ILIRSKA BISTRICA"]
[2580,"RAČICE","ILIRSKA BISTRICA"]
[2581,"POLJANE","SEŽANA"]
[2582,"GOLAC","SEŽANA"]
[2583,"PODGORJE","SEŽANA"]
[2584,"ZAZID","SEŽANA"]
[2585,"RAKITOVEC","SEŽANA"]
[2589,"PLAVJE","KOPER"]
[2590,"HRIBI","KOPER"]
[2592,"JERNEJ","KOPER"]
[2593,"OLTRA","KOPER"]
[2594,"ANKARAN","KOPER"]
[2595,"ŠKOFIJE","KOPER"]
[2596,"TINJAN","KOPER"]
[2597,"OSP","KOPER"]
[2598,"SOCERB","KOPER"]
[2599,"ČRNOTIČE","KOPER"]
[2600,"ČRNI KAL","KOPER"]
[2601,"GABROVICA","KOPER"]
[2602,"ROŽAR","KOPER"]
[2603,"DEKANI","KOPER"]
[2604,"BERTOKI","KOPER"]
[2605,"KOPER","KOPER"]
[2606,"SEMEDELA","KOPER"]
[2607,"GAŽON","KOPER"]
[2608,"ŠMARJE","KOPER"]
[2609,"POMJAN","KOPER"]
[2610,"VANGANEL","KOPER"]
[2611,"MAREZIGE","KOPER"]
[2612,"PRIDVOR","KOPER"]
[2613,"TRUŠKE","KOPER"]
[2614,"KUBED","KOPER"]
[2615,"LOKA","KOPER"]
[2616,"PODPEČ","KOPER"]
[2617,"HRASTOVLJE","KOPER"]
[2618,"MOVRAŽ","KOPER"]
[2619,"SOČERGA","KOPER"]
[2620,"PREGARA","KOPER"]
[2621,"GRADIN","KOPER"]
[2622,"TOPOLOVEC","KOPER"]
[2623,"BORŠT","KOPER"]
[2624,"KOŠTABONA","KOPER"]
[2625,"KRKAVČE","KOPER"]
[2626,"IZOLA","KOPER"]
[2627,"IZOLA II","KOPER"]
[2628,"IZOLA III","KOPER"]
[2629,"DVORI NAD IZOLO","KOPER"]
[2630,"PIRAN","KOPER"]
[2631,"PORTOROŽ","KOPER"]
[2632,"SEČOVLJE","KOPER"]
[2633,"RAVEN","KOPER"]
[2634,"NOVA VAS","KOPER"]
[2635,"ROGAŠKA SLATINA","ŠMARJE PRI JELŠAH"]
[2636,"BEŽIGRAD","LJUBLJANA"]
[2637,"PRIHODI","JESENICE"]
[2638,"PODMEŽAKLJA","JESENICE"]
[2639,"ZVODNO","CELJE"]
[2640,"HRASTNIK","TRBOVLJE"]
[2641,"ZAGORJE","TRBOVLJE"]
[2642,"GROSUPLJE","GROSUPLJE"]
[2643,"ZASADI","LJUTOMER"]
[2644,"VIŠELNICA II","JESENICE"]
[2645,"PAKA II","SLOVENJ GRADEC"]
[2646,"SREDNJI DOLIČ","SLOVENJ GRADEC"]
[2647,"BEZOVJE","ŠENTJUR PRI CELJU"]
[2648,"PERAČICA","RADOVLJICA"]
[2649,"IZLAKE","TRBOVLJE"]
[2650,"DEBRO","LAŠKO"]
[2651,"POŽNICA","LAŠKO"]
[2652,"OGOREVC","CELJE"]
[2653,"PŠATA","DOMŽALE"]
[2654,"GOZD REKA","LITIJA"]
[2655,"RAČICA","LITIJA"]
[2656,"RIBČE","LITIJA"]
[2657,"PEČICE","LITIJA"]
[2658,"OSREDEK","ŠMARJE PRI JELŠAH"]
[2659,"SPODNJE SELCE","ŠMARJE PRI JELŠAH"]
[2660,"SPODNJA PONKVICA","ŠMARJE PRI JELŠAH"]
[2661,"GAJ","SLOVENSKA BISTRICA"]
[2662,"MALKOVEC","SEVNICA"]
[2663,"MRAVLJEVI","NOVA GORICA"]
[2664,"SPODNJA BRANICA","NOVA GORICA"]
[2665,"ZGORNJI DRAŽEN VRH","MARIBOR"]
[2666,"SELCE","MARIBOR"]
[2667,"SPODNJI VURMAT","MARIBOR"]
[2668,"GOJŠKA PLANINA","KAMNIK"]
[2669,"PAŠKI KOZJAK","VELENJE"]
[2670,"LAŽIŠE","ŠENTJUR PRI CELJU"]
[2671,"PODPEČ","ŠENTJUR PRI CELJU"]
[2672,"PRAPRETNO","ŠENTJUR PRI CELJU"]
[2673,"SPODNJA POHANCA","BREŽICE"]
[2674,"ŽAVCARJEV VRH","MARIBOR"]
[2675,"VRANOVIČI","ČRNOMELJ"]
[2676,"CERKVIŠČE","ČRNOMELJ"]
[2677,"PRULE","LJUBLJANA"]
[2678,"GOLOVEC","LJUBLJANA"]
[2679,"GRADIŠČE II","LJUBLJANA"]
[2680,"NOVE JARŠE","LJUBLJANA"]
[2681,"BRINJE II","LJUBLJANA"]
[2682,"BRDO","LJUBLJANA"]
[2683,"GRIČ","LJUBLJANA"]
[2684,"DRENIK","LJUBLJANA"]
[2685,"ŠAVNA PEČ","TRBOVLJE"]
[2686,"ZAVRATE","LAŠKO"]
[2687,"BOBEN","TRBOVLJE"]
[2688,"STUDENCE","TRBOVLJE"]
[2689,"ČEBINE","TRBOVLJE"]
[2690,"PRAPREČE","TRBOVLJE"]
[2691,"RAKITOVEC","KAMNIK"]
[2692,"SMREČJE","VRHNIKA"]
[2693,"LOG","LOGATEC"]
[2695,"PLANICA","KRANJ"]
[2696,"VOJŠČICA","IDRIJA"]
[2697,"KANALSKI LOM","TOLMIN"]
[2698,"BUKOVSKI VRH","TOLMIN"]
[2699,"UTRE","TOLMIN"]
[2700,"RAKOV ŠKOCJAN","CERKNICA"]
[2701,"DOLANCI","SEŽANA"]
[2702,"KODRETI","SEŽANA"]
[2703,"HRUŠICA","LOGATEC"]
[2704,"JURJEVA DOLINA","POSTOJNA"]
[2705,"LESKOVA DOLINA","CERKNICA"]
[2706,"ZELENA JAMA","LJUBLJANA"]
[2707,"BEVŠKO","TRBOVLJE"]
[2708,"RODEŽ","TRBOVLJE"]
[2709,"JAVORJE","CERKNICA"]
[2710,"GLAŽUTA","CERKNICA"]
[2711,"SPODNJI VRHOV DOL","MARIBOR"]
[2712,"DOBRAVA","MARIBOR"]
[2713,"OB ŽELEZNICI","MARIBOR"]
[2714,"VRHE II","TRBOVLJE"]
[3000,"LAZARET III","KOPER"]

{"sheet":"sifrant_obcin","index":22,"n_rows":212,"n_cols":2,"rows_kept":212,"cut":false,"hidden":true,"merged":[]}
["Naziv občine","OB_ID"]
["AJDOVŠČINA","001"]
["ANKARAN","213"]
["APAČE","195"]
["BELTINCI","002"]
["BENEDIKT","148"]
["BISTRICA OB SOTLI","149"]
["BLED","003"]
["BLOKE","150"]
["BOHINJ","004"]
["BOROVNICA","005"]
["BOVEC","006"]
["BRASLOVČE","151"]
["BRDA","007"]
["BREZOVICA","008"]
["BREŽICE","009"]
["CANKOVA",152]
["CELJE","011"]
["CERKLJE NA GORENJSKEM","012"]
["CERKNICA","013"]
["CERKNO","014"]
["CERKVENJAK",153]
["CIRKULANE",196]
["ČRENŠOVCI","015"]
["ČRNA NA KOROŠKEM","016"]
["ČRNOMELJ","017"]
["DESTRNIK","018"]
["DIVAČA","019"]
["DOBJE",154]
["DOBREPOLJE","020"]
["DOBRNA",155]
["DOBROVA-POLHOV GRADEC","021"]
["DOBROVNIK",156]
["DOL PRI LJUBLJANI","022"]
["DOLENJSKE TOPLICE",157]
["DOMŽALE","023"]
["DORNAVA","024"]
["DRAVOGRAD","025"]
["DUPLEK","026"]
["GORENJA VAS-POLJANE","027"]
["GORIŠNICA","028"]
["GORJE",207]
["GORNJA RADGONA","029"]
["GORNJI GRAD","030"]
["GORNJI PETROVCI","031"]
["GRAD",158]
["GROSUPLJE","032"]
["HAJDINA",159]
["HOČE-SLIVNICA",160]
["HODOŠ",161]
["HORJUL",162]
["HRASTNIK","034"]
["HRPELJE-KOZINA","035"]
["IDRIJA","036"]
["IG","037"]
["ILIRSKA BISTRICA","038"]
["IVANČNA GORICA","039"]
["IZOLA","040"]
["JESENICE","041"]
["JEZERSKO",163]
["JURŠINCI","042"]
["KAMNIK","043"]
["KANAL","044"]
["KIDRIČEVO","045"]
["KOBARID","046"]
["KOBILJE","047"]
["KOČEVJE","048"]
["KOMEN","049"]
["KOMENDA",164]
["KOPER","050"]
["KOSTANJEVICA NA KRKI",197]
["KOSTEL",165]
["KOZJE","051"]
["KRANJ","052"]
["KRANJSKA GORA","053"]
["KRIŽEVCI",166]
["KRŠKO","054"]
["KUNGOTA","055"]
["KUZMA","056"]
["LAŠKO","057"]
["LENART","058"]
["LENDAVA","059"]
["LITIJA","060"]
["LJUBLJANA","061"]
["LJUBNO","062"]
["LJUTOMER","063"]
["LOGATEC","064"]
["LOG-DRAGOMER",208]
["LOŠKA DOLINA","065"]
["LOŠKI POTOK","066"]
["LOVRENC NA POHORJU",167]
["LUČE","067"]
["LUKOVICA","068"]
["MAJŠPERK","069"]
["MAKOLE",198]
["MARIBOR","070"]
["MARKOVCI",168]
["MEDVODE","071"]
["MENGEŠ","072"]
["METLIKA","073"]
["MEŽICA","074"]
["MIKLAVŽ NA DRAVSKEM POLJU",169]
["MIREN-KOSTANJEVICA","075"]
["MIRNA",212]
["MIRNA PEČ",170]
["MISLINJA","076"]
["MOKRONOG-TREBELNO",199]
["MORAVČE","077"]
["MORAVSKE TOPLICE","078"]
["MOZIRJE","079"]
["MURSKA SOBOTA","080"]
["MUTA","081"]
["NAKLO","082"]
["NAZARJE","083"]
["NOVA GORICA","084"]
["NOVO MESTO","085"]
["ODRANCI","086"]
["OPLOTNICA",171]
["ORMOŽ","087"]
["OSILNICA","088"]
["PESNICA","089"]
["PIRAN","090"]
["PIVKA","091"]
["PODČETRTEK","092"]
["PODLEHNIK",172]
["PODVELKA","093"]
["POLJČANE",200]
["POLZELA",173]
["POSTOJNA","094"]
["PREBOLD",174]
["PREDDVOR","095"]
["PREVALJE",175]
["PTUJ","096"]
["PUCONCI","097"]
["RAČE-FRAM","098"]
["RADEČE","099"]
["RADENCI",100]
["RADLJE OB DRAVI",101]
["RADOVLJICA",102]
["RAVNE NA KOROŠKEM",103]
["RAZKRIŽJE",176]
["REČICA OB SAVINJI",209]
["RENČE-VOGRSKO",201]
["RIBNICA",104]
["RIBNICA NA POHORJU",177]
["ROGAŠKA SLATINA",106]
["ROGAŠOVCI",105]
["ROGATEC",107]
["RUŠE",108]
["SELNICA OB DRAVI",178]
["SEMIČ",109]
["SEVNICA",110]
["SEŽANA",111]
["SLOVENJ GRADEC",112]
["SLOVENSKA BISTRICA",113]
["SLOVENSKE KONJICE",114]
["SODRAŽICA",179]
["SOLČAVA",180]
["SREDIŠČE OB DRAVI",202]
["STARŠE",115]
["STRAŽA",203]
["SV. TROJICA V SLOV. GORICAH",204]
["SVETA ANA",181]
["SVETI ANDRAŽ V SLOV. GORICAH",182]
["SVETI JURIJ OB ŠČAVNICI",116]
["SVETI JURIJ V SLOV. GORICAH",210]
["SVETI TOMAŽ",205]
["ŠALOVCI","033"]
["ŠEMPETER-VRTOJBA",183]
["ŠENČUR",117]
["ŠENTILJ",118]
["ŠENTJERNEJ",119]
["ŠENTJUR",120]
["ŠENTRUPERT",211]
["ŠKOCJAN",121]
["ŠKOFJA LOKA",122]
["ŠKOFLJICA",123]
["ŠMARJE PRI JELŠAH",124]
["ŠMARJEŠKE TOPLICE",206]
["ŠMARTNO OB PAKI",125]
["ŠMARTNO PRI LITIJI",194]
["ŠOŠTANJ",126]
["ŠTORE",127]
["TABOR",184]
["TIŠINA","010"]
["TOLMIN",128]
["TRBOVLJE",129]
["TREBNJE",130]
["TRNOVSKA VAS",185]
["TRZIN",186]
["TRŽIČ",131]
["TURNIŠČE",132]
["VELENJE",133]
["VELIKA POLANA",187]
["VELIKE LAŠČE",134]
["VERŽEJ",188]
["VIDEM",135]
["VIPAVA",136]
["VITANJE",137]
["VODICE",138]
["VOJNIK",139]
["VRANSKO",189]
["VRHNIKA",140]
["VUZENICA",141]
["ZAGORJE OB SAVI",142]
["ZAVRČ",143]
["ZREČE",144]
["ŽALEC",190]
["ŽELEZNIKI",146]
["ŽETALE",191]
["ŽIRI",147]
["ŽIROVNICA",192]

{"sheet":"XODP_sifrant_nenevarnih_odp","index":23,"n_rows":435,"n_cols":4,"rows_kept":435,"cut":false,"hidden":true,"merged":[]}
["Številka odpadka ","Naziv odpadka ","Nevarnost odpadka","ID"]
["01 01 01","Odpadki iz pridobivanja kovinskih mineralnih surovin",null,1410]
["01 01 02","Odpadki iz pridobivanja nekovinskih mineralnih surovin",null,1411]
["01 03 06","Ostanki, ki niso navedeni v 01 03 04 in 01 03 05",null,1412]
["01 03 08","Prašni in praškasti odpadki, ki niso navedeni v 01 03 07",null,1413]
["01 03 09","Rdeče blato iz proizvodnje glinice, ki ni navedeno v 01 03 10",null,1414]
["01 03 99","Odpadki, ki niso navedeni drugje",null,1415]
["01 04 08","Odpadna gramoz in drobir, ki nista navedena v 01 04 07",null,1416]
["01 04 09","Odpadni pesek in gline",null,1417]
["01 04 10","Prašni in praškasti odpadki, ki niso navedeni v 01 04 07",null,1418]
["01 04 11","Odpadki iz predelave kalijeve in kamene soli, ki niso navedeni v 01 04 07",null,1419]
["01 04 12","Ostanki in drugi odpadki iz pranja in čiščenja mineralnih surovin, ki niso navedeni v 01 04 07 in 01 04 11",null,1420]
["01 04 13","Odpadki iz rezanja in žaganja kamna, ki niso navedeni v 01 04 07",null,1421]
["01 04 99","Odpadki, ki niso navedeni drugje",null,1422]
["01 05 04","Mulji in odpadki iz vrtanja sladkovodnih vrtin",null,1423]
["01 05 07","Mulji in odpadki iz vrtanja, ki vsebujejo barit in niso navedeni v 01 05 05 in 01 05 06",null,1424]
["01 05 08","Mulji in odpadki iz vrtanja, ki vsebujejo klorid in niso navedeni v 01 05 05 in 01 05 06",null,1425]
["01 05 99","Odpadki, ki niso navedeni drugje",null,1426]
["02 01 01","Mulji iz pranja in čiščenja",null,1427]
["02 01 02","Odpadna živalska tkiva",null,1428]
["02 01 03","Odpadna rastlinska tkiva",null,1429]
["02 01 04","Odpadna plastika (razen embalaže)",null,1430]
["02 01 06","Živalski iztrebki, urin in gnoj (vključno z onesnaženo slamo) ter ločeno zbrane odpadne vode, obdelane zunaj kraja nastanka",null,1431]
["02 01 07","Odpadki iz gozdarstva",null,1432]
["02 01 09","Agrokemični odpadki, ki niso navedeni v 02 01 08",null,1491]
["02 01 10","Odpadne kovine",null,1492]
["02 01 99","Odpadki, ki niso navedeni drugje",null,1493]
["02 02 01","Mulji iz pranja in čiščenja",null,1494]
["02 02 02","Odpadna živalska tkiva",null,1495]
["02 02 03","Snovi, neprimerne za uživanje ali predelavo",null,1496]
["02 02 04","Blato iz čiščenja odpadnih voda na kraju nastanka",null,1497]
["02 02 99","Odpadki, ki niso navedeni drugje",null,1498]
["02 03 01","Mulji iz pranja, čiščenja, lupljenja, centrifugiranja in ločevanja",null,1499]
["02 03 02","Odpadni konzervansi",null,1500]
["02 03 03","Odpadki iz ekstrakcij s topili",null,1501]
["02 03 04","Snovi, neprimerne za uživanje ali predelavo",null,1502]
["02 03 05","Blato iz čiščenja odpadnih voda na kraju nastanka",null,1503]
["02 03 99","Odpadki, ki niso navedeni drugje",null,1504]
["02 04 01","Zemlja iz čiščenja in pranja sladkorne pese",null,1505]
["02 04 02","Kalcijev karbonat, ki ne ustreza specifikaciji",null,1506]
["02 04 03","Blato iz čiščenja odpadnih voda na kraju nastanka",null,1507]
["02 04 99","Odpadki, ki niso navedeni drugje",null,1508]
["02 05 01","Snovi, neprimerne za uživanje ali predelavo",null,1862]
["02 05 02","Blato iz čiščenja odpadnih voda na kraju nastanka",null,1863]
["02 05 99","Odpadki, ki niso navedeni drugje",null,1864]
["02 06 01","Snovi, neprimerne za uživanje ali predelavo",null,1865]
["02 06 02","Odpadni konzervansi",null,1866]
["02 06 03","Blato iz čiščenja odpadnih voda na kraju nastanka",null,1867]
["02 06 99","Odpadki, ki niso navedeni drugje",null,1868]
["02 07 01","Odpadki iz pranja, čiščenja in mehanskega drobljenja surovin",null,1869]
["02 07 02","Odpadki iz destilacije žganih pijač",null,1870]
["02 07 03","Odpadki iz kemijske obdelave",null,1871]
["02 07 04","Snovi, neprimerne za uživanje ali predelavo",null,1872]
["02 07 05","Blato iz čiščenja odpadnih voda na kraju nastanka",null,1873]
["02 07 99","Odpadki, ki niso navedeni drugje",null,1874]
["03 01 01","Odpadna lubje in pluta",null,1875]
["03 01 05","Žagovina, oblanci, odrezki, les, iverne plošče in furnir, ki niso navedeni v 03 01 04",null,1509]
["03 01 99","Odpadki, ki niso navedeni drugje",null,1510]
["03 02 99","Sredstva za zaščito lesa, ki niso navedena drugje",null,1511]
["03 03 01","Odpadna lubje in les",null,1512]
["03 03 02","Mulji zelene lužnice (iz obdelave črne lužnice)",null,1513]
["03 03 05","Mulji iz odstranjevanja tiskarske barve (de-inking) pri recikliranju papirja",null,1514]
["03 03 07","Mehansko ločeni rejekti iz razpuščanja odpadnega papirja ter kartona in lepenke",null,1515]
["03 03 08","Odpadki iz sortiranja papirja ter kartona in lepenke, namenjenih za recikliranje",null,1516]
["03 03 09","Odpadni apneni mulj",null,1517]
["03 03 10","Vlakninski rejekti, mulji vlaknin, polnil in premazov iz mehanske separacije",null,1518]
["03 03 11","Blato iz čiščenja odpadnih voda na kraju nastanka, ki ni navedeno v 03 03 10",null,1519]
["03 03 99","Odpadki, ki niso navedeni drugje",null,1520]
["04 01 01","Mezdra in odpadni luženi cepljenec",null,1521]
["04 01 02","Odpadki iz luženja",null,1522]
["04 01 04","Strojilna kopel, ki vsebuje krom",null,1523]
["04 01 05","Strojilna kopel, ki ne vsebuje kroma",null,1524]
["04 01 06","Blato, ki vsebuje krom, zlasti iz čiščenja odpadnih voda na kraju nastanka",null,1525]
["04 01 07","Blato, ki ne vsebuje kroma, zlasti iz čiščenja odpadnih voda na kraju nastanka",null,1526]
["04 01 08","Odpadno strojeno usnje, ki vsebuje krom (ostružki, odrezki, prah iz brušenja)",null,1527]
["04 01 09","Odpadki iz oplemenitenja in dodelave krzna in usnja",null,1528]
["04 01 99","Odpadki, ki niso navedeni drugje",null,1529]
["04 02 09","Odpadni sestavljeni (kompozitnih) materiali (impregniran tekstil, elastomer, plastomer)",null,1530]
["04 02 10","Organske snovi iz naravnih sestavin (npr. maščoba, vosek)",null,1531]
["04 02 15","Odpadki iz dodelave, ki niso navedeni v 04 02 14",null,1663]
["04 02 17","Barvila in pigmenti, ki niso navedeni v 04 02 16",null,1664]
["04 02 20","Blato iz čiščenja odpadnih voda na kraju nastanka, ki ni navedeno v 04 02 19",null,1665]
["04 02 21","Odpadki iz neobdelanih tekstilnih vlaken",null,1666]
["04 02 22","Odpadki iz obdelanih tekstilnih vlaken",null,1667]
["04 02 99","Odpadki, ki niso navedeni drugje",null,1668]
["05 01 10","Blato iz čiščenja odpadnih voda na kraju nastanka, ki ni navedeno v 05 01 09",null,1669]
["05 01 13","Mulji iz grelnikov kotlovne vode",null,1670]
["05 01 14","Odpadki iz hladilnih kolon",null,1671]
["05 01 16","Odpadki, ki vsebujejo žveplo, iz razžveplanja naftnih derivatov",null,1672]
["05 01 17","Bitumen",null,1673]
["05 01 99","Odpadki, ki niso navedeni drugje",null,1674]
["05 06 04","Odpadki iz hladilnih kolon",null,1675]
["05 06 99","Odpadki, ki niso navedeni drugje",null,1676]
["05 07 02","Odpadki, ki vsebujejo žveplo",null,1677]
["05 07 99","Odpadki, ki niso navedeni drugje",null,1678]
["06 01 99","Odpadki, ki niso navedeni drugje",null,1679]
["06 02 99","Odpadki, ki niso navedeni drugje",null,1680]
["06 03 14","Trdne soli in raztopine, ki niso navedeni v 06 03 11 in 06 03 13",null,1681]
["06 03 16","Kovinski oksidi, ki niso navedeni v 06 03 15",null,1682]
["06 03 99","Odpadki, ki niso navedeni drugje",null,1683]
["06 04 99","Odpadki, ki niso navedeni drugje",null,1684]
["06 05 03","Blato iz čiščenja odpadnih voda na kraju nastanka, ki ni navedeno v 06 05 02",null,1685]
["06 06 03","Odpadki, ki vsebujejo sulfide in niso navedeni v 06 06 02",null,1686]
["06 06 99","Odpadki, ki niso navedeni drugje",null,1687]
["06 07 99","Odpadki, ki niso navedeni drugje",null,1688]
["06 08 99","Odpadki, ki niso navedeni drugje",null,1689]
["06 09 02","Fosforna žlindra",null,1690]
["06 09 04","Odpadki iz reakcij na osnovi kalcija, ki niso navedeni v 06 09 03",null,1691]
["06 09 99","Odpadki, ki niso navedeni drugje",null,1692]
["06 10 99","Odpadki, ki niso navedeni drugje",null,1693]
["06 11 01","Odpadki iz reakcij na osnovi kalcija iz proizvodnje titanovega dioksida",null,1694]
["06 11 99","Odpadki, ki niso navedeni drugje",null,1695]
["06 13 03","Industrijske saje (ogljik)",null,1696]
["06 13 99","Odpadki, ki niso navedeni drugje",null,1697]
["07 01 12","Blato iz čiščenja odpadnih voda na kraju nastanka, ki ni navedeno v 07 01 11",null,1698]
["07 01 99","Odpadki, ki niso navedeni drugje",null,1699]
["07 02 12","Blato iz čiščenja odpadnih voda na kraju nastanka, ki niso navedeno v 07 02 11",null,1700]
["07 02 13","Odpadna plastika",null,1701]
["07 02 15","Odpadki aditivov, ki niso navedeni v 07 02 14",null,1702]
["07 02 17","Odpadki, ki vsebujejo silikone in niso navedeni v 07 02 16",null,1861]
["07 02 99","Odpadki, ki niso navedeni drugje",null,1703]
["07 03 12","Blato iz čiščenja odpadnih voda na kraju nastanka, ki ni navedeno v 07 03 11",null,1704]
["07 03 99","Odpadki, ki niso navedeni drugje",null,1705]
["07 04 12","Blato iz čiščenja odpadnih voda na kraju nastanka, ki ni navedeno v 07 04 11",null,1706]
["07 04 99","Odpadki, ki niso navedeni drugje",null,1707]
["07 05 12","Blato iz čiščenja odpadnih voda na kraju nastanka, ki ni navedeno v 07 05 11",null,1708]
["07 05 14","Trdni odpadki, ki niso navedeni v 07 05 13",null,1709]
["07 05 99","Odpadki, ki niso navedeni drugje",null,1710]
["07 06 12","Blato iz čiščenja odpadnih voda na kraju nastanka, ki ni navedeno v 07 06 11",null,1711]
["07 06 99","Odpadki, ki niso navedeni drugje",null,1712]
["07 07 12","Blato iz čiščenja odpadnih voda na kraju nastanka, ki ni navedeno v 07 07 11",null,1713]
["07 07 99","Odpadki, ki niso navedeni drugje",null,1714]
["08 01 12","Odpadne barve in laki, ki niso navedeni v 08 01 11",null,1715]
["08 01 14","Mulji barv ali lakov, ki niso navedeni v 08 01 13",null,1716]
["08 01 16","Vodni mulji, ki vsebujejo barve ali lake in niso navedeni v 08 01 15",null,1717]
["08 01 18","Odpadki iz odstranjevanja barv ali lakov, ki niso navedeni v 08 01 17",null,1718]
["08 01 20","Vodne suspenzije, ki vsebujejo barve ali lake, ki niso navedeni v 08 01 19",null,1719]
["08 01 99","Odpadki, ki niso navedeni drugje",null,1720]
["08 02 01","Odpadna praškasta sredstva za površinsko zaščito",null,1734]
["08 02 02","Vodni mulji, ki vsebujejo keramične materiale",null,1735]
["08 02 03","Vodne suspenzije, ki vsebujejo keramične materiale",null,1736]
["08 02 99","Odpadki, ki niso navedeni drugje",null,1737]
["08 03 07","Vodni mulji, ki vsebujejo tiskarske barve",null,1738]
["08 03 08","Odpadne vodne raztopine, ki vsebujejo tiskarske barve",null,1739]
["08 03 13","Odpadne tiskarske barve, ki niso navedene v 08 03 12",null,1740]
["08 03 15","Mulji tiskarskih barv, ki niso navedeni v 08 03 14",null,1741]
["08 03 18","Odpadni tiskarski tonerji, ki niso navedeni v 08 03 17",null,1742]
["08 03 99","Odpadki, ki niso navedeni drugje",null,1743]
["08 04 10","Odpadna lepila in tesnilne mase, ki niso navedeni v 08 04 09",null,1744]
["08 04 12","Mulji lepil in tesnilnih mas, ki niso navedeni v 08 04 11",null,1745]
["08 04 14","Vodni mulji, ki vsebujejo lepila ali tesnilne mase, ki niso navedeni v 08 04 13",null,1746]
["08 04 16","Odpadne vodne raztopine, ki vsebujejo lepila ali tesnilne mase, ki niso navedeni v 08 04 15",null,1747]
["08 04 99","Odpadki, ki niso navedeni drugje",null,1748]
["09 01 07","Filmi in fotografski papir, ki vsebujejo srebro ali srebrove spojine",null,1749]
["09 01 08","Filmi in fotografski papir, ki ne vsebujejo srebra ali srebrovih spojin",null,1750]
["09 01 10","Fotoaparati za enkratno uporabo, brez baterij",null,1751]
["09 01 12","Fotoaparati za enkratno uporabo, z baterijami, ki niso navedene v 09 01 11",null,1752]
["09 01 99","Odpadki, ki niso navedeni drugje",null,1753]
["10 01 01","Pepel, žlindra in kotlovski prah (razen kotlovskega prahu, ki je naveden v 10 01 04)",null,1754]
["10 01 02","Elektrofiltrski pepel iz kurilnih naprav na premog",null,1755]
["10 01 03","Elektrofiltrski pepel iz kurilnih naprav na šoto in neobdelan les",null,1756]
["10 01 05","Trdni odpadki iz razžveplanja dimnih plinov z reakcijami na osnovi kalcija",null,1757]
["10 01 07","Muljasti odpadki iz razžveplanja dimnih plinov z reakcijami na osnovi kalcija",null,1758]
["10 01 15","Pepel, žlindra in kotlovski prah iz naprav za sosežig, ki niso navedeni v 10 01 14",null,1759]
["10 01 17","Elektrofiltrski pepel iz naprav za sosežig, ki ni naveden v 10 01 16",null,1760]
["10 01 19","Odpadki iz čiščenja odpadnih plinov, ki niso navedeni v 10 01 05, 10 01 07 in 10 01 18",null,1761]
["10 01 21","Blato iz čiščenja odpadnih voda na kraju nastanka, ki ni navedeno v 10 01 20",null,1762]
["10 01 23","Vodni mulji iz čiščenja kotlov, ki niso navedeni v 10 01 22",null,1763]
["10 01 24","Peski iz kurišč na lebdeči sloj",null,1764]
["10 01 25","Odpadki iz skladiščenja in priprave goriva v elektrarnah na premog",null,1765]
["10 01 26","Odpadki iz obdelave hladilne vode",null,1766]
["10 01 99","Odpadki, ki niso navedeni drugje",null,1767]
["10 02 01","Odpadki iz predelave žlindre",null,1768]
["10 02 02","Nepredelana žlindra",null,1769]
["10 02 08","Trdni odpadki iz čiščenja odpadnih plinov, ki niso navedeni v 10 02 07",null,1770]
["10 02 10","Valjarniška škaja",null,1771]
["10 02 12","Odpadki iz obdelave hladilne vode, ki niso navedeni v 10 02 11",null,1772]
["10 02 14","Mulji in filtrne pogače iz čiščenja odpadnih plinov, ki niso navedeni v 10 02 13",null,1773]
["10 02 15","Drugi mulji in filtrne pogače",null,1774]
["10 02 99","Odpadki, ki niso navedeni drugje",null,1775]
["10 03 02","Ostanki izrabljenih anod",null,1776]
["10 03 05","Odpadna glinica",null,1777]
["10 03 16","Posnemki, ki niso navedeni v 10 03 15",null,1778]
["10 03 18","Odpadki iz proizvodnje anod, ki vsebujejo ogljik, in niso navedeni v 10 03 17",null,1779]
["10 03 20","Prah dimnih plinov, ki ni naveden v 10 03 19",null,1780]
["10 03 22","Drugi delci in prah (vključno s prahom iz krogličnih mlinov), ki niso navedeni v 10 03 21",null,1781]
["10 03 24","Trdni odpadki iz čiščenja odpadnih plinov, ki niso navedeni v 10 03 23",null,1782]
["10 03 26","Mulji in filtrne pogače iz čiščenja odpadnih plinov, ki niso navedeni v 10 03 25",null,1783]
["10 03 28","Odpadki iz obdelave hladilne vode, ki niso navedeni v 10 03 27",null,1784]
["10 03 30","Odpadki iz obdelave solnih žlinder in črnih posnemkov, ki niso navedeni v 10 03 29",null,1785]
["10 03 99","Odpadki, ki niso navedeni drugje",null,1786]
["10 04 10","Odpadki iz obdelave hladilne vode, ki niso navedeni v 10 04 09",null,1787]
["10 04 99","Odpadki, ki niso navedeni drugje",null,1788]
["10 05 01","Žlindra iz primarnega in sekundarnega taljenja",null,1789]
["10 05 04","Drugi delci in prah",null,1790]
["10 05 09","Odpadki iz obdelave hladilne vode, ki niso navedeni v 10 05 08",null,1791]
["10 05 11","Posnemki, ki niso navedeni v 10 05 10",null,1792]
["10 05 99","Odpadki, ki niso navedeni drugje",null,1793]
["10 06 01","Žlindra iz primarnega in sekundarnega taljenja",null,1794]
["10 06 02","Posnemki iz primarnega in sekundarnega taljenja",null,1795]
["10 06 04","Drugi delci in prah",null,1796]
["10 06 10","Odpadki iz obdelave hladilne vode, ki niso navedeni v 10 06 09",null,1797]
["10 06 99","Odpadki, ki niso navedeni drugje",null,1798]
["10 07 01","Žlindra iz primarnega in sekundarnega taljenja",null,1799]
["10 07 02","Posnemki iz primarnega in sekundarnega taljenja",null,1800]
["10 07 03","Trdni odpadki iz čiščenja odpadnih plinov",null,1801]
["10 07 04","Drugi delci in prah",null,1802]
["10 07 05","Mulji in filtrne pogače iz čiščenja odpadnih plinov",null,1803]
["10 07 08","Odpadki iz obdelave hladilne vode, ki niso navedeni v 10 07 07",null,1804]
["10 07 99","Odpadki, ki niso navedeni drugje",null,1805]
["10 08 04","Delci in prah",null,1806]
["10 08 09","Druge žlindre",null,1807]
["10 08 11","Posnemki, ki niso navedeni v 10 08 10",null,1808]
["10 08 13","Odpadki iz proizvodnje anod, ki vsebujejo ogljik in niso navedeni v 10 08 12",null,1809]
["10 08 14","Ostanki izrabljenih anod",null,1810]
["10 08 16","Prah dimnih plinov, ki ni naveden v 10 08 15",null,1811]
["10 08 18","Mulji in filtrne pogače iz čiščenja dimnih plinov, ki niso navedeni v 10 08 17",null,1812]
["10 08 20","Odpadki iz obdelave hladilne vode, ki niso navedeni v 10 08 19",null,1813]
["10 08 99","Odpadki, ki niso navedeni drugje",null,1814]
["10 09 03","Žlindra iz peči",null,1815]
["10 09 06","Neuporabljene livarske forme in jedra, ki niso navedeni v 10 09 05",null,1816]
["10 09 08","Uporabljene livarske forme in jedra, ki niso navedeni v 10 09 07",null,1817]
["10 09 10","Prah dimnih plinov, ki ni naveden v 10 09 09",null,1818]
["10 09 12","Drugi delci, ki niso navedeni v 10 09 11",null,1819]
["10 09 14","Odpadna veziva, ki niso navedena v 10 09 13",null,1820]
["10 09 16","Odpadna sredstva za ugotavljanje razpok, ki niso navedena v 10 09 15",null,1821]
["10 09 99","Odpadki, ki niso navedeni drugje",null,1822]
["10 10 03","Žlindra iz peči",null,1823]
["10 10 06","Neuporabljene livarske forme in jedra, ki niso navedeni v 10 10 05",null,1824]
["10 10 08","Uporabljene livarske forme in jedra, ki niso navedeni v 10 10 07",null,1825]
["10 10 10","Prah dimnih plinov, ki ni naveden v 10 10 09",null,1826]
["10 10 12","Drugi delci, ki niso navedeni v 10 10 11",null,1827]
["10 10 14","Odpadna veziva, ki niso navedena v 10 10 13",null,1828]
["10 10 16","Odpadna sredstva za ugotavljanje razpok, ki niso navedena v 10 10 15",null,1379]
["10 10 99","Odpadki, ki niso navedeni drugje",null,1380]
["10 11 03","Odpadni materiali iz steklenih vlaken",null,1381]
["10 11 05","Delci in prah",null,1382]
["10 11 10","Odpadna zmes pred taljenjem, ki ni navedena v 10 11 09",null,1383]
["10 11 12","Odpadno steklo, ki ni navedeno v 10 11 11",null,1384]
["10 11 14","Mulj iz poliranja in brušenja stekla, ki ni naveden v 10 11 13",null,1385]
["10 11 16","Trdni odpadki iz čiščenja dimnih plinov, ki niso navedeni v 10 11 15",null,1386]
["10 11 18","Mulji in filtrne pogače iz čiščenja dimnih plinov, ki niso navedeni v 10 11 17",null,1387]
["10 11 20","Trdni iz čiščenja odpadnih voda na kraju nastanka, ki niso navedeni v 10 11 19",null,1388]
["10 11 99","Odpadki, ki niso navedeni drugje",null,1389]
["10 12 01","Odpadna surova zmes pred žganjem",null,1390]
["10 12 03","Delci in prah",null,1391]
["10 12 05","Mulji in filtrne pogače iz čiščenja odpadnih plinov",null,1392]
["10 12 06","Zavržene forme",null,1393]
["10 12 08","Odpadna keramika, opeke, ploščice in gradbeni proizvodi (po žganju)",null,1394]
["10 12 10","Trdni odpadki iz čiščenja odpadnih plinov, ki niso navedeni v 10 12 09",null,1395]
["10 12 12","Odpadki iz glaziranja, ki niso navedeni v 10 12 11",null,1396]
["10 12 13","Blato iz čiščenja odpadnih voda na kraju nastanka",null,1397]
["10 12 99","Odpadki, ki niso navedeni drugje",null,1398]
["10 13 01","Odpadna surova zmes pred žganjem",null,1399]
["10 13 04","Odpadki iz kalcinacije in hidratacije apna",null,1400]
["10 13 06","Delci in prah (razen 10 13 12 in 10 13 13)",null,1401]
["10 13 07","Mulji in filtrne pogače iz čiščenja odpadnih plinov",null,1402]
["10 13 10","Odpadki iz proizvodnje azbestcementa, ki niso navedeni v 10 13 09",null,1403]
["10 13 11","Odpadki iz proizvodnje sestavljenih (kompozitnih) materialov na osnovi cementa, ki niso navedeni v 10 13 09 in 10 13 10",null,1404]
["10 13 13","Trdni odpadki iz čiščenja odpadnih plinov, ki niso navedeni v 10 13 12",null,1405]
["10 13 14","Odpadni beton in betonski mulj",null,1406]
["10 13 99","Odpadki, ki niso navedeni drugje",null,1407]
["11 01 10","Mulji in filtrne pogače, ki niso navedeni v 11 01 09",null,1364]
["11 01 12","Tekočine za izpiranje na vodni osnovi, ki niso navedene v 11 01 11",null,1365]
["11 01 14","Odpadki iz razmaščevanja, ki niso navedeni v 11 01 13",null,1366]
["11 01 99","Odpadki, ki niso navedeni drugje",null,1367]
["11 02 03","Odpadki iz proizvodnje anod za elektrolizne postopke v vodnih medijih",null,1368]
["11 02 06","Odpadki iz hidrometalurških postopkov, ki niso navedeni v 11 02 05",null,1369]
["11 02 99","Odpadki, ki niso navedeni drugje",null,1370]
["11 05 01","Surovi cink",null,1371]
["11 05 02","Cinkov pepel",null,1372]
["11 05 99","Odpadki, ki niso navedeni drugje",null,1373]
["12 01 01","Opilki in ostružki železa",null,1374]
["12 01 02","Prah in delci železa",null,1375]
["12 01 03","Opilki in ostružki barvnih kovin",null,1376]
["12 01 04","Prah in delci barvnih kovin",null,1377]
["12 01 05","Drobci in ostružki plastike",null,1378]
["12 01 13","Odpadki iz varjenja",null,1170]
["12 01 15","Strojni mulji, ki niso navedeni v 12 01 14",null,1171]
["12 01 17","Odpadki iz peskanja, ki niso navedeni v 12 01 16",null,1172]
["12 01 21","Izrabljena brusilna telesa in brusilni materiali, ki niso navedeni v 12 01 20",null,1173]
["12 01 99","Odpadki, ki niso navedeni drugje",null,1174]
["15 01 01","Papirna in kartonska embalaža ter embalaža iz lepenke",null,1175]
["15 01 02","Plastična embalaža",null,1176]
["15 01 03","Lesena embalaža",null,1177]
["15 01 04","Kovinska embalaža",null,1178]
["15 01 05","Sestavljena (kompozitna) embalaža",null,1179]
["15 01 06","Mešana embalaža",null,1180]
["15 01 07","Steklena embalaža",null,1181]
["15 01 09","Embalaža iz tekstila",null,1732]
["15 02 03","Absorbenti, filtrirna sredstva, čistilne krpe in zaščitna oblačila, ki niso navedeni v 15 02 02",null,1733]
["16 01 03","Izrabljene gume",null,1532]
["16 01 06","Izrabljena vozila, ki ne vsebujejo niti tekočin niti drugih nevarnih sestavin",null,1533]
["16 01 12","Zavorne obloge, ki niso navedene v 16 01 11",null,1534]
["16 01 15","Tekočine proti zmrzovanju, ki niso navedene v 16 01 14",null,1535]
["16 01 16","Rezervoarji za utekočinjen plin",null,1536]
["16 01 17","Železne kovine",null,1537]
["16 01 18","Barvne kovine",null,1538]
["16 01 19","Plastika",null,1539]
["16 01 20","Steklo",null,1540]
["16 01 22","Sestavine, ki niso navedene drugje",null,1541]
["16 01 99","Odpadki, ki niso navedeni drugje",null,1542]
["16 02 14","Zavržena oprema, ki ni navedena v 16 02 09 do 16 02 13",null,1543]
["16 02 16","Sestavine, odstranjene iz zavržene opreme, ki niso navedene v 16 02 15",null,1544]
["16 03 04","Anorganski odpadki, ki niso navedeni v 16 03 03",null,1545]
["16 03 06","Organski odpadki, ki niso navedeni v 16 03 05",null,1546]
["16 05 05","Plini v tlačnih posodah, ki niso navedeni v 16 05 04",null,1547]
["16 05 09","Zavržene kemikalije, ki niso navedene v 16 05 06, 16 05 07 ali 16 05 08",null,1548]
["16 06 04","Alkalne baterije (razen 16 06 03)",null,1549]
["16 06 05","Druge baterije in akumulatorji",null,1550]
["16 07 99","Odpadki, ki niso navedeni drugje",null,1551]
["16 08 01","Izrabljeni katalizatorji, ki vsebujejo zlato, srebro, renij, rodij, paladij, iridij ali platino (razen 16 08 07)",null,1552]
["16 08 03","Izrabljeni katalizatorji, ki vsebujejo prehodne kovine ali njihove spojine, ki niso navedeni drugje",null,1553]
["16 08 04","Izrabljeni tekoči katalizatorji iz katalitičnega krekinga (razen 16 08 07)",null,1554]
["16 10 02","Odpadne vodne raztopine, ki niso navedene v 16 10 01",null,1555]
["16 10 04","Vodni koncentrati, ki niso navedeni v 16 10 03",null,1556]
["16 11 02","Obloge in ognjevzdržni materiali na osnovi ogljika iz metalurških postopkov, ki niso navedeni v 16 11 01",null,1557]
["16 11 04","Druge obloge in ognjevzdržni materiali iz metalurških postopkov, ki niso navedeni v 16 11 03",null,1558]
["16 11 06","Obloge in ognjevzdržni materiali iz nemetalurških postopkov, ki niso navedeni v 16 11 05",null,1559]
["17 01 01","Beton",null,1560]
["17 01 02","Opeke",null,1561]
["17 01 03","Ploščice in keramika",null,1562]
["17 01 07","Mešanice betona, opeke, ploščic in keramike, ki niso navedene v 17 01 06",null,1563]
["17 02 01","Les",null,1564]
["17 02 02","Steklo",null,1565]
["17 02 03","Plastika",null,1566]
["17 03 02","Bitumenske mešanice, ki niso navedene v 17 03 01",null,1567]
["17 04 01","Baker, bron, medenina",null,1568]
["17 04 02","Aluminij",null,1569]
["17 04 03","Svinec",null,1570]
["17 04 04","Cink",null,1571]
["17 04 05","Železo in jeklo",null,1572]
["17 04 06","Kositer",null,1573]
["17 04 07","Mešanice kovin",null,1574]
["17 04 11","Kabli, ki niso navedeni v 17 04 10",null,1575]
["17 05 04","Zemlja in kamenje, ki nista navedena v 17 05 03",null,1576]
["17 05 06","Material, izkopan pri poglabljanju dna z bagranjem, ki ni naveden v 17 05 05",null,1577]
["17 05 08","Tolčenec izpod železniških tirov in pragov, ki ni naveden v 17 05 07",null,1578]
["17 06 04","Izolirni materiali, ki niso navedeni v 17 06 01 in 17 06 03",null,1579]
["17 08 02","Gradbeni materiali na osnovi sadre, ki niso navedeni v 17 08 01",null,1580]
["17 09 04","Mešanice gradbeni odpadkov in odpadkov iz rušenja objektov, ki niso navedene v 17 09 01, 17 09 02 in 17 09 03",null,1581]
["18 01 01","Ostri predmeti (razen 18 01 03)",null,1582]
["18 01 02","Deli telesa in organi, vključno z vrečkami krvi in konzervirano krvjo (razen 18 01 03)",null,1583]
["18 01 04","Odpadki, ki z vidika preprečevanja okužbe ne zahtevajo posebnega ravnanja pri zbiranju in odstranjevanju (npr. obveze, mavčni povoji, oblačila za enkratno uporabo, plenice)",null,1584]
["18 01 07","Kemikalije, ki niso navedene v 18 01 06",null,1585]
["18 01 09","Zdravila, ki niso navedena v 18 01 08",null,1433]
["18 02 01","Ostri predmeti (razen 18 02 02)",null,1434]
["18 02 03","Odpadki, ki z vidika preprečevanja okužb ne zahtevajo posebnega ravnanja pri zbiranju in odstranjevanju",null,1435]
["18 02 06","Kemikalije, ki niso navedene v 18 02 05",null,1436]
["18 02 08","Zdravila, ki niso navedena v 18 02 07",null,1437]
["19 01 02","Železni materiali, izločeni iz ogorkov",null,1438]
["19 01 12","Ogorki in žlindra, ki niso navedeni v 19 01 11",null,1439]
["19 01 14","Elektrofiltrski pepel, ki ni naveden v 19 01 13",null,1440]
["19 01 16","Kotlovski prah, ki ni naveden v 19 01 15",null,1441]
["19 01 18","Odpadki iz pirolize, ki niso navedeni v 19 01 17",null,1442]
["19 01 19","Peski iz kurišč na lebdečo plast",null,1443]
["19 01 99","Odpadki, ki niso navedeni drugje",null,1444]
["19 02 03","Pomešani odpadki, ki sestojijo samo iz nenevarnih odpadkov",null,1445]
["19 02 06","Mulji iz fizikalno-kemične obdelave, ki niso navedeni v 19 02 05",null,1446]
["19 02 10","Gorljivi odpadki, ki niso navedeni v 19 02 08 in 19 02 09",null,1447]
["19 02 99","Odpadki, ki niso navedeni drugje",null,1448]
["19 03 05","Stabilizirani odpadki, ki niso navedeni v 19 03 04",null,1449]
["19 03 07","Solidificirani odpadki, ki niso navedeni v 19 03 06",null,1450]
["19 04 01","Zastekljeni odpadki",null,1451]
["19 04 04","Odpadne vodne raztopine iz tempranja zastekljenih odpadkov",null,1452]
["19 05 01","Nekompostirana frakcija komunalnih in podobnih odpadkov",null,1453]
["19 05 02","Nekompostirana frakcija živalskih in rastlinskih odpadkov",null,1454]
["19 05 03","Kompost, ki ne ustreza specifikaciji",null,1455]
["19 05 99","Odpadki, ki niso navedeni drugje",null,1456]
["19 06 03","Lužnica iz anaerobne obdelave komunalnih odpadkov",null,1457]
["19 06 04","Digestat iz anaerobne obdelave komunalnih odpadkov",null,1458]
["19 06 05","Lužnica iz anaerobne obdelave živalskih in rastlinskih odpadkov",null,1459]
["19 06 06","Digestat iz anaerobne obdelave živalskih in rastlinskih odpadkov",null,1460]
["19 06 99","Odpadki, ki niso navedeni drugje",null,1461]
["19 07 03","Izcedne vode z odlagališč, ki niso navedene v 19 07 02",null,1462]
["19 08 01","Ostanki na grabljah in sitih",null,1463]
["19 08 02","Odpadki iz peskolovov",null,1464]
["19 08 05","Blato iz čiščenja komunalnih odpadnih voda",null,1465]
["19 08 09","Mešanice masti in olj iz ločevanja olja in vode, ki vsebujejo le jedilna olja in masti",null,1466]
["19 08 12","Blato iz biološke obdelave industrijskih odpadnih voda, ki ni navedeno v 19 08 11",null,1467]
["19 08 14","Blato iz druge obdelave industrijskih odpadnih voda, ki ni navedeno v 19 08 13",null,1468]
["19 08 99","Odpadki, ki niso navedeni drugje",null,1469]
["19 09 01","Trdni odpadki iz primarnega filtriranja in ostanki na grabljah in sitih",null,1470]
["19 09 02","Mulji iz bistrenja vode",null,1471]
["19 09 03","Mulji iz dekarbonatizacije",null,1472]
["19 09 04","Izrabljeno aktivno oglje",null,1473]
["19 09 05","Nasičene ali izrabljene smole ionskih izmenjevalnikov",null,1474]
["19 09 06","Raztopine in mulji iz regeneracije ionskih izmenjevalnikov",null,1475]
["19 09 99","Odpadki, ki niso navedeni drugje",null,1476]
["19 10 01","Odpadno železo in jeklo",null,1477]
["19 10 02","Odpadne barvne kovine",null,1478]
["19 10 04","Lahka frakcija in prah, ki nista navedena v 19 10 03",null,1479]
["19 10 06","Druge frakcije, ki niso navedene v 19 10 05",null,1480]
["19 11 06","Blato iz čiščenja odpadnih voda na kraju nastanka, ki ni navedeno v 19 11 05",null,1481]
["19 11 99","Odpadki, ki niso navedeni drugje",null,1482]
["19 12 01","Papir ter karton in lepenka",null,1483]
["19 12 02","Železne kovine",null,1484]
["19 12 03","Barvne kovine",null,1485]
["19 12 04","Plastika in guma",null,1486]
["19 12 05","Steklo",null,1487]
["19 12 07","Les, ki ni naveden v 19 12 06",null,1488]
["19 12 08","Tekstil",null,1489]
["19 12 09","Minerali (npr. pesek, kamenje)",null,1490]
["19 12 10","Gorljivi odpadki (iz odpadkov pridobljeno gorivo)",null,1829]
["19 12 12","Drugi odpadki (vključno z mešanicami materialov) iz mehanske obdelave odpadkov, ki niso navedeni v 19 12 11",null,1830]
["19 13 02","Trdni odpadki iz sanacije tal, ki niso navedeni v 19 13 01",null,1831]
["19 13 04","Mulji iz sanacije tal, ki niso navedeni v 19 13 03",null,1832]
["19 13 06","Mulji iz sanacije podtalnice, ki niso navedeni v 19 13 05",null,1833]
["19 13 08","Odpadne vodne raztopine in vodni koncentrati iz sanacije podtalnice, ki niso navedeni v 19 13 07",null,1834]
["20 01 01","Papir ter karton in lepenka",null,1835]
["20 01 02","Steklo",null,1836]
["20 01 08","Biorazgradljivi kuhinjski odpadki in odpadki iz restavracij",null,1837]
["20 01 10","Oblačila",null,1838]
["20 01 11","Tekstil",null,1839]
["20 01 25","Jedilno olje in masti",null,1840]
["20 01 28","Barve, tiskarske barve, lepila in smole, ki niso navedeni v 20 01 27",null,1841]
["20 01 30","Čistila (detergenti), ki niso navedeni v 20 01 29",null,1842]
["20 01 32","Zdravila, ki niso navedena v 20 01 31",null,1843]
["20 01 34","Baterije in akumulatorji, ki niso navedeni v 20 01 33",null,1844]
["20 01 36","Zavržena električna in elektronska oprema, ki ni navedena v 20 01 21, 20 01 23 in 20 01 35",null,1845]
["20 01 38","Les, ki ni naveden v 20 01 37",null,1846]
["20 01 39","Plastika",null,1847]
["20 01 40","Kovine",null,1848]
["20 01 41","Odpadki iz čiščenja dimnikov",null,1849]
["20 01 99","Odpadki, ki niso navedeni drugje",null,1850]
["20 02 01","Biorazgradljivi odpadki",null,1851]
["20 02 02","Zemlja in kamenje",null,1852]
["20 02 03","Drugi odpadki, ki niso biorazgradljivi",null,1853]
["20 03 01","Mešani komunalni odpadki",null,1854]
["20 03 02","Odpadki s tržnic",null,1855]
["20 03 03","Odpadki iz čiščenja cest",null,1856]
["20 03 04","Blato iz greznic",null,1857]
["20 03 06","Odpadki iz čiščenja kanalizacije",null,1858]
["20 03 07","Kosovni odpadki",null,1859]
["20 03 99","Komunalni odpadki, ki niso navedeni drugje",null,1860]

{"sheet":"XODP_sifrant_nevarnih_odp","index":24,"n_rows":409,"n_cols":4,"rows_kept":409,"cut":false,"hidden":true,"merged":[]}
["Številka odpadka ","Naziv odpadka ","Nevarnost odpadka","ID"]
["01 03 04","Kisli ostanki iz predelave sulfidne rude","*",1117]
["01 03 05","Drugi ostanki, ki vsebujejo nevarne snovi","*",1118]
["01 03 07","Drugi odpadki, ki vsebujejo nevarne snovi, iz fizikalne in kemične predelave kovinskih mineralnih surovin","*",1119]
["01 03 10","Rdeče blato iz proizvodnje glinice, ki vsebuje druge nevarne snovi, kot so odpadki, ki so navedeni v 01 03 07","*",1951]
["01 04 07","Odpadki, ki vsebujejo nevarne snovi, iz fizikalne in kemijske predelave nekovinskih mineralnih surovin","*",1120]
["01 05 05","Mulji in odpadki iz vrtanja, ki vsebujejo olja","*",1121]
["01 05 06","Mulji in drugi odpadki iz vrtanja, ki vsebujejo nevarne snovi","*",1122]
["02 01 08","Agrokemični odpadki, ki vsebujejo nevarne snovi","*",1123]
["03 01 04","Žagovina, oblanci, odrezki, les, iverne plošče in furnir, ki vsebujejo nevarne snovi","*",1124]
["03 02 01","Nehalogenirana organska sredstva za zaščito lesa","*",1125]
["03 02 02","Klorirana organska sredstva za zaščito lesa","*",1126]
["03 02 03","Organokovinska sredstva za zaščito lesa","*",1127]
["03 02 04","Anorganska sredstva za zaščito lesa","*",1128]
["03 02 05","Druga sredstva za zaščito lesa, ki vsebujejo nevarne snovi","*",1129]
["04 01 03","Odpadki iz razmaščevanja, ki vsebujejo topila, brez tekoče faze","*",1130]
["04 02 14","Odpadki iz dodelave, ki vsebujejo organska topila","*",1131]
["04 02 16","Barvila in pigmenti, ki vsebujejo nevarne snovi","*",1310]
["04 02 19","Blato, ki vsebuje nevarne snovi, iz čiščenja odpadnih voda na kraju nastanka","*",1311]
["05 01 02","Mulji iz razsoljevanja","*",973]
["05 01 03","Mulji z dna rezervoarjev","*",974]
["05 01 04","Kisli alkilni mulji","*",975]
["05 01 05","Razlita nafta","*",976]
["05 01 06","Zaoljeni mulji iz postopkov vzdrževanja obrata ali opreme","*",977]
["05 01 07","Kisli katrani","*",978]
["05 01 08","Drugi katrani","*",979]
["05 01 09","Blato, ki vsebuje nevarne snovi, iz čiščenja odpadnih voda na kraju nastanka","*",980]
["05 01 11","Odpadki iz čiščenja goriv z lugi","*",981]
["05 01 12","Nafta, ki vsebuje kisline","*",982]
["05 01 15","Izrabljene filtrirne gline","*",983]
["05 06 01","Kisli katrani","*",984]
["05 06 03","Drugi katrani","*",985]
["05 07 01","Odpadki, ki vsebujejo živo srebro","*",986]
["06 01 01","Žveplova in žveplasta kislina","*",987]
["06 01 02","Klorovodikova kislina","*",988]
["06 01 03","Fluorovodikova kislina","*",989]
["06 01 04","Fosforjeva in fosforasta kislina","*",990]
["06 01 05","Dušikova in dušikasta kislina","*",991]
["06 01 06","Druge kisline","*",992]
["06 02 01","Kalcijev hidroksid","*",993]
["06 02 03","Amonijev hidroksid","*",994]
["06 02 04","Natrijev in kalijev hidroksid","*",995]
["06 02 05","Druge baze (lugi)","*",996]
["06 03 11","Trdne soli in raztopine, ki vsebujejo cianide","*",997]
["06 03 13","Trdne soli in raztopine, ki vsebujejo težke kovine","*",998]
["06 03 15","Kovinski oksidi, ki vsebujejo težke kovine","*",999]
["06 04 03","Odpadki, ki vsebujejo arzen","*",1000]
["06 04 04","Odpadki, ki vsebujejo živo srebro","*",1001]
["06 04 05","Odpadki, ki vsebujejo druge težke kovine","*",1002]
["06 05 02","Blato, ki vsebuje nevarne snovi, iz čiščenja odpadnih voda na kraju nastanka","*",1003]
["06 06 02","Odpadki, ki vsebujejo nevarne sulfide","*",1004]
["06 07 01","Elektrolizni odpadki, ki vsebujejo azbest","*",1005]
["06 07 02","Aktivno oglje iz proizvodnje klora","*",1006]
["06 07 03","Mulj barijevega sulfata, ki vsebuje živo srebro","*",1007]
["06 07 04","Raztopine in kisline, npr. kontaktna kislina","*",1008]
["06 08 02","Odpadki, ki vsebujejo nevarne klorosilane","*",1009]
["06 09 03","Odpadki iz reakcij na osnovi kalcija, ki vsebujejo nevarne snovi ali pa so onesnaženi z njimi","*",1010]
["06 10 02","Odpadki, ki vsebujejo nevarne snovi","*",1011]
["06 13 01","Anorganska sredstva za zaščito rastlin, sredstva za zaščito lesa in drugi biocidi","*",1012]
["06 13 02","Izrabljeno aktivno oglje (razen 06 07 02)","*",1013]
["06 13 04","Odpadki iz predelave azbesta","*",1014]
["06 13 05","Dimniške saje","*",1015]
["07 01 01","Pralne tekočine na vodni osnovi in matične lužnice","*",1016]
["07 01 03","Halogenirana organska topila, pralne tekočine in matične lužnice","*",1017]
["07 01 04","Druga organska topila, pralne tekočine in matične lužnice","*",1018]
["07 01 07","Halogenirani ostanki iz destilacij in reakcij","*",1019]
["07 01 08","Drugi ostanki iz destilacij in reakcij","*",1020]
["07 01 09","Halogenirane filtrne pogače in izrabljeni absorbenti","*",1021]
["07 01 10","Druge filtrne pogače in izrabljeni absorbenti","*",1022]
["07 01 11","Blato, ki vsebuje nevarne snovi, iz čiščenja odpadnih voda na kraju nastanka","*",1023]
["07 02 01","Pralne tekočine na vodni osnovi in matične lužnice","*",1024]
["07 02 03","Halogenirana organska topila, pralne tekočine in matične lužnice","*",1025]
["07 02 04","Druga organska topila, pralne tekočine in matične lužnice","*",1026]
["07 02 07","Halogenirani ostanki iz destilacij in reakcij","*",1027]
["07 02 08","Drugi ostanki iz destilacij in reakcij","*",1028]
["07 02 09","Halogenirane filtrne pogače in izrabljeni absorbenti","*",1029]
["07 02 10","Druge filtrne pogače in izrabljeni absorbenti","*",1030]
["07 02 11","Blato, ki vsebuje nevarne snovi, iz čiščenja odpadnih voda na kraju nastanka","*",1031]
["07 02 14","Odpadki aditivov, ki vsebujejo nevarne snovi","*",1032]
["07 02 16","Odpadki, ki vsebujejo nevarne silikone","*",1033]
["07 03 01","Pralne tekočine na vodni osnovi in matične lužnice","*",1034]
["07 03 03","Halogenirana organska topila, pralne tekočine in matične lužnice","*",1035]
["07 03 04","Druga organska topila, pralne tekočine in matične lužnice","*",1036]
["07 03 07","Halogenirani ostanki iz destilacij in reakcij","*",1037]
["07 03 08","Drugi ostanki iz destilacij in reakcij","*",1038]
["07 03 09","Halogenirane filtrne pogače in izrabljeni absorbenti","*",1039]
["07 03 10","Druge filtrne pogače in izrabljeni absorbenti","*",1040]
["07 03 11","Blato, ki vsebuje nevarne snovi, iz čiščenja odpadnih voda na kraju nastanka","*",1041]
["07 04 01","Pralne tekočine na vodni osnovi in matične lužnice","*",1042]
["07 04 03","Halogenirana organska topila, pralne tekočine in matične lužnice","*",1043]
["07 04 04","Druga organska topila, pralne tekočine in matične lužnice","*",972]
["07 04 07","Halogenirani ostanki iz destilacij in reakcij","*",1045]
["07 04 08","Drugi ostanki iz destilacij in reakcij","*",1046]
["07 04 09","Halogenirane filtrne pogače in izrabljeni absorbenti","*",1047]
["07 04 10","Druge filtrne pogače in izrabljeni absorbenti","*",1182]
["07 04 11","Blato, ki vsebuje nevarne snovi, iz čiščenja odpadnih voda na kraju nastanka","*",1183]
["07 04 13","Trdni odpadki, ki vsebujejo nevarne snovi","*",1184]
["07 05 01","Pralne tekočine na vodni osnovi in matične lužnice","*",1185]
["07 05 03","Halogenirana organska topila, pralne tekočine in matične lužnice","*",1186]
["07 05 04","Druga organska topila, pralne tekočine in matične lužnice","*",1187]
["07 05 07","Halogenirani ostanki iz destilacij in reakcij","*",1188]
["07 05 08","Drugi ostanki iz destilacij in reakcij","*",1189]
["07 05 09","Halogenirane filtrne pogače in izrabljeni absorbenti","*",1190]
["07 05 10","Druge filtrne pogače in izrabljeni absorbenti","*",1191]
["07 05 11","Blato, ki vsebuje nevarne snovi, iz čiščenja odpadnih voda na kraju nastanka","*",1192]
["07 05 13","Trdni odpadki, ki vsebujejo nevarne snovi","*",1193]
["07 06 01","Pralne tekočine na vodni osnovi in matične lužnice","*",1194]
["07 06 03","Halogenirana organska topila, pralne tekočine in matične lužnice","*",1195]
["07 06 04","Druga organska topila, pralne tekočine in matične lužnice","*",1196]
["07 06 07","Halogenirani ostanki iz destilacij in reakcij","*",1197]
["07 06 08","Drugi ostanki iz destilacij in reakcij","*",1198]
["07 06 09","Halogenirane filtrne pogače in izrabljeni absorbenti","*",1199]
["07 06 10","Druge filtrne pogače in izrabljeni absorbenti","*",1200]
["07 06 11","Blato, ki vsebuje nevarne snovi, iz čiščenja odpadnih voda na kraju nastanka snovi","*",1201]
["07 07 01","Pralne tekočine na vodni osnovi in matične lužnice","*",1202]
["07 07 03","Halogenirana organska topila, pralne tekočine in matične lužnice","*",1203]
["07 07 04","Druga organska topila, pralne tekočine in matične lužnice","*",1204]
["07 07 07","Halogenirani ostanki iz destilacij in reakcij","*",1205]
["07 07 08","Drugi ostanki iz destilacij in reakcij","*",1206]
["07 07 09","Halogenirane filtrne pogače in izrabljeni absorbenti","*",1207]
["07 07 10","Druge filtrne pogače in izrabljeni absorbenti","*",1208]
["07 07 11","Blato, ki vsebuje nevarne snovi, iz čiščenja odpadnih voda na kraju nastanka snovi","*",1209]
["08 01 11","Odpadne barve in laki, ki vsebujejo organska topila ali druge nevarne snovi","*",1210]
["08 01 13","Mulji barv ali lakov, ki vsebujejo organska topila ali druge nevarne snovi","*",1211]
["08 01 15","Vodni mulji, ki vsebujejo barve ali lake, ki vsebujejo organska topila ali druge nevarne snovi","*",1212]
["08 01 17","Odpadki iz odstranjevanja barv ali lakov, ki vsebujejo organska topila ali druge nevarne snovi","*",1213]
["08 01 19","Vodne suspenzije, ki vsebujejo barve ali lake, ki vsebujejo organska topila ali druge nevarne snovi","*",1214]
["08 01 21","Odpadki sredstev za odstranjevanje barv ali lakov","*",1215]
["08 03 12","Odpadne tiskarske barve, ki vsebujejo nevarne snovi","*",1216]
["08 03 14","Mulji tiskarskih barv, ki vsebujejo nevarne snovi","*",1217]
["08 03 16","Odpadne raztopine za jedkanje","*",1218]
["08 03 17","Odpadni tiskarski tonerji, ki vsebujejo nevarne snovi","*",1219]
["08 03 19","Disperzijsko olje","*",1220]
["08 04 09","Odpadna lepila in tesnilne mase, ki vsebujejo organska topila ali druge nevarne snovi","*",1221]
["08 04 11","Mulji lepil in tesnilnih mas, ki vsebujejo organska topila ali druge nevarne snovi","*",1222]
["08 04 13","Vodni mulji, ki vsebujejo lepila ali tesnilne mase, ki vsebujejo organska topila ali druge nevarne snovi","*",1223]
["08 04 15","Odpadne vodne raztopine, ki vsebujejo lepila ali tesnilne mase, ki vsebujejo organska topila ali druge nevarne snovi","*",1224]
["08 04 17","Smolno olje (kolofonija)","*",1225]
["08 05 01","Odpadni izocianati","*",1226]
["09 01 01","Raztopine razvijalcev in aktivatorjev na vodni osnovi","*",1227]
["09 01 02","Raztopine razvijalcev za ofsetne plošče na vodni osnovi","*",1228]
["09 01 03","Raztopine razvijalcev na osnovi topil","*",1229]
["09 01 04","Fiksirne raztopine","*",1230]
["09 01 05","Belilne in belilno-fiksirne raztopine","*",1231]
["09 01 06","Odpadki, ki vsebujejo srebro, iz obdelave fotografskih odpadkov na kraju nastanka","*",1232]
["09 01 11","Fotoaparati za enkratno uporabo, z baterijami, navedenimi v 16 06 01, 16 06 02 ali 16 06 03","*",1233]
["09 01 13","Odpadne vodne raztopine iz regeneracije srebra na kraju nastanka, ki niso navedene v 09 01 06","*",1234]
["10 01 04","Elektrofiltrski pepel in kotlovski prah iz kurilnih naprav na kurilno olje","*",1235]
["10 01 09","Žveplova kislina","*",1236]
["10 01 13","Elektrofiltrski pepel iz emulgiranih ogljikovodikov, uporabljenih kot gorivo","*",1237]
["10 01 14","Pepel, žlindra in kotlovski prah, ki vsebujejo nevarne snovi, iz naprav za sosežig","*",1238]
["10 01 16","Elektrofiltrski pepel, ki vsebuje nevarne snovi, iz naprav za sosežig","*",1239]
["10 01 18","Odpadki, ki vsebujejo nevarne snovi, iz čiščenja odpadnih plinov","*",1044]
["10 01 20","Blato, ki vsebuje nevarne snovi, iz čiščenja odpadnih voda na kraju nastanka","*",1240]
["10 01 22","Vodni mulji, ki vsebujejo nevarne snovi, iz čiščenja kotlov","*",1244]
["10 02 07","Trdni odpadki, ki vsebujejo nevarne snovi, iz čiščenja odpadnih plinov","*",1245]
["10 02 11","Odpadki iz obdelave hladilne vode, ki vsebujejo olje","*",1048]
["10 02 13","Mulji in filtrne pogače, ki vsebujejo nevarne snovi, iz čiščenja odpadnih plinov","*",1049]
["10 03 04","Žlindre iz primarnega taljenja","*",1050]
["10 03 08","Solne žlindre iz sekundarnega taljenja","*",1051]
["10 03 09","Črni posnemki iz sekundarnega taljenja","*",1052]
["10 03 15","Posnemki, ki so vnetljivi ali pri stiku z vodo sproščajo vnetljive pline v nevarnih količinah","*",1053]
["10 03 17","Odpadki iz proizvodnje anod, ki vsebujejo katran","*",1054]
["10 03 19","Prah dimnih plinov, ki vsebuje nevarne snovi","*",1055]
["10 03 21","Drugi delci in prah (vključno s prahom iz krogličnih mlinov), ki vsebujejo nevarne snovi","*",1056]
["10 03 23","Trdni odpadki iz čiščenja odpadnih plinov, ki vsebujejo nevarne snovi","*",1057]
["10 03 25","Mulji in filtrne pogače iz čiščenja odpadnih plinov, ki vsebujejo nevarne snovi","*",1058]
["10 03 27","Odpadki iz obdelave hladilne vode, ki vsebujejo olje","*",1059]
["10 03 29","Odpadki iz obdelave solnih žlinder in črnih posnemkov, ki vsebujejo nevarne snovi","*",1060]
["10 04 01","Žlindra iz primarnega in sekundarnega taljenja","*",1061]
["10 04 02","Posnemki iz primarnega in sekundarnega taljenja","*",1062]
["10 04 03","Kalcijev arzenat","*",1063]
["10 04 04","Prah dimnih plinov","*",1064]
["10 04 05","Drugi delci in prah","*",1065]
["10 04 06","Trdni odpadki iz čiščenja odpadnih plinov","*",1066]
["10 04 07","Mulji in filtrne pogače iz čiščenja odpadnih plinov","*",1067]
["10 04 09","Odpadki iz obdelave hladilne vode, ki vsebujejo olje","*",1068]
["10 05 03","Prah dimnih plinov","*",1069]
["10 05 05","Trdni odpadki iz čiščenja odpadnih plinov","*",1070]
["10 05 06","Mulji in filtrne pogače iz čiščenja odpadnih plinov","*",1071]
["10 05 08","Odpadki iz obdelave hladilne vode, ki vsebujejo olje","*",1072]
["10 05 10","Posnemki, ki so vnetljivi ali pri stiku z vodo sproščajo vnetljive pline v nevarnih količinah","*",1073]
["10 06 03","Prah dimnih plinov","*",1074]
["10 06 06","Trdni odpadki iz čiščenja odpadnih plinov","*",1075]
["10 06 07","Mulji in filtrne pogače iz čiščenja odpadnih plinov","*",1076]
["10 06 09","Odpadki iz obdelave hladilne vode, ki vsebujejo olje","*",1077]
["10 07 07","Odpadki iz obdelave hladilne vode, ki vsebujejo olje","*",1078]
["10 08 08","Solna žlindra iz primarnega in sekundarnega taljenja","*",1079]
["10 08 10","Posnemki, ki so vnetljivi ali pri stiku z vodo sproščajo vnetljive pline v nevarnih količinah","*",1080]
["10 08 12","Odpadki iz proizvodnje anod, ki vsebujejo katran","*",1081]
["10 08 15","Prah dimnih plinov, ki vsebuje nevarne snovi","*",1082]
["10 08 17","Mulji in filtrne pogače iz čiščenja dimnih plinov, ki vsebujejo nevarne snovi","*",1083]
["10 08 19","Odpadki iz obdelave hladilne vode, ki vsebujejo olje","*",1084]
["10 09 05","Neuporabljene livarske forme in jedra, ki vsebujejo nevarne snovi","*",1085]
["10 09 07","Uporabljene livarske forme in jedra, ki vsebujejo nevarne snovi","*",1086]
["10 09 09","Prah dimnih plinov, ki vsebuje nevarne snovi","*",1087]
["10 09 11","Drugi delci, ki vsebujejo nevarne snovi","*",1088]
["10 09 13","Odpadna veziva, ki vsebujejo nevarne snovi","*",1089]
["10 09 15","Odpadna sredstva za ugotavljanje razpok, ki vsebujejo nevarne snovi","*",1090]
["10 10 05","Neuporabljene livarske forme in jedra, ki vsebujejo nevarne snovi","*",1091]
["10 10 07","Uporabljene livarske forme in jedra, ki vsebujejo nevarne snovi","*",1092]
["10 10 09","Prah dimnih plinov, ki vsebuje nevarne snovi","*",1093]
["10 10 11","Drugi delci, ki vsebujejo nevarne snovi","*",1094]
["10 10 13","Odpadna veziva, ki vsebujejo nevarne snovi","*",1095]
["10 10 15","Odpadna sredstva za ugotavljanje razpok, ki vsebujejo nevarne snovi","*",1096]
["10 11 09","Odpadna zmes pred taljenjem, ki vsebuje nevarne snovi","*",1097]
["10 11 11","Odpadno steklo, ki vsebuje težke kovine, v obliki majhnih delcev in prahu (npr. steklo katodnih cevi)","*",1098]
["10 11 13","Mulj iz poliranja in brušenja stekla, ki vsebuje nevarne snovi","*",1099]
["10 11 15","Trdni odpadki iz čiščenja dimnih plinov, ki vsebujejo nevarne snovi","*",1100]
["10 11 17","Mulji in filtrne pogače iz čiščenja dimnih plinov, ki vsebujejo nevarne snovi","*",1101]
["10 11 19","Trdni odpadki, ki vsebujejo nevarne snovi, iz čiščenja odpadnih voda na kraju nastanka","*",1102]
["10 12 09","Trdni odpadki iz čiščenja odpadnih plinov, ki vsebujejo nevarne snovi","*",1103]
["10 12 11","Odpadki iz glaziranja, ki vsebujejo težke kovine","*",1241]
["10 13 09","Odpadki, ki vsebujejo azbest, iz proizvodnje azbestcementa","*",1242]
["10 13 12","Trdni odpadki iz čiščenja odpadnih plinov, ki vsebujejo nevarne snovi","*",1243]
["10 14 01","Odpadki, ki vsebujejo živo srebro, iz čiščenja odpadnih plinov","*",1111]
["11 01 05","Kisline za luženja","*",1112]
["11 01 06","Kisline, ki niso navedene drugje","*",1113]
["11 01 07","Baze (lugi) za luženje","*",1114]
["11 01 08","Mulji iz fosfatiranja","*",1115]
["11 01 09","Mulji in filtrne pogače, ki vsebujejo nevarne snovi","*",1116]
["11 01 11","Tekočine za izpiranje na vodni osnovi, ki vsebujejo nevarne snovi","*",1596]
["11 01 13","Odpadki iz razmaščevanja, ki vsebujejo nevarne snovi","*",1597]
["11 01 15","Eluati in mulji, ki vsebujejo nevarne snovi, iz membranskih sistemov ali ionskih izmenjevalnikov","*",1598]
["11 01 16","Nasičene ali izrabljene smole ionskih izmenjevalnikov","*",1599]
["11 01 98","Drugi odpadki, ki vsebujejo nevarne snovi","*",1600]
["11 02 02","Mulji iz hidrometalurgije cinka (vključno z jarositom in goethitom)","*",1601]
["11 02 05","Odpadki iz hidrometalurških postopkov bakra, ki vsebujejo nevarne snovi","*",1602]
["11 02 07","Drugi odpadki, ki vsebujejo nevarne snovi","*",1603]
["11 03 01","Odpadki, ki vsebujejo cianid","*",1604]
["11 03 02","Drugi odpadki","*",1605]
["11 05 03","Trdni odpadki iz čiščenja odpadnih plinov","*",1606]
["11 05 04","Izrabljena kopel","*",1607]
["12 01 06","Mineralna strojna olja, ki vsebujejo halogene (razen emulzij in raztopin)","*",1608]
["12 01 07","Mineralna strojna olja, ki ne vsebujejo halogenov (razen emulzij in raztopin)","*",1609]
["12 01 08","Strojne emulzije in raztopine, ki vsebujejo halogene","*",1610]
["12 01 09","Strojne emulzije in raztopine, ki ne vsebujejo halogenov","*",1611]
["12 01 10","Sintetična strojna olja","*",1612]
["12 01 12","Izrabljeni voski in masti","*",1613]
["12 01 14","Strojni mulji, ki vsebujejo nevarne snovi","*",1614]
["12 01 16","Odpadki iz peskanja, ki vsebujejo nevarne snovi","*",1615]
["12 01 18","Kovinski mulj (mulj iz brušenja, honanja in lepanja), ki vsebuje olje","*",1616]
["12 01 19","Lahko biorazgradljiva strojna olja","*",1617]
["12 01 20","Izrabljena brusilna telesa in brusilni materiali, ki vsebujejo nevarne snovi","*",1618]
["12 03 01","Pralne tekočine na vodni osnovi","*",1619]
["12 03 02","Odpadki iz razmaščevanja s paro","*",1620]
["13 01 01","Hidravlična olja, ki vsebujejo PCB","*",1621]
["13 01 04","Klorirane emulzije","*",1622]
["13 01 05","Neklorirane emulzije","*",1623]
["13 01 09","Mineralna klorirana hidravlična olja","*",1624]
["13 01 10","Mineralna neklorirana hidravlična olja","*",1625]
["13 01 11","Sintetična hidravlična olja","*",1626]
["13 01 12","Lahko biorazgradljiva hidravlična olja","*",1627]
["13 01 13","Druga hidravlična olja","*",1628]
["13 02 04","Mineralna klorirana motorna olja, olja prestavnih mehanizmov in mazalna olja","*",1629]
["13 02 05","Mineralna neklorirana motorna olja, olja prestavnih mehanizmov in mazalna olja","*",1630]
["13 02 06","Sintetična motorna olja, olja prestavnih mehanizmov in mazalna olja","*",1631]
["13 02 07","Lahko biorazgradljiva motorna olja, olja prestavnih mehanizmov in mazalna olja","*",1632]
["13 02 08","Druga motorna olja, olja prestavnih mehanizmov in mazalna olja","*",1633]
["13 03 01","Izolirna olja in olja za prenos toplote, ki vsebujejo PCB","*",1634]
["13 03 06","Mineralna klorirana izolirna olja in olja prenos toplote, ki niso navedena v 13 03 01","*",1635]
["13 03 07","Mineralna neklorirana izolirna olja in olja za prenos toplote","*",1636]
["13 03 08","Sintetična izolirna olja in olja za prenos toplote","*",1637]
["13 03 09","Lahko biorazgradljiva izolirna olja in olja za prenos toplote","*",1638]
["13 03 10","Druga izolirna olja in olja za prenos toplote","*",1639]
["13 04 01","Kalužna (ladijska) olja iz plovbe po celinskih plovnih poteh","*",1640]
["13 04 02","Kalužna (ladijska) olja iz odtočnih kanalov na pomolih","*",1641]
["13 04 03","Kalužna (ladijska) olja iz druge plovbe","*",1642]
["13 05 01","Trdne snovi iz peskolovov in naprav za ločevanje olja in vode","*",1643]
["13 05 02","Mulji iz naprav za ločevanje olja in vode","*",1644]
["13 05 03","Mulji iz lovilcev olj","*",1645]
["13 05 06","Olja iz naprav za ločevanje olja in vode","*",1646]
["13 05 07","Z oljem onesnažena voda iz naprav za ločevanje olja in vode","*",1647]
["13 05 08","Mešanice odpadkov iz peskolovov in naprav za ločevanje olja in vode","*",1648]
["13 07 01","Kurilno olje in dizelsko gorivo","*",1649]
["13 07 02","Bencin","*",1650]
["13 07 03","Druga goriva (vključno z mešanicami)","*",1651]
["13 08 01","Mulji ali emulzije iz razsoljevanja","*",1652]
["13 08 02","Druge emulzije","*",1653]
["13 08 99","Odpadki, ki niso navedeni drugje","*",1654]
["14 06 01","Fluorokloroogljikovodiki, HCFC, HFC","*",1655]
["14 06 02","Druga halogenirana topila in mešanice topil","*",1656]
["14 06 03","Druga topila in mešanice topil","*",1657]
["14 06 04","Mulji ali trdni odpadki, ki vsebujejo halogenirana topila","*",1658]
["14 06 05","Mulji ali trdni odpadki, ki vsebujejo druga topila","*",1659]
["15 01 10","Embalaža, ki vsebuje ostanke nevarnih snovi ali je onesnažena z nevarnimi snovmi","*",1660]
["15 01 11","Kovinska embalaža, ki vsebuje nevaren trden porozen oklep (npr. azbest), vključno s praznimi tlačnimi posodami","*",1661]
["15 02 02","Absorbenti, filtrirna sredstva (vključno z oljnimi filtri, ki niso navedeni drugje), čistilne krpe in zaščitna oblačila, ki so onesnaženi z nevarnimi snovmi","*",1662]
["16 01 04","Izrabljena vozila","*",1132]
["16 01 07","Oljni filtri","*",1133]
["16 01 08","Sestavine, ki vsebujejo živo srebro","*",1134]
["16 01 09","Sestavine, ki vsebujejo PCB","*",1135]
["16 01 10","Eksplozivne sestavine (npr. zračne blazine)","*",1136]
["16 01 11","Zavorne obloge, ki vsebujejo azbest","*",1137]
["16 01 13","Zavorne tekočine","*",1138]
["16 01 14","Tekočine proti zmrzovanju, ki vsebujejo nevarne snovi","*",1139]
["16 01 21","Nevarne sestavine, ki niso navedene v 16 01 07 do 16 01 11 ter 16 01 13 in 16 01 14","*",1140]
["16 02 09","Transformatorji in kondenzatorji, ki vsebujejo PCB","*",1141]
["16 02 10","Zavržena oprema, ki vsebuje PCB ali je onesnažena z njimi in ni navedena v 16 02 09","*",1142]
["16 02 11","Zavržena oprema, ki vsebuje fluorokloroogljikovodike, HCFC, HFC","*",1143]
["16 02 12","Zavržena oprema, ki vsebuje prosti azbest","*",1144]
["16 02 13","Zavržena oprema, ki vsebuje nevarne sestavine (3), in ni navedena v 16 02 09 do 16 02 12","*",1145]
["16 02 15","Nevarne sestavine, odstranjene iz zavržene opreme","*",1146]
["16 03 03","Anorganski odpadki, ki vsebujejo nevarne snovi","*",1147]
["16 03 05","Organski odpadki, ki vsebujejo nevarne snovi","*",1148]
["16 03 07","Kovinsko živo srebro","*",1952]
["16 04 01","Odpadno strelivo","*",1149]
["16 04 02","Odpadni pirotehnični izdelki","*",1150]
["16 04 03","Drugi odpadni eksplozivi","*",1151]
["16 05 04","Plini v tlačnih posodah (vključno s haloni), ki vsebujejo nevarne snovi","*",1152]
["16 05 06","Laboratorijske kemikalije, ki sestojijo iz nevarnih snovi ali jih vsebujejo, vključno z mešanicami laboratorijskih kemikalij","*",1153]
["16 05 07","Zavržene anorganske kemikalije, ki sestojijo iz nevarnih snovi ali jih vsebujejo","*",1154]
["16 05 08","Zavržene organske kemikalije, ki sestojijo iz nevarnih snovi ali jih vsebujejo","*",1155]
["16 06 01","Svinčeve baterije","*",1156]
["16 06 02","Nikelj-kadmijeve baterije","*",1157]
["16 06 03","Baterije, ki vsebujejo živo srebro","*",1158]
["16 06 06","Ločeno zbrani elektroliti iz baterij in akumulatorjev","*",1159]
["16 07 08","Odpadki, ki vsebujejo olje","*",1160]
["16 07 09","Odpadki, ki vsebujejo druge nevarne snovi","*",1161]
["16 08 02","Izrabljeni katalizatorji, ki vsebujejo nevarne prehodne kovine ali njihove spojine","*",1162]
["16 08 05","Izrabljeni katalizatorji, ki vsebujejo fosforjevo kislino","*",1163]
["16 08 06","Izrabljene tekočine, uporabljene kot katalizatorji","*",1164]
["16 08 07","Izrabljeni katalizatorji, onesnaženi z nevarnimi snovmi","*",1165]
["16 09 01","Permanganati, npr. kalijev permanganat","*",1166]
["16 09 02","Kromati, npr. kalijev kromat, kalijev ali natrijev dikromat","*",1167]
["16 09 03","Peroksidi, npr. vodikov peroksid","*",1168]
["16 09 04","Oksidanti, ki niso navedeni drugje","*",1169]
["16 10 01","Odpadne vodne raztopine, ki vsebujejo nevarne snovi","*",1104]
["16 10 03","Vodni koncentrati, ki vsebujejo nevarne snovi","*",1105]
["16 11 01","Obloge in ognjevzdržni materiali na osnovi ogljika, ki vsebujejo nevarne snovi, iz metalurških postopkov","*",1106]
["16 11 03","Druge obloge in ognjevzdržni materiali, ki vsebujejo nevarne snovi, iz metalurških postopkov","*",1107]
["16 11 05","Obloge in ognjevzdržni materiali, ki vsebujejo nevarne snovi, iz nemetalurških postopkov","*",1108]
["17 01 06","Mešanice ali ločene frakcije betona, opeke, ploščic in keramike, ki vsebujejo nevarne snovi","*",1109]
["17 02 04","Steklo, plastika in les, ki vsebujejo nevarne snovi, ali so z njimi onesnaženi","*",1110]
["17 03 01","Bitumenske mešanice, ki vsebujejo premogov katran","*",1246]
["17 03 03","Premogov katran in proizvodi, ki vsebujejo katran","*",1247]
["17 04 09","Kovinski odpadki, onesnaženi z nevarnimi snovmi","*",1248]
["17 04 10","Kabli, ki vsebujejo olje, premogov katran in druge nevarne snovi","*",1249]
["17 05 03","Zemlja in kamenje, ki vsebujeta nevarne snovi","*",1250]
["17 05 05","Material, izkopan pri poglabljanju dna z bagranjem, ki vsebuje nevarne snovi","*",1251]
["17 05 07","Tolčenec izpod železniških tirov in pragov, ki vsebuje nevarne snovi","*",1252]
["17 06 01","Izolirni materiali, ki vsebujejo azbest","*",1253]
["17 06 03","Drugi izolirni materiali, ki sestojijo iz nevarnih snovi ali jih vsebujejo","*",1254]
["17 06 05","Gradbeni materiali, ki vsebujejo azbest","*",1255]
["17 08 01","Gradbeni materiali na osnovi sadre, ki so onesnaženi z nevarnimi snovmi","*",1256]
["17 09 01","Gradbeni odpadki in odpadki iz rušenja objektov, ki vsebujejo živo srebro","*",1257]
["17 09 02","Gradbeni odpadki in odpadki iz rušenja objektov, ki vsebujejo PCB (npr. tesnilne mase, ki vsebujejo PCB, talne obloge na osnovi smol, ki vsebujejo PCB, zasteklitve z izolirnimi stekli, ki vsebujejo PCB, in kondenzatorji, ki vsebujejo PCB)","*",1258]
["17 09 03","Drugi gradbeni odpadki in odpadki iz rušenja objektov (vključno z mešanicami odpadkov), ki vsebujejo nevarne snovi","*",1259]
["18 01 03","Odpadki, ki z vidika preprečevanja okužbe zahtevajo posebno ravnanje pri zbiranju in odstranjevanju","*",1260]
["18 01 06","Kemikalije, ki sestojijo iz nevarnih snovi ali jih vsebujejo","*",1261]
["18 01 08","Citotoksična in citostatična zdravila","*",1262]
["18 01 10","Amalgamski odpadki iz zobozdravstva","*",1263]
["18 02 02","Odpadki, ki z vidika preprečevanja okužb zahtevajo posebno ravnanje pri zbiranju in odstranjevanju","*",1264]
["18 02 05","Kemikalije, ki sestojijo iz nevarnih snovi ali jih vsebujejo","*",1265]
["18 02 07","Citotoksična in citostatična zdravila","*",1266]
["19 01 05","Filtrne pogače iz čiščenja odpadnih plinov","*",1267]
["19 01 06","Odpadne vodne raztopine iz čiščenja odpadnih plinov in druge odpadne vodne raztopine","*",1268]
["19 01 07","Trdni odpadki iz čiščenja odpadnih plinov","*",1269]
["19 01 10","Izrabljeno aktivno oglje iz čiščenja dimnih plinov","*",1270]
["19 01 11","Ogorki in žlindra, ki vsebujejo nevarne snovi","*",1271]
["19 01 13","Elektrofiltrski pepel, ki vsebuje nevarne snovi","*",1272]
["19 01 15","Kotlovski prah, ki vsebuje nevarne snovi","*",1273]
["19 01 17","Odpadki, ki vsebujejo nevarne snovi, iz pirolize","*",1274]
["19 02 04","Pomešani odpadki, ki vsebujejo vsaj en nevarni odpadek","*",1275]
["19 02 05","Mulji, ki vsebujejo nevarne snovi, iz fizikalno-kemične obdelave","*",1276]
["19 02 07","Olja in koncentrati iz postopkov ločevanja","*",1277]
["19 02 08","Tekoči gorljivi odpadki, ki vsebujejo nevarne snovi","*",1278]
["19 02 09","Trdni gorljivi odpadki, ki vsebujejo nevarne snovi","*",1279]
["19 02 11","Drugi odpadki, ki vsebujejo nevarne snovi","*",1280]
["19 03 04","Odpadki, označeni kot nevarni, delno stabilizirani, razen 19 03 08","*",1281]
["19 03 06","Odpadki, označeni kot nevarni, solidificirani","*",1282]
["19 03 08","Delno stabilizirano živo srebro","*",1971]
["19 04 02","Elektrofiltrski pepel in drugi odpadki iz čiščenja dimnih plinov","*",1283]
["19 04 03","Nezastekljena trdna faza","*",1284]
["19 07 02","Izcedne vode, ki vsebujejo nevarne snovi, z odlagališč","*",1285]
["19 08 06","Nasičene ali izrabljene smole ionskih izmenjevalnikov","*",1286]
["19 08 07","Raztopine in mulji iz regeneracije ionskih izmenjevalnikov","*",1287]
["19 08 08","Odpadki, ki vsebujejo težke kovine, iz membranskih sistemov","*",1288]
["19 08 10","Mešanice masti in olj iz ločevanja olja in vode, ki niso navedene v 19 08 09","*",1289]
["19 08 11","Blato iz biološke obdelave industrijskih odpadnih voda, ki vsebuje nevarne snovi","*",1290]
["19 08 13","Blato iz druge obdelave industrijskih odpadnih voda, ki vsebuje nevarne snovi","*",1291]
["19 10 03","Lahka frakcija in prah, ki vsebujeta nevarne snovi","*",1292]
["19 10 05","Druge frakcije, ki vsebujejo nevarne snovi","*",1293]
["19 11 01","Izrabljene filtrirne zemlje","*",1294]
["19 11 02","Kisli katrani","*",1295]
["19 11 03","Odpadne vodne raztopine","*",1296]
["19 11 04","Odpadki iz čiščenja goriva z bazami (lugi)","*",1297]
["19 11 05","Blato, ki vsebuje nevarne snovi, iz čiščenja odpadnih voda na kraju nastanka","*",1298]
["19 11 07","Odpadki iz čiščenja dimnih plinov","*",1299]
["19 12 06","Les, ki vsebuje nevarne snovi","*",1300]
["19 12 11","Drugi odpadki (vključno z mešanicami materialov), ki vsebujejo nevarne snovi, iz mehanske obdelave odpadkov","*",1301]
["19 13 01","Trdni odpadki, ki vsebujejo nevarne snovi, iz sanacije tal","*",1302]
["19 13 03","Mulji, ki vsebujejo nevarne snovi, iz sanacije tal","*",1303]
["19 13 05","Mulji, ki vsebujejo nevarne snovi, iz sanacije podtalnice","*",1304]
["19 13 07","Odpadne vodne raztopine in vodni koncentrati, ki vsebujejo nevarne snovi, iz sanacije podtalnice","*",1305]
["20 01 13","Topila","*",1306]
["20 01 14","Kisline","*",1307]
["20 01 15","Alkalije","*",1308]
["20 01 17","Fotokemikalije","*",1309]
["20 01 19","Pesticidi","*",1586]
["20 01 21","Fluorescenčne cevi in drugi odpadki, ki vsebujejo živo srebro","*",1587]
["20 01 23","Zavržena oprema, ki vsebuje fluorokloroogljikovodike","*",1588]
["20 01 26","Olje in masti, ki niso navedeni v 20 01 25","*",1589]
["20 01 27","Barve, tiskarske barve, lepila in smole, ki vsebujejo nevarne snovi","*",1590]
["20 01 29","Čistila (detergenti), ki vsebujejo nevarne snovi","*",1591]
["20 01 31","Citotoksična in citostatična zdravila","*",1592]
["20 01 33","Baterije in akumulatorji, navedeni v 16 06 01, 16 06 02 ali 16 06 03, in nesortirane baterije in akumulatorji, ki vsebujejo te baterije","*",1593]
["20 01 35","Zavržena električna in elektronska oprema, ki vsebuje nevarne snovi (3), ki ni navedena v 20 01 21 in 20 01 23","*",1594]
["20 01 37","Les, ki vsebuje nevarne snovi","*",1595]

{"sheet":"XODP_sifrant_razr_do_31_12_2017","index":25,"n_rows":15,"n_cols":2,"rows_kept":15,"cut":false,"hidden":true,"merged":[]}
["ID","Naziv"]
[1,"1 - Velike gospodinjske naprave"]
[2,"1a- Naprave za hlajenje in zamrzovanje"]
[3,"2 - Male gospodinjske naprave"]
[4,"3 - Oprema za IT in telekomunikacije "]
[13,"3a- Zasloni osebnih in prenosnih računalnikov ter drugi zasloni"]
[5,"4 - Oprema za zabavno elektroniko"]
[31,"4a- Televizijski sprejemniki"]
[6,"5 - Oprema za razsvetljavo"]
[7,"5a- Plinske sijalke"]
[8,"6 - Elektično in elektronsko orodje (razen velikega nepremičnega industrijskega orodja)"]
[9,"7 - Igrače, oprema za prosti čas in šport"]
[10,"8 - Medicinske naprave (razen vseh vsajenih in infektivnih proizvodov)"]
[11,"9 - Inštrumenti za spremljanje in nadzor"]
[12,"10 - Avtomati"]

{"sheet":"XODP_sifrant razr_od_1_1_2018","index":26,"n_rows":7,"n_cols":2,"rows_kept":7,"cut":false,"hidden":true,"merged":[]}
["ID","Naziv"]
[32,"1 - Oprema za topolotno izmenjavo"]
[33,"2 - Zasloni, monitorji in oprema z zasloni, katerh površina je večja od 100 cm2"]
[34,"3 - Sijalke"]
[35,"4 - Velika oprema (katerakoli zunanja dimenzija večja od 50 cm)"]
[36,"5 - Majhna oprema (nobena zunanja dimenzija ni večja od 50 cm)"]
[37,"6 - Majhna oprema za IT in telekomunikacije (nobena zunanja dimenzija ni večja od 50 cm)"]

{"sheet":"ODP_sifrant_prilog","index":27,"n_rows":5,"n_cols":7,"rows_kept":5,"cut":false,"hidden":true,"merged":[]}
["ID","SPG_ID","Priloga",null,"Priloga - krajši naziv","ID","SPG_ID"]
[1030,39,"06. Pisno pooblastilo stranke pooblaščencu",null,"01. Pisno pooblastilo stranke pooblaščencu",1030,39]
[1010,229,"08.1. VNOS KOMPOSTA ALI DIGESTATA IN BLATA KČN - Izjave lastnikov oz. zakupnikov zemljišč, iz katerih je razvidno, da soglašajo s količino in časom vnosa komposta ali digestata",null,"02. Izjave lastnikov oz. zakupnikov zemljišč",1010,229]
[1012,210,"08.2. VNOS KOMPOSTA ALI DIGESTATA IN BLATA KČN - Strokovna ocena o možnem namenu uporabe",null,"03. Strokovna ocena o možnem namenu uporabe",1012,210]
[1050,429,"08.3. VNOS KOMPOSTA ALI DIGESTATA IN BLATA KČN - Specifikacija komposta/digestata",null,"04. Specifikacija komposta/digestata",1050,429]

{"sheet":"sifrant_ostalo","index":28,"n_rows":106,"n_cols":4,"rows_kept":106,"cut":false,"hidden":true,"merged":[]}
["Vrsta vloge OVD (na zavihku vrsta_vloge)"]
["prvo pridobivanje OVD"]
["sprememba OVD"]
[]
["Vrsta naprave (na zavihku naprava)"]
["premična naprava"]
["stacionarna naprava"]
[]
["Izbor da/ne"]
["da"]
["ne"]
[]
["Vrsta tehnološke enote za ODP"]
["pred gradnjo"]
["pred obratovanjem"]
[]
["Lastnik ali zakupnik na ODP_lokacije_teh_enot"]
["lastnik"]
["zakupnik"]
[]
[]
["Tip prosilca na ODP_vnos_zemljine"]
["investitor"]
["pravna oseba ali SP"]
["investitor in pravna oseba ali SP"]
[]
["Zbiralec/upravljalec obrata na ODP_izr_vozila"]
["zbiralec"]
["upravljavec obrata"]
[]
[]
["Vrsta naprave glede na 3. čl. predpisa o sežigalnicah odpadkov in napravah za sosežig odpadkov"]
["nova naprava"]
["obstoječa naprava"]
[]
["Vrsta naprave za sežiganje (izbrati eno od navedenih možnosti)"]
["naprava za sosežig - cementa peč"]
["naprava za sosežig - kurilna naprava"]
["naprava za sosežig - druga industrijska naprava"]
["sežigalnica"]
[]
["Uporaba komposta/digestata 2.kakovostni razred na nekmetijskih zemljiščih za"]
["gnojenje okrasnih rastlin v vrtnarijah in drevesnicah",1,null,"1. gnojenje okrasnih rastlin"]
["izboljšava tal v parkih, na zelenicah ali površinah za šport, rekreacijo ali prosti čas",2,null,"2. izboljšava tal v parkih…"]
["rekultivacija glinokopov, kamnolomov, degradiranih industrijskih območij ali opuščenih industrijskih površin, če je vodonosnik pod temi površinami prekrit z zveznimi neprekinjenimi, slabo do zelo slabo prepustnimi krovnimi plastmi",3,null,"3. rekultivacija - razen odlagališč in prometne infrastrukture"]
["rekultivacija odlagališč odpadkov v skladu s predpisom, ki ureja odlaganje odpadkov na odlagališčih",4,null,"4. rekultivacija odlagališč odpadkov"]
["rekultivacija zemljišč prometne infrastrukture",5,null,"5. rekultivacija zemljišč prometne infrastrukture"]
["gradnja biofiltra",6,null,"6. gradnja biofiltra"]
[]
["Vrsta vnosa v tla"]
["1. kompost-1.kakovostni razred-kmetijska zemljišča"]
["2. kompost-1.kakovostni razred-nekmetijska zemljišča"]
["3. kompost-2.kakovostni razred-nekmetijska zemljišča"]
["4. digestat-1.kakovostni razred-kmetijska zemljišča"]
["5. digestat-1.kakovostni razred-nekmetijska zemljišča"]
["6. digestat-2.kakovostni razred-nekmetijska zemljišča"]
["7. blato iz komunalnih čistilnih naprav-kmetijska zemljišča"]
[]
["Raba in lastnosti tal"]
["raba in lastnosti tal 1"]
["raba in lastnosti tal 2"]
["raba in lastnosti tal 3"]
["raba in lastnosti tal 4"]
["raba in lastnosti tal 5"]
["raba in lastnosti tal 6"]
["raba in lastnosti tal 7"]
["raba in lastnosti tal 8"]
["raba in lastnosti tal 9"]
[]
["Vrsta (kompost/digestat/blato KČN)"]
["kompost"]
["digestat"]
["blato KČN"]
[]
["Registracija za"]
["38.210"]
["38.220"]
["38.210 in 38.220"]
[]
[]
["Raba kmetijskih zemljišč (http://rkg.gov.si/GERK/documents/RABA_IntKljuc_20131009.pdf)"]
["Njiva",1100]
["Hmeljišče",1160]
["Trajne rastline na njivskih površinah",1180]
["Rastlinjak",1190]
["Vinograd",1211]
["Matičnjak",1212]
["Intenzivni sadovnjak",1221]
["Ekstenzivni oziroma travniški sadovnjak",1222]
["Oljčnik",1230]
["Ostali trajni nasadi",1240]
["Trajni travnik",1300]
["Barjanski travnik",1321]
["Kmetijsko zemljišče v zaraščanju",1410]
["Plantaža gozdnega drevja",1420]
["Drevesa in grmičevje",1500]
["Neobdelano kmetijsko zemljišče",1600]
["Kmetijsko zemljišče, poraslo z gozdnim drevjem",1800]
["Gozd",2000]
["Pozidano in sorodno zemljišče",3000]
["Barje",4100]
["Trstičje",4210]
["Ostalo zamočvirjeno zemljišče",4220]
["Suho odprto zemljišče s posebnim rastlinskim pokrovom",5000]
["Odprto zemljišče brez ali z nepomembnim rastl pokrovom",6000]
["Voda",7000]